Workbook

Sheet PRIMARY INFORMATION
B2: SHAALA SIDDHI SELF-EVALUATION TABLES PREPARATION TOOL
C5: PRESENT ACADEMIC YEAR | D5: 2019-20
C6: TOTAL WORKING DAYS IN LAST ACADEMIC YEAR | D6: 213
C8: 2018-19 STARTING ADMISSION
C12: HOW TO USE THIS FILE
B13: STEP-1 | C13: ENTER STUDENT PARTICULARS IN ALL THE SHEETS ( MAX 150 GIVEN IN EACH CLASS)
B14: STEP-2 | C14: ENTER MARKS (6-9TH 100 MARKS & 10TH GPA) IN ALL SHEETS
B15: STEP-3 | C15: NOW YOU CAN CHECK REPORTS SHEET FOR AUTOMATICALLY PREPARED TABLES
B18: NOTE: | C18: THIS TOOL IS PREPARED FOR HELPING HMs, PLEASE USE THIS AS REFERENCE ONLY WE ARE NOT RESPONSIBLE FOR ANY DATA MIS MATCH OR DIFFERENCE

Sheet REPORTS
C2: DEMOGRAPHIC PROFILE (2019-20)
C3: Category | D3: SC | E3: ST | F3: OBC | G3: General | H3: Minority | I3: Total
C4: Number | D4: 84 | E4: 75 | F4: 251 | G4: 6 | H4: 7 | I4: =SUM(D4:H4)-H4 -> 416 | J4: <== Enter Manually
B7: CLASSWISE ANNUAL ATTENDANCE REPORT (2018-19)
B8: CLASS | C8: BOYS | D8: GIRLS | E8: TOTAL | F8: NO. OF WORKING DAYS | G8: BOYS ANNUAL ATTENDANCE | H8: GIRLS ANNUAL ATTENDANCE | I8: TOTAL ANNUAL ATTENDANCE | J8: BOYS ATT RATE | K8: GIRLS ATT RATE | L8: TOTAL ATT RATE
B9: VI | C9: =VITM!B$160+VIEM!B$160 -> 30 | D9: =VITM!C$160+VIEM!C$160 -> 25 | E9: =SUM(C9:D9) -> 55 | F9: =WORKINGDAYS -> 213 | G9: =INDIRECT($B9&"TM"&"!$Q$155")+INDIRECT($B9&"EM"&"!$Q$155") -> 5518 | H9: =INDIRECT($B9&"TM"&"!$R$155")+INDIRECT($B9&"EM"&"!$R$155") -> 4486 | I9: =G9+H9 -> 10004 | J9: =G9/(C9*F9)*100 -> 86.35367762 | K9: =H9/(D9*F9)*100 -> 84.24413146 | L9: =I9/(E9*F9)*100 -> 85.394793
B10: VII | C10: =VIITM!B$160+VIIEM!B$160 -> 52 | D10: =VIITM!C$160+VIIEM!C$160 -> 35 | E10: =SUM(C10:D10) -> 87 | F10: 213 | G10: =INDIRECT($B10&"TM"&"!$Q$155")+INDIRECT($B10&"EM"&"!$Q$155") -> 9440 | H10: =INDIRECT($B10&"TM"&"!$R$155")+INDIRECT($B10&"EM"&"!$R$155") -> 6450 | I10: =G10+H10 -> 15890 | J10: 85.22932467 | K10: =H10/(D10*F10)*100 -> 86.51911469 | L10: =I10/(E10*F10)*100 -> 85.74820571
B11: VIII | C11: =VIIITM!B$160+VIIIEM!B$158 -> 63 | D11: =VIIITM!C$160+VIIIEM!C$158 -> 45 | E11: 108 | F11: 213 | G11: =INDIRECT($B11&"TM"&"!$Q$155")+INDIRECT($B11&"EM"&"!$Q$155") -> 5787 | H11: =INDIRECT($B11&"TM"&"!$R$155")+INDIRECT($B11&"EM"&"!$R$155") -> 0 | I11: 5787 | J11: 43.12541918 | K11: 0 | L11: 25.15649452
B12: IX | C12: =IXTM!B$160+IXEM!B$160 -> 71 | D12: =IXTM!C$160+IXEM!C$160 -> 47 | E12: 118 | F12: 213 | G12: 12819 | H12: 8647 | I12: 21466 | J12: 84.76492759 | K12: 86.37498751 | L12: 85.40622265
B13: X | C13: =XTM!B$160+XEM!B$160 -> 69 | D13: =XTM!C$160+XEM!C$160 -> 34 | E13: 103 | F13: 213 | G13: 12651 | H13: 6178 | I13: 18829 | J13: 86.07879159 | K13: 85.30792599 | L13: 85.8243311
C14: =SUM(C9:C13) -> 285 | D14: =SUM(D9:D13) -> 186 | E14: =SUM(E9:E13) -> 471 | F14: 213 | G14: =SUM(G9:G13) -> 46215 | H14: =SUM(H9:H13) -> 25761 | I14: =SUM(I9:I13) -> 71976 | J14: 76.13046701 | K14: =H14/(D14*F14)*100 -> 65.02347418 | L14: 71.74426602
B16: LEARNING OUTCOMES(ANNUAL/CONSOLIDATED REPORTS)
B17: Class | C17: Percentage of Students who scored in respective percentage range | K17: Total
C18: <33 | D18: 33-40 | E18: 41-50 | F18: 51-60 | G18: 61-70 | H18: 71-80 | I18: 81-90 | J18: 91-100
B19: VI | C19: =COUNTIFS(VITMARKS,"<33",VITMARKS,"<>0")+COUNTIFS(VIEMARKS,"<33",VIEMARKS,"<>0") -> 0 | D19: =COUNTIFS(VITMARKS,"<41",VITMARKS,"<>0")+COUNTIFS(VIEMARKS,"<41",VIEMARKS,"<>0")-C19 -> 0 | E19: =COUNTIFS(VITMARKS,"<51",VITMARKS,"<>0")+COUNTIFS(VIEMARKS,"<51",VIEMARKS,"<>0")-D19-C19 -> 0 | F19: =COUNTIFS(VITMARKS,"<61",VITMARKS,"<>0")+COUNTIFS(VIEMARKS,"<61",VIEMARKS,"<>0")-E19-D19-C19 -> 10 | G19: =COUNTIFS(VITMARKS,"<71",VITMARKS,"<>0")+COUNTIFS(VIEMARKS,"<71",VIEMARKS,"<>0")-F19-E19-D19-C19 -> 22 | H19: =COUNTIFS(VITMARKS,"<81",VITMARKS,"<>0")+COUNTIFS(VIEMARKS,"<81",VIEMARKS,"<>0")-G19-F19-E19-D19-C19 -> 18 | I19: =COUNTIFS(VITMARKS,"<91",VITMARKS,"<>0")+COUNTIFS(VIEMARKS,"<91",VIEMARKS,"<>0")-H19-G19-F19-E19-D19-C19 -> 5 | J19: =COUNTIFS(VITMARKS,">90",VITMARKS,"<>0")+COUNTIFS(VIEMARKS,">90",VIEMARKS,"<>0") -> 0 | K19: =SUM(C19:J19) -> 55
B20: VII | C20: =COUNTIFS(VIITMARKS,"<33",VIITMARKS,"<>0")+COUNTIFS(VIIEMARKS,"<33",VIIEMARKS,"<>0") -> 0 | D20: =COUNTIFS(VIITMARKS,"<41",VIITMARKS,"<>0")+COUNTIFS(VIIEMARKS,"<41",VIIEMARKS,"<>0")-C20 -> 0 | E20: =COUNTIFS(VIITMARKS,"<51",VIITMARKS,"<>0")+COUNTIFS(VIIEMARKS,"<51",VIIEMARKS,"<>0")-D20-C20 -> 1 | F20: =COUNTIFS(VIITMARKS,"<61",VIITMARKS,"<>0")+COUNTIFS(VIIEMARKS,"<61",VIIEMARKS,"<>0")-E20-D20-C20 -> 22 | G20: =COUNTIFS(VIITMARKS,"<71",VIITMARKS,"<>0")+COUNTIFS(VIIEMARKS,"<71",VIIEMARKS,"<>0")-F20-E20-D20-C20 -> 33 | H20: =COUNTIFS(VIITMARKS,"<81",VIITMARKS,"<>0")+COUNTIFS(VIIEMARKS,"<81",VIIEMARKS,"<>0")-G20-F20-E20-D20-C20 -> 25 | I20: =COUNTIFS(VIITMARKS,"<91",VIITMARKS,"<>0")+COUNTIFS(VIIEMARKS,"<91",VIIEMARKS,"<>0")-H20-G20-F20-E20-D20-C20 -> 6 | J20: =COUNTIFS(VIITMARKS,">90",VIITMARKS,"<>0")+COUNTIFS(VIIEMARKS,">90",VIIEMARKS,"<>0") -> 0 | K20: =SUM(C20:J20) -> 87
B21: VIII | C21: =COUNTIFS(VIIITMARKS,"<33",VIIITMARKS,"<>0")+COUNTIFS(VIIIEMARKS,"<33",VIIIEMARKS,"<>0") -> 0 | D21: =COUNTIFS(VIIITMARKS,"<41",VIIITMARKS,"<>0")+COUNTIFS(VIIIEMARKS,"<41",VIIIEMARKS,"<>0")-C21 -> 0 | E21: =COUNTIFS(VIIITMARKS,"<51",VIIITMARKS,"<>0")+COUNTIFS(VIIIEMARKS,"<51",VIIIEMARKS,"<>0")-D21-C21 -> 2 | F21: =COUNTIFS(VIIITMARKS,"<61",VIIITMARKS,"<>0")+COUNTIFS(VIIIEMARKS,"<61",VIIIEMARKS,"<>0")-E21-D21-C21 -> 22 | G21: =COUNTIFS(VIIITMARKS,"<71",VIIITMARKS,"<>0")+COUNTIFS(VIIIEMARKS,"<71",VIIIEMARKS,"<>0")-F21-E21-D21-C21 -> 55 | H21: =COUNTIFS(VIIITMARKS,"<81",VIIITMARKS,"<>0")+COUNTIFS(VIIIEMARKS,"<81",VIIIEMARKS,"<>0")-G21-F21-E21-D21-C21 -> 25 | I21: =COUNTIFS(VIIITMARKS,"<91",VIIITMARKS,"<>0")+COUNTIFS(VIIIEMARKS,"<91",VIIIEMARKS,"<>0")-H21-G21-F21-E21-D21-C21 -> 4 | J21: =COUNTIFS(VIIITMARKS,">90",VIIITMARKS,"<>0")+COUNTIFS(VIIIEMARKS,">90",VIIIEMARKS,"<>0") -> 0 | K21: =SUM(C21:J21) -> 108
B22: IX | C22: =COUNTIFS(IXTMARKS,"<33",IXTMARKS,"<>0")+COUNTIFS(IXEMARKS,"<33",IXEMARKS,"<>0") -> 0 | D22: =COUNTIFS(IXTMARKS,"<41",IXTMARKS,"<>0")+COUNTIFS(IXEMARKS,"<41",IXEMARKS,"<>0")-C22 -> 0 | E22: =COUNTIFS(IXTMARKS,"<51",IXTMARKS,"<>0")+COUNTIFS(IXEMARKS,"<51",IXEMARKS,"<>0")-D22-C22 -> 4 | F22: =COUNTIFS(IXTMARKS,"<61",IXTMARKS,"<>0")+COUNTIFS(IXEMARKS,"<61",IXEMARKS,"<>0")-E22-D22-C22 -> 22 | G22: =COUNTIFS(IXTMARKS,"<71",IXTMARKS,"<>0")+COUNTIFS(IXEMARKS,"<71",IXEMARKS,"<>0")-F22-E22-D22-C22 -> 59 | H22: =COUNTIFS(IXTMARKS,"<81",IXTMARKS,"<>0")+COUNTIFS(IXEMARKS,"<81",IXEMARKS,"<>0")-G22-F22-E22-D22-C22 -> 26 | I22: =COUNTIFS(IXTMARKS,"<91",IXTMARKS,"<>0")+COUNTIFS(IXEMARKS,"<91",IXEMARKS,"<>0")-H22-G22-F22-E22-D22-C22 -> 7 | J22: =COUNTIFS(IXTMARKS,">90",IXTMARKS,"<>0")+COUNTIFS(IXEMARKS,">90",IXEMARKS,"<>0") -> 0 | K22: 118
B23: X | C23: =COUNTIFS(XTMARKS,"<33",XTMARKS,"<>0")+COUNTIFS(XEMARKS,"<33",XEMARKS,"<>0") -> 103 | D23: =COUNTIFS(XTMARKS,"<41",XTMARKS,"<>0")+COUNTIFS(XEMARKS,"<41",XEMARKS,"<>0")-C23 -> 0 | E23: =COUNTIFS(XTMARKS,"<51",XTMARKS,"<>0")+COUNTIFS(XEMARKS,"<51",XEMARKS,"<>0")-D23-C23 -> 0 | F23: =COUNTIFS(XTMARKS,"<61",XTMARKS,"<>0")+COUNTIFS(XEMARKS,"<61",XEMARKS,"<>0")-E23-D23-C23 -> 0 | G23: =COUNTIFS(XTMARKS,"<71",XTMARKS,"<>0")+COUNTIFS(XEMARKS,"<71",XEMARKS,"<>0")-F23-E23-D23-C23 -> 0 | H23: =COUNTIFS(XTMARKS,"<81",XTMARKS,"<>0")+COUNTIFS(XEMARKS,"<81",XEMARKS,"<>0")-G23-F23-E23-D23-C23 -> 0 | I23: =COUNTIFS(XTMARKS,"<91",XTMARKS,"<>0")+COUNTIFS(XEMARKS,"<91",XEMARKS,"<>0")-H23-G23-F23-E23-D23-C23 -> 0 | J23: =COUNTIFS(XTMARKS,">90",XTMARKS,"<>0")+COUNTIFS(XEMARKS,">90",XEMARKS,"<>0") -> 0 | K23: 103
K24: =SUM(K19:K23) -> 471
B26: Class | C26: Key Subject/ Stream | D26: Total Student | E26: Percentage of Students in each Grade* | J26: Subjects with consistent low performance
E28: A | F28: B | G28: C | H28: D | I28: E | K28: SUB | L28: Check
A29: =H29+I29 -> 8 | B29: VIII | C29: Language-I | D29: =VIIITM!$D$160+VIIIEM!$D$158 -> 108 | E29: =COUNTIF(INDIRECT(K29&8&"T"),"A1")+COUNTIF(INDIRECT(K29&8&"T"),"A2")+COUNTIF(INDIRECT(K29&8&"E"),"A1")+COUNTIF(INDIRECT(K29&8&"E"),"A2") -> 35 | F29: =COUNTIF(INDIRECT(K29&8&"T"),"B1")+COUNTIF(INDIRECT(K29&8&"T"),"B2")+COUNTIF(INDIRECT(K29&8&"E"),"B1")+COUNTIF(INDIRECT(K29&8&"E"),"B2") -> 34 | G29: =COUNTIF(INDIRECT(K29&8&"T"),"C1")+COUNTIF(INDIRECT(K29&8&"T"),"C2")+COUNTIF(INDIRECT(K29&8&"E"),"C1")+COUNTIF(INDIRECT(K29&8&"E"),"C2") -> 31 | H29: =COUNTIF(INDIRECT(K29&8&"T"),"D")+COUNTIF(INDIRECT(K29&8&"E"),"D") -> 8 | I29: =COUNTIF(INDIRECT(K29&8&"T"),"E")+COUNTIF(INDIRECT(K29&8&"E"),"E") -> 0 | J29: =IF(M29=0,"NONE",VLOOKUP(M29,A29:D33,3,FALSE)) -> Social Science | K29: TEL | L29: =SUM(E29:I29) -> 108 | M29: =MAX(A29:A33) -> 16
A30: 14 | C30: Language-II | D30: =VIIITM!$D$160+VIIIEM!$D$158 -> 108 | E30: =COUNTIF(INDIRECT(K30&8&"T"),"A1")+COUNTIF(INDIRECT(K30&8&"T"),"A2")+COUNTIF(INDIRECT(K30&8&"E"),"A1")+COUNTIF(INDIRECT(K30&8&"E"),"A2") -> 29 | F30: =COUNTIF(INDIRECT(K30&8&"T"),"B1")+COUNTIF(INDIRECT(K30&8&"T"),"B2")+COUNTIF(INDIRECT(K30&8&"E"),"B1")+COUNTIF(INDIRECT(K30&8&"E"),"B2") -> 36 | G30: =COUNTIF(INDIRECT(K30&8&"T"),"C1")+COUNTIF(INDIRECT(K30&8&"T"),"C2")+COUNTIF(INDIRECT(K30&8&"E"),"C1")+COUNTIF(INDIRECT(K30&8&"E"),"C2") -> 29 | H30: =COUNTIF(INDIRECT(K30&8&"T"),"D")+COUNTIF(INDIRECT(K30&8&"E"),"D") -> 14 | I30: =COUNTIF(INDIRECT(K30&8&"T"),"E")+COUNTIF(INDIRECT(K30&8&"E"),"E") -> 0 | K30: ENG | L30: =SUM(E30:I30) -> 108
A31: 13 | C31: Maths | D31: =VIIITM!$D$160+VIIIEM!$D$158 -> 108 | E31: 35 | F31: 27 | G31: 33 | H31: 13 | I31: 0 | K31: MAT | L31: 108
A32: 9 | C32: Science | D32: =VIIITM!$D$160+VIIIEM!$D$158 -> 108 | E32: 38 | F32: 26 | G32: 35 | H32: 9 | I32: 0 | K32: SCI | L32: 108
A33: 16 | C33: Social Science | D33: =VIIITM!$D$160+VIIIEM!$D$158 -> 108 | E33: 29 | F33: 33 | G33: 30 | H33: 16 | I33: 0 | K33: SOC | L33: 108
A34: 6 | B34: IX | C34: Language-I | D34: =IXTM!$D$160+IXEM!$D$160 -> 118 | E34: =COUNTIF(INDIRECT(K34&9&"T"),"A1")+COUNTIF(INDIRECT(K34&9&"T"),"A2")+COUNTIF(INDIRECT(K34&9&"E"),"A1")+COUNTIF(INDIRECT(K34&9&"E"),"A2") -> 38 | F34: =COUNTIF(INDIRECT(K34&9&"T"),"B1")+COUNTIF(INDIRECT(K34&9&"T"),"B2")+COUNTIF(INDIRECT(K34&9&"E"),"B1")+COUNTIF(INDIRECT(K34&9&"E"),"B2") -> 37 | G34: =COUNTIF(INDIRECT(K34&9&"T"),"C1")+COUNTIF(INDIRECT(K34&9&"T"),"C2")+COUNTIF(INDIRECT(K34&9&"E"),"C1")+COUNTIF(INDIRECT(K34&9&"E"),"C2") -> 37 | H34: =COUNTIF(INDIRECT(K34&9&"T"),"D")+COUNTIF(INDIRECT(K34&9&"E"),"D") -> 6 | I34: =COUNTIF(INDIRECT(K34&9&"T"),"E")+COUNTIF(INDIRECT(K34&9&"E"),"E") -> 0 | J34: =IF(M34=0,"NONE",VLOOKUP(M34,A34:D38,3,FALSE)) -> Language-II | K34: TEL | L34: 118 | M34: =MAX(A34:A38) -> 14
A35: 14 | C35: Language-II | D35: =IXTM!$D$160+IXEM!$D$160 -> 118 | E35: =COUNTIF(INDIRECT(K35&9&"T"),"A1")+COUNTIF(INDIRECT(K35&9&"T"),"A2")+COUNTIF(INDIRECT(K35&9&"E"),"A1")+COUNTIF(INDIRECT(K35&9&"E"),"A2") -> 36 | F35: =COUNTIF(INDIRECT(K35&9&"T"),"B1")+COUNTIF(INDIRECT(K35&9&"T"),"B2")+COUNTIF(INDIRECT(K35&9&"E"),"B1")+COUNTIF(INDIRECT(K35&9&"E"),"B2") -> 27 | G35: =COUNTIF(INDIRECT(K35&9&"T"),"C1")+COUNTIF(INDIRECT(K35&9&"T"),"C2")+COUNTIF(INDIRECT(K35&9&"E"),"C1")+COUNTIF(INDIRECT(K35&9&"E"),"C2") -> 41 | H35: =COUNTIF(INDIRECT(K35&9&"T"),"D")+COUNTIF(INDIRECT(K35&9&"E"),"D") -> 14 | I35: =COUNTIF(INDIRECT(K35&9&"T"),"E")+COUNTIF(INDIRECT(K35&9&"E"),"E") -> 0 | K35: ENG | L35: 118
A36: 8 | C36: Maths | D36: =IXTM!$D$160+IXEM!$D$160 -> 118 | E36: =COUNTIF(INDIRECT(K36&9&"T"),"A1")+COUNTIF(INDIRECT(K36&9&"T"),"A2")+COUNTIF(INDIRECT(K36&9&"E"),"A1")+COUNTIF(INDIRECT(K36&9&"E"),"A2") -> 36 | F36: =COUNTIF(INDIRECT(K36&9&"T"),"B1")+COUNTIF(INDIRECT(K36&9&"T"),"B2")+COUNTIF(INDIRECT(K36&9&"E"),"B1")+COUNTIF(INDIRECT(K36&9&"E"),"B2") -> 28 | G36: =COUNTIF(INDIRECT(K36&9&"T"),"C1")+COUNTIF(INDIRECT(K36&9&"T"),"C2")+COUNTIF(INDIRECT(K36&9&"E"),"C1")+COUNTIF(INDIRECT(K36&9&"E"),"C2") -> 46 | H36: =COUNTIF(INDIRECT(K36&9&"T"),"D")+COUNTIF(INDIRECT(K36&9&"E"),"D") -> 8 | I36: =COUNTIF(INDIRECT(K36&9&"T"),"E")+COUNTIF(INDIRECT(K36&9&"E"),"E") -> 0 | K36: MAT | L36: 118
A37: 14 | C37: Science | D37: =IXTM!$D$160+IXEM!$D$160 -> 118 | E37: =COUNTIF(INDIRECT(K37&9&"T"),"A1")+COUNTIF(INDIRECT(K37&9&"T"),"A2")+COUNTIF(INDIRECT(K37&9&"E"),"A1")+COUNTIF(INDIRECT(K37&9&"E"),"A2") -> 34 | F37: =COUNTIF(INDIRECT(K37&9&"T"),"B1")+COUNTIF(INDIRECT(K37&9&"T"),"B2")+COUNTIF(INDIRECT(K37&9&"E"),"B1")+COUNTIF(INDIRECT(K37&9&"E"),"B2") -> 39 | G37: =COUNTIF(INDIRECT(K37&9&"T"),"C1")+COUNTIF(INDIRECT(K37&9&"T"),"C2")+COUNTIF(INDIRECT(K37&9&"E"),"C1")+COUNTIF(INDIRECT(K37&9&"E"),"C2") -> 31 | H37: =COUNTIF(INDIRECT(K37&9&"T"),"D")+COUNTIF(INDIRECT(K37&9&"E"),"D") -> 14 | I37: =COUNTIF(INDIRECT(K37&9&"T"),"E")+COUNTIF(INDIRECT(K37&9&"E"),"E") -> 0 | K37: SCI | L37: 118
A38: 12 | C38: Social Science | D38: =IXTM!$D$160+IXEM!$D$160 -> 118 | E38: =COUNTIF(INDIRECT(K38&9&"T"),"A1")+COUNTIF(INDIRECT(K38&9&"T"),"A2")+COUNTIF(INDIRECT(K38&9&"E"),"A1")+COUNTIF(INDIRECT(K38&9&"E"),"A2") -> 31 | F38: =COUNTIF(INDIRECT(K38&9&"T"),"B1")+COUNTIF(INDIRECT(K38&9&"T"),"B2")+COUNTIF(INDIRECT(K38&9&"E"),"B1")+COUNTIF(INDIRECT(K38&9&"E"),"B2") -> 35 | G38: =COUNTIF(INDIRECT(K38&9&"T"),"C1")+COUNTIF(INDIRECT(K38&9&"T"),"C2")+COUNTIF(INDIRECT(K38&9&"E"),"C1")+COUNTIF(INDIRECT(K38&9&"E"),"C2") -> 40 | H38: =COUNTIF(INDIRECT(K38&9&"T"),"D")+COUNTIF(INDIRECT(K38&9&"E"),"D") -> 12 | I38: =COUNTIF(INDIRECT(K38&9&"T"),"E")+COUNTIF(INDIRECT(K38&9&"E"),"E") -> 0 | K38: SOC | L38: 118
A39: 0 | B39: X | C39: Language-I | D39: =XTM!$D$160+XEM!$D$160 -> 103 | E39: =COUNTIF(INDIRECT(K39&10&"T"),"A1")+COUNTIF(INDIRECT(K39&10&"T"),"A2")+COUNTIF(INDIRECT(K39&10&"E"),"A1")+COUNTIF(INDIRECT(K39&10&"E"),"A2") -> 31 | F39: =COUNTIF(INDIRECT(K39&10&"T"),"B1")+COUNTIF(INDIRECT(K39&10&"T"),"B2")+COUNTIF(INDIRECT(K39&10&"E"),"B1")+COUNTIF(INDIRECT(K39&10&"E"),"B2") -> 34 | G39: =COUNTIF(INDIRECT(K39&10&"T"),"C1")+COUNTIF(INDIRECT(K39&10&"T"),"C2")+COUNTIF(INDIRECT(K39&10&"E"),"C1")+COUNTIF(INDIRECT(K39&10&"E"),"C2") -> 38 | H39: =COUNTIF(INDIRECT(K39&10&"T"),"D")+COUNTIF(INDIRECT(K39&10&"E"),"D") -> 0 | I39: =COUNTIF(INDIRECT(K39&10&"T"),"E")+COUNTIF(INDIRECT(K39&10&"E"),"E") -> 0 | J39: =IF(M39=0,"NONE",VLOOKUP(M39,A39:D43,3,FALSE)) -> NONE | K39: TEL | L39: 103 | M39: =MAX(A39:A43) -> 0
A40: 0 | C40: Language-II | D40: =XTM!$D$160+XEM!$D$160 -> 103 | E40: =COUNTIF(INDIRECT(K40&10&"T"),"A1")+COUNTIF(INDIRECT(K40&10&"T"),"A2")+COUNTIF(INDIRECT(K40&10&"E"),"A1")+COUNTIF(INDIRECT(K40&10&"E"),"A2") -> 39 | F40: =COUNTIF(INDIRECT(K40&10&"T"),"B1")+COUNTIF(INDIRECT(K40&10&"T"),"B2")+COUNTIF(INDIRECT(K40&10&"E"),"B1")+COUNTIF(INDIRECT(K40&10&"E"),"B2") -> 27 | G40: =COUNTIF(INDIRECT(K40&10&"T"),"C1")+COUNTIF(INDIRECT(K40&10&"T"),"C2")+COUNTIF(INDIRECT(K40&10&"E"),"C1")+COUNTIF(INDIRECT(K40&10&"E"),"C2") -> 37 | H40: =COUNTIF(INDIRECT(K40&10&"T"),"D")+COUNTIF(INDIRECT(K40&10&"E"),"D") -> 0 | I40: =COUNTIF(INDIRECT(K40&10&"T"),"E")+COUNTIF(INDIRECT(K40&10&"E"),"E") -> 0 | K40: ENG | L40: 103
A41: 0 | C41: Maths | D41: =XTM!$D$160+XEM!$D$160 -> 103 | E41: =COUNTIF(INDIRECT(K41&10&"T"),"A1")+COUNTIF(INDIRECT(K41&10&"T"),"A2")+COUNTIF(INDIRECT(K41&10&"E"),"A1")+COUNTIF(INDIRECT(K41&10&"E"),"A2") -> 34 | F41: =COUNTIF(INDIRECT(K41&10&"T"),"B1")+COUNTIF(INDIRECT(K41&10&"T"),"B2")+COUNTIF(INDIRECT(K41&10&"E"),"B1")+COUNTIF(INDIRECT(K41&10&"E"),"B2") -> 33 | G41: =COUNTIF(INDIRECT(K41&10&"T"),"C1")+COUNTIF(INDIRECT(K41&10&"T"),"C2")+COUNTIF(INDIRECT(K41&10&"E"),"C1")+COUNTIF(INDIRECT(K41&10&"E"),"C2") -> 36 | H41: =COUNTIF(INDIRECT(K41&10&"T"),"D")+COUNTIF(INDIRECT(K41&10&"E"),"D") -> 0 | I41: =COUNTIF(INDIRECT(K41&10&"T"),"E")+COUNTIF(INDIRECT(K41&10&"E"),"E") -> 0 | K41: MAT | L41: 103
A42: 0 | C42: Science | D42: =XTM!$D$160+XEM!$D$160 -> 103 | E42: =COUNTIF(INDIRECT(K42&10&"T"),"A1")+COUNTIF(INDIRECT(K42&10&"T"),"A2")+COUNTIF(INDIRECT(K42&10&"E"),"A1")+COUNTIF(INDIRECT(K42&10&"E"),"A2") -> 42 | F42: =COUNTIF(INDIRECT(K42&10&"T"),"B1")+COUNTIF(INDIRECT(K42&10&"T"),"B2")+COUNTIF(INDIRECT(K42&10&"E"),"B1")+COUNTIF(INDIRECT(K42&10&"E"),"B2") -> 31 | G42: =COUNTIF(INDIRECT(K42&10&"T"),"C1")+COUNTIF(INDIRECT(K42&10&"T"),"C2")+COUNTIF(INDIRECT(K42&10&"E"),"C1")+COUNTIF(INDIRECT(K42&10&"E"),"C2") -> 30 | H42: =COUNTIF(INDIRECT(K42&10&"T"),"D")+COUNTIF(INDIRECT(K42&10&"E"),"D") -> 0 | I42: =COUNTIF(INDIRECT(K42&10&"T"),"E")+COUNTIF(INDIRECT(K42&10&"E"),"E") -> 0 | K42: SCI | L42: 103
A43: 0 | C43: Social Science | D43: =XTM!$D$160+XEM!$D$160 -> 103 | E43: =COUNTIF(INDIRECT(K43&10&"T"),"A1")+COUNTIF(INDIRECT(K43&10&"T"),"A2")+COUNTIF(INDIRECT(K43&10&"E"),"A1")+COUNTIF(INDIRECT(K43&10&"E"),"A2") -> 31 | F43: =COUNTIF(INDIRECT(K43&10&"T"),"B1")+COUNTIF(INDIRECT(K43&10&"T"),"B2")+COUNTIF(INDIRECT(K43&10&"E"),"B1")+COUNTIF(INDIRECT(K43&10&"E"),"B2") -> 33 | G43: =COUNTIF(INDIRECT(K43&10&"T"),"C1")+COUNTIF(INDIRECT(K43&10&"T"),"C2")+COUNTIF(INDIRECT(K43&10&"E"),"C1")+COUNTIF(INDIRECT(K43&10&"E"),"C2") -> 39 | H43: =COUNTIF(INDIRECT(K43&10&"T"),"D")+COUNTIF(INDIRECT(K43&10&"E"),"D") -> 0 | I43: =COUNTIF(INDIRECT(K43&10&"T"),"E")+COUNTIF(INDIRECT(K43&10&"E"),"E") -> 0 | K43: SOC | L43: 103

Sheet VITM
A1: VITM-2018-19
A2: =RIGHT(CELL("filename",C3),LEN(CELL("filename",C3))-FIND("]",CELL("filename",C3))) -> VITM | V2: GRADES
A3: RNO | B3: ADMN NO | C3: NAME OF THE STUDENT | D3: FATHER'S NAME | E3: CASTE | F3: DOB | G3: DOA | H3: SEX | I3: MUSLIM | L3: TEL | M3: HIN | N3: ENG | O3: MAT | P3: SCI | Q3: SOC | R3: ATT | S3: TOTAL M | T3: MARKS % | V3: TEL | W3: HIN | X3: ENG | Y3: MAT | Z3: SCI | AA3: SOC
A4: 1 | B4: 3774 | C4: LUCKY MANKU | D4: KISHAN | E4: SC | F4: 2008-07-30 | G4: 2018-04-13 | H4: B | J4: =H4&E4 -> BSC | K4: =H4&I4 -> B | L4: 77 | M4: 68 | N4: 57 | O4: 49 | P4: 81 | Q4: 85 | R4: 168 | S4: =SUM(L4:Q4) -> 417 | T4: =S4/600% -> 69.5 | V4: =fgrade(L4) -> B1 | W4: =fgrade(M4) -> B2 | X4: =fgrade(N4) -> C1 | Y4: =fgrade(O4) -> C2 | Z4: =fgrade(P4) -> A2 | AA4: =fgrade(Q4) -> A2
A5: 2 | B5: 3775 | C5: SANTOSH MANKU | D5: BHASKER | E5: SC | F5: 2007-11-26 | G5: 2018-04-13 | H5: B | J5: BSC | K5: B | L5: 94 | M5: 38 | N5: 85 | O5: 97 | P5: 83 | Q5: 96 | R5: 185 | S5: =SUM(L5:Q5) -> 493 | T5: 82.16666667 | V5: A1 | W5: D | X5: A2 | Y5: A1 | Z5: A2 | AA5: A1
A6: 3 | B6: 3776 | C6: THARUN THIMMAGALLA | D6: MALLESH | E6: SC | F6: 2006-01-05 | G6: 2018-04-13 | H6: B | J6: BSC | K6: B | L6: 42 | M6: 68 | N6: 45 | O6: 40 | P6: 62 | Q6: 91 | R6: 187 | S6: 348 | T6: 58 | V6: =fgrade(L6) -> C2 | W6: B2 | X6: C2 | Y6: D | Z6: B2 | AA6: A1
A7: 4 | B7: 3777 | C7: SHIVASAI ANAMGALLA | D7: RAJU | E7: SC | F7: 2007-08-06 | G7: 2018-04-13 | H7: B | J7: BSC | K7: B | L7: 53 | M7: 64 | N7: 37 | O7: 43 | P7: 70 | Q7: 48 | R7: 202 | S7: 315 | T7: 52.5 | V7: C1 | W7: B2 | X7: D | Y7: C2 | Z7: B2 | AA7: C2
A8: 5 | B8: 3772 | C8: VENU ANUPATI | D8: SREENU | E8: SC | F8: 2007-07-14 | G8: 2018-06-01 | H8: B | J8: BSC | K8: B | L8: 35 | M8: 43 | N8: 100 | O8: 62 | P8: 90 | Q8: 42 | R8: 171 | S8: 372 | T8: 62 | V8: D | W8: C2 | X8: A1 | Y8: B2 | Z8: A2 | AA8: C2
A9: 6 | B9: 3799 | C9: HARIKUMAR MEGAVATH | D9: RAJU | E9: ST | F9: 2008-08-01 | G9: 2018-06-07 | H9: B | J9: BST | K9: B | L9: 48 | M9: 35 | N9: 97 | O9: 96 | P9: 44 | Q9: 97 | R9: 200 | S9: 417 | T9: 69.5 | V9: C2 | W9: D | X9: A1 | Y9: A1 | Z9: C2 | AA9: A1
A10: 7 | B10: 3801 | C10: SIDDU MEGAVATH | D10: BHASKER | E10: ST | F10: 2008-09-09 | G10: 2018-04-13 | H10: B | J10: BST | K10: B | L10: 94 | M10: 74 | N10: 54 | O10: 90 | P10: 46 | Q10: 65 | R10: 206 | S10: 423 | T10: 70.5 | V10: A1 | W10: B1 | X10: C1 | Y10: A2 | Z10: C2 | AA10: B2
A11: 8 | B11: 3807 | C11: VIJAY KUMAR MEGAVATH | D11: SREENU | E11: ST | F11: 2007-04-04 | G11: 2018-04-13 | H11: B | J11: BST | K11: B | L11: 100 | M11: 99 | N11: 47 | O11: 48 | P11: 100 | Q11: 64 | R11: 186 | S11: 458 | T11: 76.33333333 | V11: A1 | W11: A1 | X11: C2 | Y11: C2 | Z11: A1 | AA11: B2
A12: 9 | B12: 3806 | C12: RAMCHARAN SAPAVAT | D12: SREENU | E12: ST | F12: 2008-07-07 | G12: 2018-04-13 | H12: B | J12: BST | K12: B | L12: 94 | M12: 88 | N12: 91 | O12: 48 | P12: 83 | Q12: 58 | R12: 209 | S12: 462 | T12: 77 | V12: A1 | W12: A2 | X12: A1 | Y12: C2 | Z12: A2 | AA12: C1
A13: 10 | B13: 3831 | C13: SANTOSH MEGAVATH | D13: RAVI | E13: ST | F13: 2005-06-05 | G13: 2018-04-13 | H13: B | J13: BST | K13: B | L13: 79 | M13: 35 | N13: 85 | O13: 95 | P13: 50 | Q13: 44 | R13: 159 | S13: 388 | T13: 64.66666667 | V13: B1 | W13: D | X13: A2 | Y13: A1 | Z13: C2 | AA13: C2
A14: 11 | B14: 3366 | C14: SANDEEP MEGAVATH | E14: ST | F14: 2005-06-06 | H14: B | J14: BST | K14: B | L14: 95 | M14: 46 | N14: 49 | O14: 47 | P14: 97 | Q14: 68 | R14: 198 | S14: 402 | T14: 67 | V14: A1 | W14: C2 | X14: C2 | Y14: C2 | Z14: A1 | AA14: B2
S15: 0 | T15: 0
S16: 0 | T16: 0
S17: 0 | T17: 0
S18: 0 | T18: 0
S19: 0 | T19: 0
S20: 0 | T20: 0
S21: 0 | T21: 0
S22: 0 | T22: 0
S23: 0 | T23: 0
S24: 0 | T24: 0
S25: 0 | T25: 0
S26: 0 | T26: 0
S27: 0 | T27: 0
S28: 0 | T28: 0
S29: 0 | T29: 0
S30: 0 | T30: 0
J31: =H31&E31 ->  | K31: =H31&I31 ->  | S31: 0 | T31: 0
S32: 0 | T32: 0
S33: 0 | T33: 0
S34: 0 | T34: 0
S35: 0 | T35: 0
S36: =SUM(L36:Q36) -> 0 | T36: =S36/600% -> 0
S37: 0 | T37: 0
S38: 0 | T38: 0
S39: 0 | T39: 0
S40: 0 | T40: 0
S41: 0 | T41: 0
S42: 0 | T42: 0
S43: 0 | T43: 0
S44: 0 | T44: 0
S45: 0 | T45: 0
S46: 0 | T46: 0
S47: 0 | T47: 0
S48: 0 | T48: 0
S49: 0 | T49: 0
S50: 0 | T50: 0
S51: 0 | T51: 0
S52: 0 | T52: 0
S53: 0 | T53: 0
S54: 0 | T54: 0
S55: 0 | T55: 0
S56: 0 | T56: 0
S57: 0 | T57: 0
S58: 0 | T58: 0
S59: 0 | T59: 0
S60: 0 | T60: 0
S61: 0 | T61: 0
S62: 0 | T62: 0
J63: =H63&E63 ->  | K63: =H63&I63 ->  | S63: 0 | T63: 0
S64: 0 | T64: 0
S65: 0 | T65: 0
S66: 0 | T66: 0
S67: 0 | T67: 0
S68: =SUM(L68:Q68) -> 0 | T68: =S68/600% -> 0
S69: 0 | T69: 0
S70: 0 | T70: 0
S71: 0 | T71: 0
S72: 0 | T72: 0
S73: 0 | T73: 0
S74: 0 | T74: 0
S75: 0 | T75: 0
S76: 0 | T76: 0
S77: 0 | T77: 0
S78: 0 | T78: 0
S79: 0 | T79: 0
S80: 0 | T80: 0
S81: 0 | T81: 0
S82: 0 | T82: 0
S83: 0 | T83: 0
S84: 0 | T84: 0
S85: 0 | T85: 0
S86: 0 | T86: 0
S87: 0 | T87: 0
S88: 0 | T88: 0
S89: 0 | T89: 0
S90: 0 | T90: 0
S91: 0 | T91: 0
S92: 0 | T92: 0
S93: 0 | T93: 0
S94: 0 | T94: 0
J95: =H95&E95 ->  | K95: =H95&I95 ->  | S95: 0 | T95: 0
S96: 0 | T96: 0
S97: 0 | T97: 0
S98: 0 | T98: 0
S99: 0 | T99: 0
S100: =SUM(L100:Q100) -> 0 | T100: =S100/600% -> 0
S101: 0 | T101: 0
S102: 0 | T102: 0
S103: 0 | T103: 0
S104: 0 | T104: 0
S105: 0 | T105: 0
S106: 0 | T106: 0
S107: 0 | T107: 0
S108: 0 | T108: 0
S109: 0 | T109: 0
S110: 0 | T110: 0
S111: 0 | T111: 0
S112: 0 | T112: 0
S113: 0 | T113: 0
S114: 0 | T114: 0
S115: 0 | T115: 0
S116: 0 | T116: 0
S117: 0 | T117: 0
S118: 0 | T118: 0
S119: 0 | T119: 0
S120: 0 | T120: 0
S121: 0 | T121: 0
S122: 0 | T122: 0
S123: 0 | T123: 0
S124: 0 | T124: 0
S125: 0 | T125: 0
S126: 0 | T126: 0
J127: =H127&E127 ->  | K127: =H127&I127 ->  | S127: 0 | T127: 0
S128: 0 | T128: 0
S129: 0 | T129: 0
S130: 0 | T130: 0
S131: 0 | T131: 0
S132: =SUM(L132:Q132) -> 0 | T132: =S132/600% -> 0
S133: 0 | T133: 0
S134: 0 | T134: 0
S135: 0 | T135: 0
S136: 0 | T136: 0
S137: 0 | T137: 0
S138: 0 | T138: 0
S139: 0 | T139: 0
S140: 0 | T140: 0
S141: 0 | T141: 0
S142: 0 | T142: 0
S143: 0 | T143: 0
S144: 0 | T144: 0
S145: 0 | T145: 0
S146: 0 | T146: 0
S147: 0 | T147: 0
S148: 0 | T148: 0
S149: 0 | T149: 0
S150: 0 | T150: 0
S151: 0 | T151: 0
S152: 0 | T152: 0
S153: 0 | T153: 0
A154: . | Q154: ATB | R154: ATB
A155: . | B155: BOYS | C155: GIRLS | D155: TOTAL | Q155: =SUMIF(H4:H153,"B",R4:R153) -> 2071 | R155: =SUMIF(H4:H153,"G",R4:R153) -> 0 | S155: =SUM(Q155:R155) -> 2071
A156: SC | B156: =COUNTIF($J$4:$J$153,"BSC") -> 5 | C156: =COUNTIF($J$4:$J$153,"GSC") -> 0 | D156: =SUM(B156:C156) -> 5
A157: ST | B157: =COUNTIF($J$4:$J$153,"BST") -> 6 | C157: =COUNTIF($J$4:$J$153,"GST") -> 0 | D157: =SUM(B157:C157) -> 6
A158: BC | B158: =COUNTIF($J$4:$J$153,"BBC") -> 0 | C158: =COUNTIF($J$4:$J$153,"GBC") -> 0 | D158: =SUM(B158:C158) -> 0 | F158: MIN BOY | G158: MIN GIRL
A159: OC | B159: =COUNTIF($J$4:$J$153,"BOC") -> 0 | C159: =COUNTIF($J$4:$J$153,"GOC") -> 0 | D159: =SUM(B159:C159) -> 0 | F159: =COUNTIF(K4:K153,"BY") -> 0 | G159: =COUNTIF(K4:K153,"GY") -> 0
A160: TOTAL | B160: =SUM(B156:B159) -> 11 | C160: =SUM(C156:C159) -> 0 | D160: =SUM(B160:C160) -> 11

Sheet VIITM
A1: VIITM-2018-19
A2: =RIGHT(CELL("filename",C3),LEN(CELL("filename",C3))-FIND("]",CELL("filename",C3))) -> VIITM | V2: GRADES
A3: RNO | B3: ADMN NO | C3: NAME OF THE STUDENT | D3: FATHER'S NAME | E3: CASTE | F3: DOB | G3: DOA | H3: SEX | I3: MUSLIM | L3: TEL | M3: HIN | N3: ENG | O3: MAT | P3: SCI | Q3: SOC | R3: ATT | S3: TOTAL M | T3: MARKS % | V3: TEL | W3: HIN | X3: ENG | Y3: MAT | Z3: SCI | AA3: SOC
A4: 1 | B4: 3672 | C4: AJAY POLIMONI | D4: SATHAIAH | E4: BC | F4: 2006-05-12 | G4: 2017-04-03 | H4: B | J4: =TRIM(H4&E4) -> BBC | K4: =H4&I4 -> B | L4: 87 | M4: 46 | N4: 93 | O4: 63 | P4: 54 | Q4: 90 | R4: 207 | S4: =SUM(L4:Q4) -> 433 | T4: =S4/600% -> 72.16666667 | V4: =fgrade(L4) -> A2 | W4: =fgrade(M4) -> C2 | X4: =fgrade(N4) -> A1 | Y4: =fgrade(O4) -> B2 | Z4: =fgrade(P4) -> C1 | AA4: =fgrade(Q4) -> A2
A5: 2 | B5: 3673 | C5: AKASH TAVITI | D5: YADAGIRI | E5: BC | F5: 2006-01-29 | G5: 2017-04-03 | H5: B | J5: =TRIM(H5&E5) -> BBC | K5: =H5&I5 -> B | L5: 98 | M5: 82 | N5: 66 | O5: 66 | P5: 53 | Q5: 69 | R5: 193 | S5: =SUM(L5:Q5) -> 434 | T5: 72.33333333 | V5: =fgrade(L5) -> A1 | W5: =fgrade(M5) -> A2 | X5: =fgrade(N5) -> B2 | Y5: =fgrade(O5) -> B2 | Z5: =fgrade(P5) -> C1 | AA5: =fgrade(Q5) -> B2
A6: 3 | B6: 3701 | C6: ANIL JATROTH | D6: HARIYA | E6: ST | F6: 2006-01-01 | G6: 2017-06-12 | H6: B | J6: BST | K6: B | L6: 57 | M6: 87 | N6: 35 | O6: 41 | P6: 51 | Q6: 81 | R6: 204 | S6: 352 | T6: 58.66666667 | V6: C1 | W6: A2 | X6: D | Y6: C2 | Z6: C1 | AA6: A2
A7: 4 | B7: 3674 | C7: ARAVINDH THIMMAGALLA | D7: GALAIAH | E7: SC | F7: 2006-05-02 | G7: 2017-04-03 | H7: B | J7: =TRIM(H7&E7) -> BSC | K7: =H7&I7 -> B | L7: 53 | M7: 62 | N7: 80 | O7: 74 | P7: 90 | Q7: 83 | R7: 190 | S7: 442 | T7: 73.66666667 | V7: C1 | W7: B2 | X7: B1 | Y7: B1 | Z7: A2 | AA7: A2
A8: 5 | B8: 3679 | C8: CHANDRASHEKAR BADRAMONI | D8: MALLESH | E8: BC | F8: 2006-04-13 | G8: 2017-04-03 | H8: B | J8: BBC | K8: B | L8: 56 | M8: 58 | N8: 65 | O8: 37 | P8: 82 | Q8: 45 | R8: 193 | S8: 343 | T8: 57.16666667 | V8: C1 | W8: C1 | X8: B2 | Y8: D | Z8: A2 | AA8: C2
A9: 6 | B9: 3671 | C9: CHANDU TALARI | D9: NARSIMHA | E9: BC | F9: 2004-01-01 | G9: 2017-04-03 | H9: B | J9: BBC | K9: B | L9: 69 | M9: 61 | N9: 66 | O9: 67 | P9: 55 | Q9: 64 | R9: 210 | S9: 382 | T9: 63.66666667 | V9: B2 | W9: B2 | X9: B2 | Y9: B2 | Z9: C1 | AA9: B2
A10: 7 | B10: 3715 | C10: CHINTU MEGAVATH | D10: RAVI | E10: ST | F10: 2007-03-02 | G10: 2017-06-20 | H10: B | J10: BST | K10: B | L10: 88 | M10: 84 | N10: 50 | O10: 74 | P10: 82 | Q10: 59 | R10: 202 | S10: 437 | T10: 72.83333333 | V10: A2 | W10: A2 | X10: C2 | Y10: B1 | Z10: A2 | AA10: C1
A11: 8 | B11: 3683 | C11: CHINTU VARTHYA | D11: SRINU | E11: ST | F11: 2008-06-24 | G11: 2017-04-04 | H11: B | J11: BST | K11: B | L11: 92 | M11: 90 | N11: 35 | O11: 47 | P11: 39 | Q11: 95 | R11: 204 | S11: 398 | T11: 66.33333333 | V11: =fgrade(L11) -> A1 | W11: A2 | X11: D | Y11: C2 | Z11: D | AA11: A1
A12: 9 | B12: 3681 | C12: KARTHIK VARIKUPPALA | D12: JANGAIAH | E12: BC | F12: 2007-08-09 | G12: 2017-04-03 | H12: B | J12: BBC | K12: B | L12: 90 | M12: 50 | N12: 69 | O12: 97 | P12: 36 | Q12: 39 | R12: 194 | S12: 381 | T12: 63.5 | V12: A2 | W12: C2 | X12: B2 | Y12: A1 | Z12: D | AA12: D
A13: 10 | B13: 3752 | C13: KIRAN KUMAR MEGAVATH | D13: HANUMA | E13: ST | F13: 2007-08-09 | G13: 2017-04-03 | H13: B | J13: BST | K13: B | L13: 81 | M13: 87 | N13: 80 | O13: 80 | P13: 52 | Q13: 45 | R13: 177 | S13: 425 | T13: 70.83333333 | V13: A2 | W13: A2 | X13: B1 | Y13: B1 | Z13: C1 | AA13: C2
A14: 11 | B14: 3706 | C14: MUKESH JOGU | D14: BUGGARAMULU | E14: SC | F14: 2007-03-15 | G14: 2017-06-15 | H14: B | J14: BSC | K14: B | L14: 55 | M14: 37 | N14: 51 | O14: 49 | P14: 78 | Q14: 73 | R14: 153 | S14: 343 | T14: 57.16666667 | V14: C1 | W14: D | X14: C1 | Y14: C2 | Z14: B1 | AA14: B1
A15: 12 | B15: 3764 | C15: PAVAN KALYAN ANGOTH | D15: KISHAN | E15: ST | F15: 2017-08-20 | G15: 2017-11-27 | H15: B | J15: BST | K15: B | L15: 45 | M15: 48 | N15: 52 | O15: 92 | P15: 62 | Q15: 57 | R15: 181 | S15: 356 | T15: 59.33333333 | V15: C2 | W15: C2 | X15: C1 | Y15: A1 | Z15: B2 | AA15: C1
A16: 13 | B16: 3733 | C16: RAKESH MEGAVATH | D16: MOHAN | E16: ST | F16: 2008-05-20 | G16: 2017-06-28 | H16: B | J16: BST | K16: B | L16: 67 | M16: 94 | N16: 42 | O16: 81 | P16: 55 | Q16: 59 | R16: 202 | S16: 398 | T16: 66.33333333 | V16: B2 | W16: A1 | X16: C2 | Y16: A2 | Z16: C1 | AA16: C1
A17: 14 | B17: 3678 | C17: RAKESH VARIKUPPALA | D17: JANGAIAH | E17: BC | F17: 2006-02-10 | G17: 2017-04-03 | H17: B | J17: BBC | K17: B | L17: 85 | M17: 92 | N17: 43 | O17: 49 | P17: 100 | Q17: 76 | R17: 196 | S17: 445 | T17: 74.16666667 | V17: A2 | W17: A1 | X17: C2 | Y17: C2 | Z17: A1 | AA17: B1
A18: 15 | B18: 3846 | C18: RAMESH JILAMONI | D18: GALAIAH | E18: BC | F18: 2006-09-25 | G18: 2018-06-29 | H18: B | J18: BBC | K18: B | L18: 87 | M18: 78 | N18: 75 | O18: 94 | P18: 35 | Q18: 99 | R18: 174 | S18: 468 | T18: 78 | V18: A2 | W18: B1 | X18: B1 | Y18: A1 | Z18: D | AA18: A1
A19: 16 | B19: 3852 | C19: SAIKUMAR RAMAVATH | D19: NANU | E19: ST | F19: 29-2-7 | G19: 2018-07-09 | H19: B | J19: BST | K19: B | L19: 64 | M19: 37 | N19: 81 | O19: 72 | P19: 58 | Q19: 66 | R19: 165 | S19: 378 | T19: 63 | V19: B2 | W19: D | X19: A2 | Y19: B1 | Z19: C1 | AA19: B2
A20: 17 | B20: 3680 | C20: SATYA GANESH KASULA | D20: JANGAIAH | E20: BC | F20: 2006-01-29 | G20: 2017-04-03 | H20: B | J20: BBC | K20: B | L20: 59 | M20: 35 | N20: 37 | O20: 66 | P20: 89 | Q20: 72 | R20: 160 | S20: 358 | T20: 59.66666667 | V20: C1 | W20: D | X20: D | Y20: B2 | Z20: A2 | AA20: B1
A21: 18 | B21: 3676 | C21: SHIVA JITTAMONI | D21: NARSIMHA | E21: BC | F21: 2005-06-17 | G21: 2017-04-03 | H21: B | J21: BBC | K21: B | L21: 72 | M21: 83 | N21: 39 | O21: 54 | P21: 47 | Q21: 91 | R21: 166 | S21: 386 | T21: 64.33333333 | V21: B1 | W21: A2 | X21: D | Y21: C1 | Z21: C2 | AA21: A1
A22: 19 | B22: 3655 | C22: SHIVA VARTHYA | D22: SRINU | E22: ST | F22: 2005-08-21 | G22: 2017-03-27 | H22: B | J22: BST | K22: B | L22: 62 | M22: 86 | N22: 35 | O22: 56 | P22: 47 | Q22: 66 | R22: 164 | S22: 352 | T22: 58.66666667 | V22: B2 | W22: A2 | X22: D | Y22: C1 | Z22: C2 | AA22: B2
A23: 20 | B23: 3682 | C23: SHIVAKUMAR BODRAMONI | D23: JESHNAIAH | E23: BC | F23: 2005-01-16 | G23: 2017-04-03 | H23: B | J23: BBC | K23: B | L23: 43 | M23: 54 | N23: 81 | O23: 89 | P23: 64 | Q23: 87 | R23: 181 | S23: 418 | T23: 69.66666667 | V23: C2 | W23: C1 | X23: A2 | Y23: A2 | Z23: B2 | AA23: A2
A24: 21 | B24: 3710 | C24: SIKINDER RAMAVATH | D24: SHANKER | E24: ST | F24: 2006-08-12 | G24: 2017-06-17 | H24: B | J24: BST | K24: B | L24: 54 | M24: 90 | N24: 63 | O24: 61 | P24: 81 | Q24: 54 | R24: 210 | S24: 403 | T24: 67.16666667 | V24: C1 | W24: A2 | X24: B2 | Y24: B2 | Z24: A2 | AA24: C1
A25: 22 | B25: 3695 | C25: SRIKANTH NENAVATH | D25: SHANKER | E25: ST | F25: 2006-06-14 | G25: 2017-04-06 | H25: B | J25: BST | K25: B | L25: 36 | M25: 91 | N25: 66 | O25: 43 | P25: 72 | Q25: 40 | R25: 163 | S25: 348 | T25: 58 | V25: D | W25: A1 | X25: B2 | Y25: C2 | Z25: B1 | AA25: D
A26: 23 | B26: 3704 | C26: SRIKANTH PUJARI | D26: KRISHNA | E26: BC | F26: 2007-08-21 | G26: 2017-06-14 | H26: B | J26: BBC | K26: B | L26: 74 | M26: 89 | N26: 93 | O26: 96 | P26: 83 | Q26: 91 | R26: 170 | S26: 526 | T26: 87.66666667 | V26: B1 | W26: A2 | X26: A1 | Y26: A1 | Z26: A2 | AA26: A1
A27: 24 | B27: 3728 | C27: SRINIVAS SABHAVATH | D27: GOTYA | E27: ST | F27: 2005-06-13 | G27: 2017-06-22 | H27: B | J27: BST | K27: B | L27: 55 | M27: 87 | N27: 98 | O27: 73 | P27: 61 | Q27: 84 | R27: 204 | S27: 458 | T27: 76.33333333 | V27: C1 | W27: A2 | X27: A1 | Y27: B1 | Z27: B2 | AA27: A2
A28: 25 | B28: 3675 | C28: VAMSHI JILAMONI | D28: ASHOK | E28: BC | F28: 2005-12-19 | G28: 2017-04-03 | H28: B | J28: BBC | K28: B | L28: 94 | M28: 74 | N28: 82 | O28: 54 | P28: 86 | Q28: 58 | R28: 169 | S28: 448 | T28: 74.66666667 | V28: A1 | W28: B1 | X28: A2 | Y28: C1 | Z28: A2 | AA28: C1
A29: 26 | B29: 3827 | C29: VENKATESH MEGAVATH | D29: SHANKER | E29: ST | F29: 2005-06-05 | G29: 2018-06-18 | H29: B | J29: BST | K29: B | L29: 35 | M29: 94 | N29: 76 | O29: 87 | P29: 99 | Q29: 46 | R29: 170 | S29: 437 | T29: 72.83333333 | V29: D | W29: A1 | X29: B1 | Y29: A2 | Z29: A1 | AA29: C2
A30: 27 | B30: 3694 | C30: YADAGIRI JILAMONI | D30: NARSIMHA | E30: BC | F30: 2005-06-09 | G30: 2017-04-06 | H30: B | J30: BBC | K30: B | L30: 47 | M30: 100 | N30: 69 | O30: 95 | P30: 35 | Q30: 35 | R30: 151 | S30: 381 | T30: 63.5 | V30: C2 | W30: A1 | X30: B2 | Y30: A1 | Z30: D | AA30: D
S31: =SUM(L31:R31) -> 0 | T31: 0
S32: 0 | T32: 0
S33: 0 | T33: 0
S34: 0 | T34: 0
S35: 0 | T35: 0
S36: 0 | T36: 0
S37: 0 | T37: 0
S38: 0 | T38: 0
S39: 0 | T39: 0
S40: 0 | T40: 0
S41: 0 | T41: 0
S42: 0 | T42: 0
S43: 0 | T43: 0
S44: 0 | T44: 0
S45: 0 | T45: 0
S46: 0 | T46: 0
S47: 0 | T47: 0
S48: 0 | T48: 0
S49: 0 | T49: 0
S50: 0 | T50: 0
S51: 0 | T51: 0
S52: 0 | T52: 0
S53: 0 | T53: 0
S54: 0 | T54: 0
S55: 0 | T55: 0
S56: 0 | T56: 0
S57: 0 | T57: 0
S58: =SUM(L58:Q58) -> 0 | T58: 0
S59: 0 | T59: 0
S60: 0 | T60: 0
J61: =TRIM(H61&E61) ->  | K61: =H61&I61 ->  | S61: 0 | T61: 0
S62: =SUM(L62:Q62) -> 0 | T62: =S62/600% -> 0
S63: 0 | T63: 0
S64: 0 | T64: 0
S65: 0 | T65: 0
S66: 0 | T66: 0
S67: 0 | T67: 0
S68: 0 | T68: 0
S69: 0 | T69: 0 | V69: =fgrade(L69) ->  | W69: =fgrade(M69) ->  | X69: =fgrade(N69) ->  | Y69: =fgrade(O69) ->  | Z69: =fgrade(P69) ->  | AA69: =fgrade(Q69) -> 
S70: 0 | T70: 0
S71: 0 | T71: 0
S72: 0 | T72: 0
S73: =SUM(L73:Q73) -> 0 | T73: 0
S74: 0 | T74: 0
S75: 0 | T75: 0
S76: 0 | T76: 0
S77: 0 | T77: 0
S78: 0 | T78: 0
S79: 0 | T79: 0
S80: 0 | T80: 0
S81: 0 | T81: 0
S82: 0 | T82: 0
S83: 0 | T83: 0
S84: 0 | T84: 0
S85: 0 | T85: 0
S86: 0 | T86: 0
S87: 0 | T87: 0
S88: 0 | T88: 0
S89: 0 | T89: 0
S90: 0 | T90: 0
S91: 0 | T91: 0
S92: 0 | T92: 0
S93: 0 | T93: 0
S94: 0 | T94: 0
S95: 0 | T95: 0
S96: 0 | T96: 0
S97: 0 | T97: 0
S98: 0 | T98: 0
S99: 0 | T99: 0
S100: 0 | T100: 0
S101: 0 | T101: 0
S102: 0 | T102: 0
S103: 0 | T103: 0
S104: 0 | T104: 0
S105: 0 | T105: 0
S106: 0 | T106: 0
S107: 0 | T107: 0
S108: 0 | T108: 0
S109: 0 | T109: 0
S110: 0 | T110: 0
S111: 0 | T111: 0
S112: 0 | T112: 0
S113: 0 | T113: 0
S114: 0 | T114: 0
S115: 0 | T115: 0
S116: 0 | T116: 0
S117: 0 | T117: 0
S118: 0 | T118: 0
S119: 0 | T119: 0
S120: 0 | T120: 0
S121: 0 | T121: 0
S122: 0 | T122: 0
S123: 0 | T123: 0
S124: 0 | T124: 0
J125: =TRIM(H125&E125) ->  | K125: =H125&I125 ->  | S125: 0 | T125: 0
S126: =SUM(L126:Q126) -> 0 | T126: =S126/600% -> 0
S127: 0 | T127: 0
S128: 0 | T128: 0
S129: 0 | T129: 0
S130: 0 | T130: 0
S131: 0 | T131: 0
S132: 0 | T132: 0
S133: 0 | T133: 0 | V133: =fgrade(L133) ->  | W133: =fgrade(M133) ->  | X133: =fgrade(N133) ->  | Y133: =fgrade(O133) ->  | Z133: =fgrade(P133) ->  | AA133: =fgrade(Q133) -> 
S134: 0 | T134: 0
S135: 0 | T135: 0
S136: 0 | T136: 0
S137: 0 | T137: 0
S138: 0 | T138: 0
S139: =SUM(L139:Q139) -> 0 | T139: =S139/600% -> 0 | V139: =fgrade(L139) ->  | W139: =fgrade(M139) ->  | X139: =fgrade(N139) ->  | Y139: =fgrade(O139) ->  | Z139: =fgrade(P139) ->  | AA139: =fgrade(Q139) -> 
S140: 0 | T140: 0
S141: 0 | T141: 0
S142: 0 | T142: 0
S143: 0 | T143: 0
S144: 0 | T144: 0
S145: 0 | T145: 0
S146: 0 | T146: 0
S147: 0 | T147: 0
S148: 0 | T148: 0
S149: 0 | T149: 0
S150: 0 | T150: 0
S151: 0 | T151: 0
S152: 0 | T152: 0
S153: 0 | T153: 0
A154: . | Q154: ATB | R154: ATB
A155: . | B155: BOYS | C155: GIRLS | D155: TOTAL | Q155: =SUMIF(H4:H153,"B",R4:R153) -> 4953 | R155: =SUMIF(H4:H153,"G",R4:R153) -> 0 | S155: =SUM(Q155:R155) -> 4953
A156: SC | B156: =COUNTIF($J$4:$J$153,"BSC") -> 2 | C156: =COUNTIF($J$4:$J$153,"GSC") -> 0 | D156: =SUM(B156:C156) -> 2
A157: ST | B157: =COUNTIF($J$4:$J$153,"BST") -> 12 | C157: =COUNTIF($J$4:$J$153,"GST") -> 0 | D157: =SUM(B157:C157) -> 12
A158: BC | B158: =COUNTIF($J$4:$J$153,"BBC") -> 13 | C158: =COUNTIF($J$4:$J$153,"GBC") -> 0 | D158: =SUM(B158:C158) -> 13 | F158: MIN BOY | G158: MIN GIRL
A159: OC | B159: =COUNTIF($J$4:$J$153,"BOC") -> 0 | C159: =COUNTIF($J$4:$J$153,"GOC") -> 0 | D159: =SUM(B159:C159) -> 0 | F159: =COUNTIF(K4:K153,"BY") -> 0 | G159: =COUNTIF(K4:K153,"GY") -> 0
A160: TOTAL | B160: =SUM(B156:B159) -> 27 | C160: =SUM(C156:C159) -> 0 | D160: =SUM(B160:C160) -> 27

Sheet VIIITM
A1: VIIITM-2018-19
A2: =RIGHT(CELL("filename",C2),LEN(CELL("filename",C2))-FIND("]",CELL("filename",C2))) -> VIIITM | V2: GRADES
A3: RNO | B3: ADMN NO | C3: NAME OF THE STUDENT | D3: FATHER'S NAME | E3: CASTE | F3: DOB | G3: DOA | H3: SEX | I3: MUSLIM | L3: TEL | M3: HIN | N3: ENG | O3: MAT | P3: SCI | Q3: SOC | R3: ATT | S3: TOTAL M | T3: MARKS % | V3: TEL | W3: HIN | X3: ENG | Y3: MAT | Z3: SCI | AA3: SOC
A4: 1 | B4: 3785 | C4: ARAVIND PALLE | D4: SHANKARAIAH | E4: BC | F4: 2006-08-03 | G4: 2018-06-06 | H4: B | J4: =H4&E4 -> BBC | K4: =H4&I4 -> B | L4: 91 | M4: 81 | N4: 61 | O4: 45 | P4: 55 | Q4: 96 | R4: 169 | S4: =SUM(L4:Q4) -> 429 | T4: =S4/600% -> 71.5 | V4: =fgrade(L4) -> A1 | W4: =fgrade(M4) -> A2 | X4: B2 | Y4: C2 | Z4: C1 | AA4: =fgrade(Q4) -> A1
A5: 2 | B5: 3512 | C5: BHANU PRAKASH SURINILLA | D5: VENKATESH | E5: BC | F5: 2005-10-12 | G5: 2016-06-15 | H5: B | J5: BBC | K5: B | L5: 99 | M5: 48 | N5: 37 | O5: 55 | P5: 71 | Q5: 48 | R5: 184 | S5: =SUM(L5:Q5) -> 358 | T5: =S5/600% -> 59.66666667 | V5: =fgrade(L5) -> A1 | W5: =fgrade(M5) -> C2 | X5: =fgrade(N5) -> D | Y5: =fgrade(O5) -> C1 | Z5: =fgrade(P5) -> B1 | AA5: =fgrade(Q5) -> C2
A6: 3 | B6: 3581 | C6: BHARATH TIMMAGALLA | D6: JANGAIAH | E6: SC | F6: 2005-06-18 | G6: 2016-06-22 | H6: B | J6: BSC | K6: B | L6: 97 | M6: 60 | N6: 94 | O6: 65 | P6: 36 | Q6: 100 | R6: 160 | S6: 452 | T6: 75.33333333 | V6: A1 | W6: C1 | X6: A1 | Y6: B2 | Z6: D | AA6: A1
A7: 4 | B7: 3503 | C7: KARTHIK MANKU | D7: PENTAIAH | E7: SC | F7: 2006-07-13 | G7: 2016-06-15 | H7: B | J7: BSC | K7: B | L7: 48 | M7: 81 | N7: 76 | O7: 90 | P7: 85 | Q7: 74 | R7: 179 | S7: 454 | T7: 75.66666667 | V7: C2 | W7: A2 | X7: B1 | Y7: A2 | Z7: A2 | AA7: B1
A8: 5 | B8: 3548 | C8: KIRANKUMAR BANDOTH | D8: SRINU | E8: ST | F8: 2005-02-10 | G8: 2016-06-17 | H8: B | J8: BST | K8: B | L8: 38 | M8: 75 | N8: 65 | O8: 60 | P8: 48 | Q8: 72 | R8: 190 | S8: 358 | T8: 59.66666667 | V8: D | W8: B1 | X8: B2 | Y8: C1 | Z8: C2 | AA8: B1
A9: 6 | B9: 3540 | C9: MOHAN KATROTH | D9: DASU | E9: ST | F9: 2005-08-14 | G9: 2016-06-16 | H9: B | J9: BST | K9: B | L9: 39 | M9: 44 | N9: 36 | O9: 87 | P9: 49 | Q9: 75 | R9: 180 | S9: 330 | T9: 55 | V9: D | W9: C2 | X9: D | Y9: A2 | Z9: C2 | AA9: B1
A10: 7 | B10: 3593 | C10: NARENDER KARAMTOTH | D10: LAKMA | E10: ST | F10: 2005-10-30 | G10: 2016-06-23 | H10: B | J10: BST | K10: B | L10: 74 | M10: 57 | N10: 54 | O10: 55 | P10: 61 | Q10: 84 | R10: 160 | S10: 385 | T10: 64.16666667 | V10: B1 | W10: C1 | X10: C1 | Y10: C1 | Z10: B2 | AA10: A2
A11: 8 | B11: 3506 | C11: OMPRASAD PALAMONI | D11: SATHAIAH | E11: BC | F11: 2005-04-09 | G11: 2016-06-15 | H11: B | J11: BBC | K11: B | L11: 49 | M11: 53 | N11: 94 | O11: 83 | P11: 90 | Q11: 70 | R11: 208 | S11: 439 | T11: 73.16666667 | V11: C2 | W11: C1 | X11: A1 | Y11: A2 | Z11: A2 | AA11: B2
A12: 9 | B12: 3513 | C12: PRAKASH MANKU | D12: NARSIMHA | E12: SC | F12: 2006-06-19 | G12: 2016-06-15 | H12: B | J12: BSC | K12: B | L12: 42 | M12: 42 | N12: 81 | O12: 89 | P12: 57 | Q12: 44 | R12: 173 | S12: 355 | T12: 59.16666667 | V12: C2 | W12: C2 | X12: A2 | Y12: A2 | Z12: C1 | AA12: C2
A13: 10 | B13: 3538 | C13: PRAVEEN SAPAVAT | D13: SHANKAR | E13: ST | F13: 2005-10-10 | G13: 2016-06-16 | H13: B | J13: BST | K13: B | L13: 46 | M13: 81 | N13: 37 | O13: 91 | P13: 70 | Q13: 97 | R13: 180 | S13: 422 | T13: 70.33333333 | V13: C2 | W13: A2 | X13: D | Y13: A1 | Z13: B2 | AA13: A1
A14: 11 | B14: 3803 | C14: RAGHAVA NALLA | D14: SATYAM | E14: SC | F14: 2006-08-23 | G14: 2018-06-11 | H14: B | J14: BSC | K14: B | L14: 52 | M14: 89 | N14: 38 | O14: 55 | P14: 100 | Q14: 61 | R14: 168 | S14: 395 | T14: 65.83333333 | V14: C1 | W14: A2 | X14: D | Y14: C1 | Z14: A1 | AA14: B2
A15: 12 | B15: 3602 | C15: RAGHU VANKUDOTH | D15: PANDU | E15: ST | F15: 2006-09-30 | G15: 2016-06-27 | H15: B | J15: BST | K15: B | L15: 71 | M15: 90 | N15: 75 | O15: 44 | P15: 90 | Q15: 44 | R15: 163 | S15: 414 | T15: 69 | V15: B1 | W15: A2 | X15: B1 | Y15: C2 | Z15: A2 | AA15: C2
A16: 13 | B16: 3505 | C16: RAJU MEGAVATH | D16: FAQEERA | E16: ST | F16: 2004-02-15 | G16: 2016-06-15 | H16: B | J16: BST | K16: B | L16: 72 | M16: 55 | N16: 39 | O16: 94 | P16: 62 | Q16: 78 | R16: 180 | S16: 400 | T16: 66.66666667 | V16: B1 | W16: C1 | X16: D | Y16: A1 | Z16: B2 | AA16: B1
A17: 14 | B17: 3577 | C17: RAKESH KALLA | D17: JANGAIAH | E17: SC | F17: 2005-04-05 | G17: 2016-06-21 | H17: B | J17: BSC | K17: B | L17: 90 | M17: 67 | N17: 94 | O17: 65 | P17: 86 | Q17: 39 | R17: 158 | S17: 441 | T17: 73.5 | V17: A2 | W17: B2 | X17: A1 | Y17: B2 | Z17: A2 | AA17: D
A18: 15 | B18: 3515 | C18: RAKESH NUKAM | D18: LAXMAIAH | E18: BC | F18: 2005-11-04 | G18: 2016-06-15 | H18: B | J18: BBC | K18: B | L18: 60 | M18: 61 | N18: 89 | O18: 71 | P18: 71 | Q18: 75 | R18: 180 | S18: 427 | T18: 71.16666667 | V18: C1 | W18: B2 | X18: A2 | Y18: B1 | Z18: B1 | AA18: B1
A19: 16 | B19: 3844 | C19: RAKESH UDAVATH | D19: LAKKA | E19: ST | F19: 2006-06-21 | G19: 2018-06-26 | H19: B | J19: BST | K19: B | L19: 43 | M19: 50 | N19: 86 | O19: 36 | P19: 92 | Q19: 45 | R19: 191 | S19: 352 | T19: 58.66666667 | V19: C2 | W19: C2 | X19: A2 | Y19: D | Z19: A1 | AA19: C2
A20: 17 | B20: 3539 | C20: RAMESH MEGAVATH | D20: BUGGA | E20: ST | F20: 2003-12-10 | G20: 2016-06-16 | H20: B | J20: BST | K20: B | L20: 62 | M20: 80 | N20: 58 | O20: 36 | P20: 43 | Q20: 99 | R20: 172 | S20: 378 | T20: 63 | V20: B2 | W20: B1 | X20: C1 | Y20: D | Z20: C2 | AA20: A1
A21: 18 | B21: 3566 | C21: RAVINDER BUNGAMATTA | D21: VENKATAIAH | E21: BC | F21: 2005-08-06 | G21: 2016-06-20 | H21: B | J21: BBC | K21: B | L21: 89 | M21: 80 | N21: 78 | O21: 38 | P21: 87 | Q21: 51 | R21: 189 | S21: 423 | T21: 70.5 | V21: A2 | W21: B1 | X21: B1 | Y21: D | Z21: A2 | AA21: C1
A22: 19 | B22: 3576 | C22: RAVINDER KORRA | D22: MANGYA | E22: ST | F22: 2005-04-20 | G22: 2016-06-21 | H22: B | J22: BST | K22: B | L22: 39 | M22: 93 | N22: 82 | O22: 78 | P22: 40 | Q22: 42 | R22: 190 | S22: 374 | T22: 62.33333333 | V22: D | W22: A1 | X22: A2 | Y22: B1 | Z22: D | AA22: C2
A23: 20 | B23: 3380 | C23: SHIVA MEGAVATH | D23: RAMDAS | E23: ST | F23: 2004-01-01 | G23: 2015-06-22 | H23: B | J23: BST | K23: B | L23: 46 | M23: 65 | N23: 55 | O23: 44 | P23: 81 | Q23: 64 | R23: 208 | S23: 355 | T23: 59.16666667 | V23: C2 | W23: B2 | X23: C1 | Y23: C2 | Z23: A2 | AA23: B2
A24: 21 | B24: 3516 | C24: SHIVA PUJARI | D24: KRISHNA | E24: BC | F24: 2006-01-19 | G24: 2016-06-15 | H24: B | J24: BBC | K24: B | L24: 71 | M24: 44 | N24: 82 | O24: 84 | P24: 52 | Q24: 58 | R24: 158 | S24: 391 | T24: 65.16666667 | V24: B1 | W24: C2 | X24: A2 | Y24: A2 | Z24: C1 | AA24: C1
A25: 22 | B25: 3802 | C25: SHIVA SIGA | D25: KRISHNAIAH | E25: SC | F25: 2006-04-20 | G25: 2018-06-11 | H25: B | J25: BSC | K25: B | L25: 49 | M25: 62 | N25: 54 | O25: 73 | P25: 63 | Q25: 40 | R25: 150 | S25: 341 | T25: 56.83333333 | V25: C2 | W25: B2 | X25: C1 | Y25: B1 | Z25: B2 | AA25: D
A26: 23 | B26: 3828 | C26: SHIVAKUMAR JOGU | D26: ASHOK | E26: SC | F26: 2006-03-18 | G26: 2018-06-18 | H26: B | J26: BSC | K26: B | L26: 61 | M26: 97 | N26: 41 | O26: 62 | P26: 36 | Q26: 66 | R26: 213 | S26: 363 | T26: 60.5 | V26: B2 | W26: A1 | X26: C2 | Y26: B2 | Z26: D | AA26: B2
A27: 24 | B27: 3779 | C27: SHIVAKUMAR VALLAPU | D27: MALLESH | E27: BC | F27: 2006-06-13 | G27: 2018-06-05 | H27: B | J27: BBC | K27: B | L27: 87 | M27: 84 | N27: 68 | O27: 47 | P27: 36 | Q27: 50 | R27: 189 | S27: 372 | T27: 62 | V27: A2 | W27: A2 | X27: B2 | Y27: C2 | Z27: D | AA27: C2
A28: 25 | B28: 3518 | C28: SHIVARAM VIRAMALLA | D28: BIKSHAPATHI | E28: BC | F28: 2006-08-15 | G28: 2016-06-15 | H28: B | J28: BBC | K28: B | L28: 48 | M28: 49 | N28: 96 | O28: 38 | P28: 73 | Q28: 99 | R28: 177 | S28: 403 | T28: 67.16666667 | V28: C2 | W28: C2 | X28: A1 | Y28: D | Z28: B1 | AA28: A1
A29: 26 | B29: 3504 | C29: SIKINDAR MUDHAVATH | D29: BHEEMU | E29: ST | F29: 2005-02-10 | G29: 2016-06-15 | H29: B | J29: BST | K29: B | L29: 58 | M29: 68 | N29: 63 | O29: 76 | P29: 83 | Q29: 62 | R29: 197 | S29: 410 | T29: 68.33333333 | V29: C1 | W29: B2 | X29: B2 | Y29: B1 | Z29: A2 | AA29: B2
A30: 27 | B30: 3555 | C30: SRAVAN KUMAR BODRAMONI | D30: PRABHAKAR | E30: BC | F30: 2005-04-24 | G30: 2016-06-20 | H30: B | J30: BBC | K30: B | L30: 100 | M30: 74 | N30: 38 | O30: 98 | P30: 98 | Q30: 40 | R30: 196 | S30: 448 | T30: 74.66666667 | V30: A1 | W30: B1 | X30: D | Y30: A1 | Z30: A1 | AA30: D
A31: 28 | B31: 3606 | C31: SRIKANTH SABAVAT | D31: LAKSHMA | E31: ST | F31: 2005-04-11 | G31: 2016-06-29 | H31: B | J31: BST | K31: B | L31: 56 | M31: 35 | N31: 53 | O31: 88 | P31: 60 | Q31: 37 | R31: 190 | S31: 329 | T31: 54.83333333 | V31: C1 | W31: D | X31: C1 | Y31: A2 | Z31: C1 | AA31: D
A32: 29 | B32: 3517 | C32: VAMSHI NUKAM | D32: NARSIMHA | E32: BC | F32: 2005-08-23 | G32: 2016-06-15 | H32: B | J32: BBC | K32: B | L32: 90 | M32: 89 | N32: 94 | O32: 93 | P32: 50 | Q32: 49 | R32: 161 | S32: 465 | T32: 77.5 | V32: A2 | W32: A2 | X32: A1 | Y32: A1 | Z32: C2 | AA32: C2
A33: 30 | B33: 3514 | C33: VINAY ANAMGALLA | D33: RAMCHANDAR | E33: SC | F33: 2006-05-15 | G33: 2016-06-15 | H33: B | J33: BSC | K33: B | L33: 64 | M33: 95 | N33: 37 | O33: 55 | P33: 44 | Q33: 50 | R33: 193 | S33: 345 | T33: 57.5 | V33: B2 | W33: A1 | X33: D | Y33: C1 | Z33: C2 | AA33: C2
A34: 31 | B34: 3860 | C34: YSHVARDHAN BOMMA | D34: SHANKAR | E34: BC | F34: 2004-07-28 | G34: 2018-09-01 | H34: B | J34: BBC | K34: B | L34: 35 | M34: 96 | N34: 36 | O34: 83 | P34: 91 | Q34: 82 | R34: 199 | S34: 423 | T34: 70.5 | V34: D | W34: A1 | X34: D | Y34: A2 | Z34: A1 | AA34: A2
A35: 32 | B35: 3568 | C35: YOGI DASARAMONI | D35: VENKATESH | E35: BC | F35: 2006-01-03 | G35: 2016-06-20 | H35: B | J35: =H35&E35 -> BBC | K35: =H35&I35 -> B | L35: 39 | M35: 62 | N35: 80 | O35: 43 | P35: 41 | Q35: 65 | R35: 182 | S35: =SUM(L35:Q35) -> 330 | T35: =S35/600% -> 55 | V35: =fgrade(L35) -> D | W35: =fgrade(M35) -> B2 | X35: =fgrade(N35) -> B1 | Y35: =fgrade(O35) -> C2 | Z35: =fgrade(P35) -> C2 | AA35: =fgrade(Q35) -> B2
S36: 0 | T36: 0
S37: 0 | T37: 0
S38: 0 | T38: 0
S39: 0 | T39: 0
S40: 0 | T40: 0
S41: 0 | T41: 0
S42: 0 | T42: 0
S43: 0 | T43: 0
S44: 0 | T44: 0
S45: 0 | T45: 0
S46: 0 | T46: 0
S47: 0 | T47: 0
S48: 0 | T48: 0
S49: 0 | T49: 0
S50: 0 | T50: 0
S51: 0 | T51: 0
S52: 0 | T52: 0
S53: 0 | T53: 0
S54: 0 | T54: 0
S55: 0 | T55: 0
S56: 0 | T56: 0
S57: 0 | T57: 0
S58: 0 | T58: 0
S59: 0 | T59: 0
S60: 0 | T60: 0
S61: 0 | T61: 0
S62: 0 | T62: 0
S63: 0 | T63: 0
J64: =H64&E64 ->  | K64: =H64&I64 ->  | S64: 0 | T64: 0
S65: 0 | T65: 0
S66: 0 | T66: 0
S67: 0 | T67: 0
S68: 0 | T68: 0
S69: 0 | T69: 0
S70: 0 | T70: 0
S71: 0 | T71: 0
S72: 0 | T72: 0
S73: 0 | T73: 0
S74: 0 | T74: 0
S75: 0 | T75: 0
S76: 0 | T76: 0
S77: 0 | T77: 0
S78: 0 | T78: 0
S79: 0 | T79: 0
S80: 0 | T80: 0
S81: 0 | T81: 0
S82: 0 | T82: 0
S83: 0 | T83: 0
S84: 0 | T84: 0
S85: 0 | T85: 0
S86: 0 | T86: 0
S87: 0 | T87: 0
S88: 0 | T88: 0
S89: 0 | T89: 0
S90: 0 | T90: 0
S91: 0 | T91: 0
S92: 0 | T92: 0
S93: 0 | T93: 0
S94: 0 | T94: 0
S95: 0 | T95: 0
S96: 0 | T96: 0
S97: 0 | T97: 0
S98: 0 | T98: 0
S99: =SUM(L99:Q99) -> 0 | T99: =S99/600% -> 0 | V99: =fgrade(L99) ->  | W99: =fgrade(M99) ->  | X99: =fgrade(N99) ->  | Y99: =fgrade(O99) ->  | Z99: =fgrade(P99) ->  | AA99: =fgrade(Q99) -> 
S100: 0 | T100: 0
S101: 0 | T101: 0
S102: 0 | T102: 0
S103: 0 | T103: 0
S104: 0 | T104: 0
S105: 0 | T105: 0
S106: 0 | T106: 0
S107: 0 | T107: 0
S108: 0 | T108: 0
S109: 0 | T109: 0
S110: 0 | T110: 0
S111: 0 | T111: 0
S112: 0 | T112: 0
S113: 0 | T113: 0
S114: 0 | T114: 0
S115: 0 | T115: 0
S116: 0 | T116: 0
S117: 0 | T117: 0
S118: 0 | T118: 0
S119: 0 | T119: 0
S120: 0 | T120: 0
S121: 0 | T121: 0
S122: 0 | T122: 0
S123: 0 | T123: 0
S124: 0 | T124: 0
S125: 0 | T125: 0
S126: 0 | T126: 0
S127: 0 | T127: 0
J128: =H128&E128 ->  | K128: =H128&I128 ->  | S128: 0 | T128: 0
S129: 0 | T129: 0
S130: 0 | T130: 0
S131: 0 | T131: 0
S132: 0 | T132: 0
S133: 0 | T133: 0
S134: 0 | T134: 0
S135: 0 | T135: 0
S136: 0 | T136: 0
S137: 0 | T137: 0
S138: 0 | T138: 0
S139: 0 | T139: 0
S140: 0 | T140: 0
S141: 0 | T141: 0
S142: 0 | T142: 0
S143: 0 | T143: 0
S144: 0 | T144: 0
S145: 0 | T145: 0
S146: 0 | T146: 0
S147: 0 | T147: 0
S148: 0 | T148: 0
S149: 0 | T149: 0
S150: 0 | T150: 0
S151: 0 | T151: 0
S152: 0 | T152: 0
S153: 0 | T153: 0
A154: . | Q154: ATB | R154: ATB
A155: . | B155: BOYS | C155: GIRLS | D155: TOTAL | K155: =H155&I155 ->  | Q155: =SUMIF(H4:H153,"B",R4:R153) -> 5787 | R155: =SUMIF(H4:H153,"G",R4:R153) -> 0 | S155: =SUM(Q155:R155) -> 5787
A156: SC | B156: =COUNTIF($J$4:$J$153,"BSC") -> 8 | C156: =COUNTIF($J$4:$J$153,"GSC") -> 0 | D156: =SUM(B156:C156) -> 8
A157: ST | B157: =COUNTIF($J$4:$J$153,"BST") -> 12 | C157: =COUNTIF($J$4:$J$153,"GST") -> 0 | D157: =SUM(B157:C157) -> 12 | K157: =H157&I157 -> 
A158: BC | B158: =COUNTIF($J$4:$K$153,"BBC") -> 12 | C158: =COUNTIF($J$4:$J$153,"GBC") -> 0 | D158: =SUM(B158:C158) -> 12 | F158: MIN BOY | G158: MIN GIRL | K158: =H158&I158 -> 
A159: OC | B159: =COUNTIF($J$4:$J$153,"BOC") -> 0 | C159: =COUNTIF($J$4:$J$153,"GOC") -> 0 | D159: =SUM(B159:C159) -> 0 | F159: =COUNTIF(K4:K153,"BY") -> 0 | G159: =COUNTIF(K4:K153,"GY") -> 0 | K159: =H159&I159 -> 
A160: TOTAL | B160: =SUM(B156:B159) -> 32 | C160: =SUM(C156:C159) -> 0 | D160: =SUM(D156:D159) -> 32 | K160: =H160&I160 -> 

Sheet IXTM
A1: IXTM-2018-19
A2: =RIGHT(CELL("filename",C1),LEN(CELL("filename",C1))-FIND("]",CELL("filename",C1))) -> IXTM | V2: GRADES
A3: RNO | B3: ADMN NO | C3: NAME OF THE STUDENT | D3: FATHER'S NAME | E3: CASTE | F3: DOB | G3: DOA | H3: SEX | I3: MUSLIM | L3: TEL | M3: HIN | N3: ENG | O3: MAT | P3: SCI | Q3: SOC | R3: ATT | S3: TOTAL M | T3: MARKS % | V3: TEL | W3: HIN | X3: ENG | Y3: MAT | Z3: SCI | AA3: SOC
A4: 1 | B4: 3651 | C4: ARAVIND KONKANI | D4: KRISHNA | E4: SC | F4: 2004-07-22 | G4: 2017-03-25 | H4: B | J4: =H4&E4 -> BSC | K4: =H4&I4 -> B | L4: 91 | M4: 41 | N4: 99 | O4: 40 | P4: 76 | Q4: 49 | R4: 158 | S4: =SUM(L4:Q4) -> 396 | T4: =S4/600% -> 66 | V4: =fgrade(L4) -> A1 | W4: =fgrade(M4) -> C2 | X4: A1 | Y4: D | Z4: B1 | AA4: C2
A5: 2 | B5: 3367 | C5: BHASKAR RAMAVATH | D5: RUPLA | E5: ST | F5: 2005-05-09 | G5: 2015-06-18 | H5: B | J5: BST | K5: B | L5: 64 | M5: 50 | N5: 48 | O5: 45 | P5: 62 | Q5: 51 | R5: 155 | S5: 320 | T5: =S5/600% -> 53.33333333 | V5: =fgrade(L5) -> B2 | W5: =fgrade(M5) -> C2 | X5: =fgrade(N5) -> C2 | Y5: =fgrade(O5) -> C2 | Z5: =fgrade(P5) -> B2 | AA5: =fgrade(Q5) -> C1
A6: 3 | B6: 3650 | C6: DILEEP GADDAM | D6: RANGAIAH | E6: SC | F6: 2004-11-08 | G6: 2017-03-25 | H6: B | J6: BSC | K6: B | L6: 75 | M6: 86 | N6: 90 | O6: 52 | P6: 48 | Q6: 51 | R6: 185 | S6: 402 | T6: 67 | V6: B1 | W6: A2 | X6: A2 | Y6: C1 | Z6: C2 | AA6: C1
A7: 4 | B7: 3401 | C7: GANESH NAKKA | D7: MALLESH | E7: SC | F7: 2005-02-16 | G7: 2015-06-22 | H7: B | J7: BSC | K7: B | L7: 47 | M7: 42 | N7: 90 | O7: 82 | P7: 69 | Q7: 75 | R7: 181 | S7: =SUM(L7:Q7) -> 405 | T7: 67.5 | V7: C2 | W7: C2 | X7: A2 | Y7: A2 | Z7: B2 | AA7: B1
A8: 5 | B8: 3661 | C8: KUMAR SAPAVAT | D8: SHANKAR | E8: ST | F8: 2004-11-18 | G8: 2017-03-28 | H8: B | J8: BST | K8: B | L8: 50 | M8: 73 | N8: 96 | O8: 90 | P8: 87 | Q8: 48 | R8: 203 | S8: 444 | T8: 74 | V8: =fgrade(L8) -> C2 | W8: B1 | X8: A1 | Y8: A2 | Z8: A2 | AA8: C2
A9: 6 | B9: 3836 | C9: MAHESH GUDDIMALLA | D9: SATYAMAIAH | E9: BC | F9: 2004-08-12 | H9: B | J9: BBC | K9: B | L9: 48 | M9: 72 | N9: 89 | O9: 80 | P9: 63 | Q9: 97 | R9: 203 | S9: =SUM(L9:Q9) -> 449 | T9: 74.83333333 | V9: C2 | W9: B1 | X9: A2 | Y9: B1 | Z9: B2 | AA9: A1
A10: 7 | B10: 3402 | C10: MAHESH JILAMONI | D10: GALAIAH | E10: BC | F10: 2005-06-10 | G10: 2015-06-22 | H10: B | J10: BBC | K10: B | L10: 46 | M10: 54 | N10: 93 | O10: 84 | P10: 52 | Q10: 58 | R10: 212 | S10: 387 | T10: 64.5 | V10: C2 | W10: C1 | X10: A1 | Y10: A2 | Z10: C1 | AA10: C1
A11: 8 | B11: 3470 | C11: MANOJ SAPAVAT | D11: SREENU | E11: ST | F11: 2003-09-20 | G11: 2015-07-27 | H11: B | J11: BST | K11: B | L11: 64 | M11: 76 | N11: 82 | O11: 54 | P11: 65 | Q11: 99 | R11: 152 | S11: 440 | T11: 73.33333333 | V11: B2 | W11: B1 | X11: A2 | Y11: C1 | Z11: B2 | AA11: A1
A12: 9 | B12: 3405 | C12: MOHAN RAMAVATH | D12: KESHAVULU | E12: ST | F12: 2004-06-20 | G12: 2015-06-22 | H12: B | J12: BST | K12: B | L12: 96 | M12: 48 | N12: 43 | O12: 59 | P12: 85 | Q12: 73 | R12: 155 | S12: 404 | T12: 67.33333333 | V12: A1 | W12: C2 | X12: C2 | Y12: C1 | Z12: A2 | AA12: B1
A13: 10 | B13: 3450 | C13: NARESH KELOTH | D13: LALU | E13: ST | F13: 2004-06-10 | G13: 2015-06-22 | H13: B | J13: BST | K13: B | L13: 51 | M13: 84 | N13: 60 | O13: 90 | P13: 85 | Q13: 95 | R13: 169 | S13: 465 | T13: 77.5 | V13: C1 | W13: A2 | X13: C1 | Y13: A2 | Z13: A2 | AA13: A1
A14: 11 | B14: 3407 | C14: NAVEEN KUMAR BANDARI | D14: ROSHAIAH | E14: BC | F14: 2004-06-16 | G14: 2015-06-22 | H14: B | J14: BBC | K14: B | L14: 71 | M14: 43 | N14: 92 | O14: 86 | P14: 97 | Q14: 99 | R14: 213 | S14: 488 | T14: 81.33333333 | V14: B1 | W14: C2 | X14: A1 | Y14: A2 | Z14: A1 | AA14: A1
A15: 12 | B15: 3855 | C15: PRASHANTH KUMAR JITTE | D15: BUGGAIAH | E15: BC | F15: 2003-05-13 | G15: 2018-07-19 | H15: B | J15: BBC | K15: B | L15: 82 | M15: 59 | N15: 41 | O15: 86 | P15: 48 | Q15: 100 | R15: 182 | S15: 416 | T15: 69.33333333 | V15: A2 | W15: C1 | X15: C2 | Y15: A2 | Z15: C2 | AA15: A1
A16: 13 | B16: 3649 | C16: RAJESH UDAVATH | D16: BADDU | E16: ST | F16: 2005-02-20 | G16: 2017-03-25 | H16: B | J16: BST | K16: B | L16: 58 | M16: 78 | N16: 36 | O16: 55 | P16: 50 | Q16: 75 | R16: 207 | S16: 352 | T16: 58.66666667 | V16: C1 | W16: B1 | X16: D | Y16: C1 | Z16: C2 | AA16: B1
A17: 14 | B17: 3406 | C17: RAJINIKANTH SAPAVATH | D17: RAVI | E17: ST | F17: 2004-03-15 | G17: 2015-06-22 | H17: B | J17: BST | K17: B | L17: 68 | M17: 63 | N17: 35 | O17: 52 | P17: 40 | Q17: 90 | R17: 153 | S17: 348 | T17: 58 | V17: B2 | W17: B2 | X17: D | Y17: C1 | Z17: D | AA17: A2
A18: 15 | B18: 3397 | C18: SAI NUKAM | D18: NARSIMHA | E18: BC | F18: 2002-11-28 | G18: 2015-06-21 | H18: B | J18: BBC | K18: B | L18: 51 | M18: 84 | N18: 99 | O18: 53 | P18: 86 | Q18: 43 | R18: 179 | S18: 416 | T18: 69.33333333 | V18: C1 | W18: A2 | X18: A1 | Y18: C1 | Z18: A2 | AA18: C2
A19: 16 | B19: 3464 | C19: SAIKUMAR MEGAVATH | D19: LACHU | E19: ST | F19: 2005-02-13 | G19: 2015-06-22 | H19: B | J19: BST | K19: B | L19: 51 | M19: 76 | N19: 53 | O19: 55 | P19: 84 | Q19: 100 | R19: 200 | S19: 419 | T19: 69.83333333 | V19: C1 | W19: B1 | X19: C1 | Y19: C1 | Z19: A2 | AA19: A1
A20: 17 | B20: 3340 | C20: SAIKUMAR VARTHYA | D20: DEVAJI | E20: ST | F20: 2003-04-03 | G20: 2015-06-15 | H20: B | J20: BST | K20: B | L20: 47 | M20: 70 | N20: 46 | O20: 38 | P20: 98 | Q20: 75 | R20: 152 | S20: 374 | T20: 62.33333333 | V20: C2 | W20: B2 | X20: C2 | Y20: D | Z20: A1 | AA20: B1
A21: 18 | B21: 3399 | C21: SHIVAKUMAR DAMARA | D21: LINGAIAH | E21: SC | F21: 2004-08-10 | G21: 2015-06-22 | H21: B | J21: BSC | K21: B | L21: 48 | M21: 39 | N21: 51 | O21: 52 | P21: 73 | Q21: 65 | R21: 185 | S21: 328 | T21: 54.66666667 | V21: C2 | W21: D | X21: C1 | Y21: C1 | Z21: B1 | AA21: B2
A22: 19 | B22: 3421 | C22: SHIVAPRASAD JILAMONI | D22: RAMESH | E22: BC | F22: 2005-09-09 | G22: 2015-06-22 | H22: B | J22: BBC | K22: B | L22: 72 | M22: 37 | N22: 82 | O22: 51 | P22: 46 | Q22: 51 | R22: 208 | S22: 339 | T22: 56.5 | V22: B1 | W22: D | X22: A2 | Y22: C1 | Z22: C2 | AA22: C1
A23: 20 | B23: 3287 | C23: SRIDHAR ANAMGALLA | D23: BALAIAH | E23: SC | F23: 2004-08-11 | G23: 2014-06-20 | H23: B | J23: BSC | K23: B | L23: 69 | M23: 65 | N23: 69 | O23: 94 | P23: 44 | Q23: 63 | R23: 166 | S23: 404 | T23: 67.33333333 | V23: B2 | W23: B2 | X23: B2 | Y23: A1 | Z23: C2 | AA23: B2
A24: 21 | B24: 3338 | C24: SRIRAM BANDOTH | D24: BICHYA | E24: ST | F24: 2005-06-20 | G24: 2015-06-17 | H24: B | J24: BST | K24: B | L24: 82 | M24: 96 | N24: 40 | O24: 39 | P24: 80 | Q24: 96 | R24: 170 | S24: 433 | T24: 72.16666667 | V24: A2 | W24: A1 | X24: D | Y24: D | Z24: B1 | AA24: A1
A25: 22 | B25: 3708 | C25: SURESH PATHLOTH | D25: SAKYA | E25: ST | F25: 2004-01-05 | G25: 2017-06-15 | H25: B | J25: BST | K25: B | L25: 97 | M25: 84 | N25: 53 | O25: 62 | P25: 91 | Q25: 100 | R25: 170 | S25: 487 | T25: 81.16666667 | V25: A1 | W25: A2 | X25: C1 | Y25: B2 | Z25: A1 | AA25: A1
A26: 23 | B26: 3854 | C26: THARUN MADDI | D26: SRISAILAM | E26: BC | F26: 2004-08-09 | G26: 2018-07-19 | H26: B | J26: BBC | K26: B | L26: 94 | M26: 51 | N26: 50 | O26: 96 | P26: 84 | Q26: 98 | R26: 165 | S26: 473 | T26: 78.83333333 | V26: A1 | W26: C1 | X26: C2 | Y26: A1 | Z26: A2 | AA26: A1
A27: 24 | B27: 3398 | C27: VINOD BYKANI | D27: SATHAIAH | E27: BC | F27: 2003-07-10 | G27: 2015-06-17 | H27: B | J27: BBC | K27: B | L27: 46 | M27: 58 | N27: 40 | O27: 88 | P27: 87 | Q27: 76 | R27: 151 | S27: 395 | T27: 65.83333333 | V27: C2 | W27: C1 | X27: D | Y27: A2 | Z27: A2 | AA27: B1
S28: =SUM(L28:Q28) -> 0 | T28: 0
S29: 0 | T29: 0
S30: 0 | T30: 0
S31: 0 | T31: 0
S32: 0 | T32: 0
S33: 0 | T33: 0
S34: 0 | T34: 0
S35: 0 | T35: 0
S36: 0 | T36: 0
S37: 0 | T37: 0
S38: 0 | T38: 0
S39: 0 | T39: 0
S40: 0 | T40: 0
S41: 0 | T41: 0
S42: 0 | T42: 0
S43: 0 | T43: 0
S44: 0 | T44: 0
S45: 0 | T45: 0
S46: 0 | T46: 0
S47: 0 | T47: 0
S48: 0 | T48: 0
S49: 0 | T49: 0
S50: 0 | T50: 0
S51: 0 | T51: 0
S52: 0 | T52: 0
S53: 0 | T53: 0
S54: 0 | T54: 0
S55: 0 | T55: 0
S56: 0 | T56: 0
S57: 0 | T57: 0
S58: 0 | T58: 0
S59: 0 | T59: 0
S60: 0 | T60: 0
S61: 0 | T61: 0
S62: 0 | T62: 0
S63: 0 | T63: 0
S64: 0 | T64: 0
S65: 0 | T65: 0
S66: 0 | T66: 0
S67: 0 | T67: 0
J68: =H68&E68 ->  | K68: =H68&I68 ->  | S68: 0 | T68: 0
S69: =SUM(L69:Q69) -> 0 | T69: =S69/600% -> 0 | V69: =fgrade(L69) ->  | W69: =fgrade(M69) ->  | X69: =fgrade(N69) ->  | Y69: =fgrade(O69) ->  | Z69: =fgrade(P69) ->  | AA69: =fgrade(Q69) -> 
S70: 0 | T70: 0
S71: 0 | T71: 0
S72: 0 | T72: 0
S73: 0 | T73: 0
S74: 0 | T74: 0
S75: 0 | T75: 0
S76: 0 | T76: 0
S77: 0 | T77: 0
S78: 0 | T78: 0
S79: 0 | T79: 0
S80: 0 | T80: 0
S81: 0 | T81: 0
S82: 0 | T82: 0
S83: 0 | T83: 0
S84: 0 | T84: 0
S85: 0 | T85: 0
S86: 0 | T86: 0
S87: 0 | T87: 0
S88: 0 | T88: 0
S89: 0 | T89: 0
S90: 0 | T90: 0
S91: 0 | T91: 0
S92: 0 | T92: 0
S93: 0 | T93: 0
S94: 0 | T94: 0
S95: 0 | T95: 0
S96: 0 | T96: 0
S97: 0 | T97: 0
S98: 0 | T98: 0
S99: 0 | T99: 0
S100: 0 | T100: 0
S101: 0 | T101: 0
S102: 0 | T102: 0
S103: 0 | T103: 0
S104: 0 | T104: 0
S105: 0 | T105: 0
S106: 0 | T106: 0
S107: 0 | T107: 0
S108: 0 | T108: 0
S109: 0 | T109: 0
S110: 0 | T110: 0
S111: 0 | T111: 0
S112: 0 | T112: 0
S113: 0 | T113: 0
S114: 0 | T114: 0
S115: 0 | T115: 0
S116: 0 | T116: 0
S117: 0 | T117: 0
S118: 0 | T118: 0
S119: 0 | T119: 0
S120: 0 | T120: 0
S121: 0 | T121: 0
S122: 0 | T122: 0
S123: 0 | T123: 0
S124: 0 | T124: 0
S125: 0 | T125: 0
S126: 0 | T126: 0
S127: 0 | T127: 0
S128: 0 | T128: 0
S129: 0 | T129: 0
S130: 0 | T130: 0
S131: 0 | T131: 0
J132: =H132&E132 ->  | K132: =H132&I132 ->  | S132: 0 | T132: 0
S133: =SUM(L133:Q133) -> 0 | T133: =S133/600% -> 0 | V133: =fgrade(L133) ->  | W133: =fgrade(M133) ->  | X133: =fgrade(N133) ->  | Y133: =fgrade(O133) ->  | Z133: =fgrade(P133) ->  | AA133: =fgrade(Q133) -> 
S134: 0 | T134: 0
S135: 0 | T135: 0
S136: 0 | T136: 0
S137: 0 | T137: 0
S138: 0 | T138: 0
S139: 0 | T139: 0
S140: 0 | T140: 0
S141: 0 | T141: 0
S142: 0 | T142: 0
S143: 0 | T143: 0
S144: 0 | T144: 0
S145: 0 | T145: 0
S146: 0 | T146: 0
S147: 0 | T147: 0
S148: 0 | T148: 0
S149: 0 | T149: 0
S150: 0 | T150: 0
S151: 0 | T151: 0
S152: 0 | T152: 0
S153: 0 | T153: 0
A154: . | Q154: ATB | R154: ATB
A155: . | B155: BOYS | C155: GIRLS | D155: TOTAL | Q155: =SUMIF(H4:H153,"B",R4:R153) -> 4274 | R155: =SUMIF(H4:H153,"G",R4:R153) -> 0 | S155: =SUM(Q155:R155) -> 4274
A156: SC | B156: =COUNTIF($J$4:$J$153,"BSC") -> 5 | C156: =COUNTIF($J$4:$J$153,"GSC") -> 0 | D156: =SUM(B156:C156) -> 5 | K156: =H156&I156 -> 
A157: ST | B157: =COUNTIF($J$4:$J$153,"BST") -> 11 | C157: =COUNTIF($J$4:$J$153,"GST") -> 0 | D157: =SUM(B157:C157) -> 11
A158: BC | B158: =COUNTIF($J$4:$J$153,"BBC") -> 8 | C158: =COUNTIF($J$4:$J$153,"GBC") -> 0 | D158: =SUM(B158:C158) -> 8 | F158: MIN BOY | G158: MIN GIRL
A159: OC | B159: =COUNTIF($J$4:$J$153,"BOC") -> 0 | C159: =COUNTIF($J$4:$J$153,"GOC") -> 0 | D159: =SUM(B159:C159) -> 0 | F159: =COUNTIF(K4:K154,"BY") -> 0 | G159: =COUNTIF(K4:K154,"GY") -> 0
A160: TOTAL | B160: =SUM(B156:B159) -> 24 | C160: =SUM(C156:C159) -> 0 | D160: =SUM(D156:D159) -> 24

Sheet XTM
A1: XTM-2018-19
A2: =RIGHT(CELL("filename",C3),LEN(CELL("filename",C3))-FIND("]",CELL("filename",C3))) -> XTM | V2: GRADES
A3: RNO | B3: ADMN NO | C3: NAME OF THE STUDENT | D3: FATHER'S NAME | E3: CASTE | F3: DOB | G3: DOA | H3: SEX | I3: MUSLIM | L3: TEL | M3: HIN | N3: ENG | O3: MAT | P3: SCI | Q3: SOC | R3: ATT | S3: TOTAL M | T3: MARKS % | V3: TEL | W3: HIN | X3: ENG | Y3: MAT | Z3: SCI | AA3: SOC
A4: 1 | B4: 3204 | C4: BHARATH KUMAR ADEPU | D4: KRISHNAIAH | E4: BC | F4: 2004-07-08 | G4: 2014-06-16 | H4: B | J4: =H4&E4 -> BBC | K4: =H4&I4 -> B | L4: 8 | M4: 8 | N4: 5 | O4: 6 | P4: 7 | Q4: 5 | R4: 174 | S4: =SUM(L4:Q4) -> 39 | T4: =S4/600% -> 6.5 | V4: =sscFGrade(L4) -> B1 | W4: =sscFGrade(M4) -> B1 | X4: C2 | Y4: C1 | Z4: B2 | AA4: C2
A5: 2 | B5: 3188 | C5: DEVENDAR MEGHAVATH | D5: JEEVLAL | E5: ST | F5: 2003-01-07 | G5: 2014-06-12 | H5: B | J5: BST | K5: =H5&I5 -> B | L5: 5 | M5: 9 | N5: 8 | O5: 7 | P5: 10 | Q5: 6 | R5: 172 | S5: =SUM(L5:Q5) -> 45 | T5: =S5/600% -> 7.5 | V5: =sscFGrade(L5) -> C2 | W5: =sscFGrade(M5) -> A2 | X5: =sscFGrade(N5) -> B1 | Y5: =sscFGrade(O5) -> B2 | Z5: =sscFGrade(P5) -> A1 | AA5: =sscFGrade(Q5) -> C1
A6: 3 | B6: 3190 | C6: GANESH MUDAVATH | D6: BHEEMU | E6: ST | F6: 2003-04-15 | G6: 2014-06-16 | H6: B | J6: BST | K6: B | L6: 10 | M6: 7 | N6: 6 | O6: 9 | P6: 8 | Q6: 9 | R6: 213 | S6: 49 | T6: 8.166666667 | V6: A1 | W6: B2 | X6: C1 | Y6: A2 | Z6: B1 | AA6: A2
A7: 4 | B7: 3765 | C7: GNANESHWAR PALAPATI | D7: BIKSHAPATHI | E7: SC | F7: 2004-06-18 | G7: 2017-12-18 | H7: B | J7: BSC | K7: B | L7: 8 | M7: 6 | N7: 7 | O7: 7 | P7: 5 | Q7: 9 | R7: 206 | S7: 42 | T7: 7 | V7: B1 | W7: C1 | X7: B2 | Y7: B2 | Z7: C2 | AA7: A2
A8: 5 | B8: 3231 | C8: HATHIRAM VARTHYA | D8: LACHU | E8: ST | F8: 2004-07-31 | G8: 2014-06-16 | H8: B | J8: BST | K8: B | L8: 8 | M8: 6 | N8: 5 | O8: 9 | P8: 9 | Q8: 6 | R8: 152 | S8: 43 | T8: 7.166666667 | V8: B1 | W8: C1 | X8: C2 | Y8: A2 | Z8: A2 | AA8: C1
A9: 6 | B9: 3245 | C9: KIRANKUMAR MEGHAVATH | D9: KISHAN | E9: ST | F9: 2003-10-18 | G9: 2014-06-18 | H9: B | J9: BST | K9: B | L9: 5 | M9: 7 | N9: 5 | O9: 6 | P9: 9 | Q9: 10 | R9: 151 | S9: 42 | T9: 7 | V9: C2 | W9: B2 | X9: C2 | Y9: C1 | Z9: A2 | AA9: A1
A10: 7 | B10: 3199 | C10: KOTESH SABAVAT | D10: PENTAIAH | E10: ST | F10: 2004-04-13 | G10: 2014-06-16 | H10: B | J10: BST | K10: B | L10: 10 | M10: 5 | N10: 6 | O10: 5 | P10: 8 | Q10: 5 | R10: 175 | S10: 39 | T10: 6.5 | V10: A1 | W10: C2 | X10: C1 | Y10: C2 | Z10: B1 | AA10: C2
A11: 8 | B11: 3246 | C11: LINGAM KONDI | D11: PENTAIAH | E11: BC | F11: 2002-10-30 | G11: 2014-06-18 | H11: B | J11: BBC | K11: B | L11: 5 | M11: 8 | N11: 6 | O11: 8 | P11: 10 | Q11: 8 | R11: 180 | S11: 45 | T11: 7.5 | V11: C2 | W11: B1 | X11: C1 | Y11: B1 | Z11: A1 | AA11: B1
A12: 9 | B12: 3269 | C12: MAHESH BUDIDHA | D12: ILAIAH | E12: BC | F12: 2003-05-06 | G12: 2014-06-18 | H12: B | J12: BBC | K12: B | L12: 6 | M12: 9 | N12: 8 | O12: 6 | P12: 8 | Q12: 8 | R12: 193 | S12: 45 | T12: 7.5 | V12: C1 | W12: A2 | X12: B1 | Y12: C1 | Z12: B1 | AA12: B1
A13: 10 | B13: 3230 | C13: MOTHIRAM VARTHYA | D13: LACHU | E13: ST | F13: 2002-05-08 | G13: 2014-06-16 | H13: B | J13: BST | K13: B | L13: 6 | M13: 6 | N13: 9 | O13: 6 | P13: 9 | Q13: 10 | R13: 167 | S13: 46 | T13: 7.666666667 | V13: C1 | W13: C1 | X13: A2 | Y13: C1 | Z13: A2 | AA13: A1
A14: 11 | B14: 3233 | C14: NARESH NENAVATH | D14: SRINU | E14: ST | F14: 2003-11-20 | G14: 2014-06-17 | H14: B | J14: BST | K14: B | L14: 8 | M14: 5 | N14: 9 | O14: 5 | P14: 9 | Q14: 5 | R14: 175 | S14: 41 | T14: 6.833333333 | V14: B1 | W14: C2 | X14: A2 | Y14: C2 | Z14: A2 | AA14: C2
A15: 12 | B15: 3196 | C15: NARESH THIMMAGALLA | D15: SRINIVAS | E15: SC | F15: 2003-07-26 | G15: 2014-06-16 | H15: B | J15: BSC | K15: B | L15: 9 | M15: 9 | N15: 7 | O15: 10 | P15: 5 | Q15: 6 | R15: 186 | S15: 46 | T15: 7.666666667 | V15: A2 | W15: A2 | X15: B2 | Y15: A1 | Z15: C2 | AA15: C1
A16: 13 | B16: 3198 | C16: NITHIN SAPAVAT | D16: SHANKAR | E16: ST | F16: 2003-11-09 | G16: 2014-06-16 | H16: B | J16: BST | K16: B | L16: 7 | M16: 10 | N16: 9 | O16: 10 | P16: 7 | Q16: 8 | R16: 176 | S16: 51 | T16: 8.5 | V16: B2 | W16: A1 | X16: A2 | Y16: A1 | Z16: B2 | AA16: B1
A17: 14 | B17: 3234 | C17: PAVAN MEGHAVATH | D17: SHIVA | E17: ST | F17: 2004-05-12 | G17: 2014-06-17 | H17: B | J17: BST | K17: B | L17: 7 | M17: 5 | N17: 10 | O17: 9 | P17: 9 | Q17: 10 | R17: 210 | S17: 50 | T17: 8.333333333 | V17: B2 | W17: C2 | X17: A1 | Y17: A2 | Z17: A2 | AA17: A1
A18: 15 | B18: 3200 | C18: PRAVEEN KASULA | D18: DASHARATHA | E18: BC | F18: 2004-04-17 | G18: 2014-06-16 | H18: B | J18: BBC | K18: B | L18: 10 | M18: 8 | N18: 6 | O18: 8 | P18: 5 | Q18: 7 | R18: 197 | S18: 44 | T18: 7.333333333 | V18: A1 | W18: B1 | X18: C1 | Y18: B1 | Z18: C2 | AA18: B2
A19: 16 | B19: 3488 | C19: RAJU DUBBAKA | D19: SHANKARAIAH | E19: SC | F19: 2004-10-20 | G19: 2016-06-14 | H19: B | J19: BSC | K19: B | L19: 8 | M19: 10 | N19: 9 | O19: 7 | P19: 10 | Q19: 9 | R19: 204 | S19: 53 | T19: 8.833333333 | V19: B1 | W19: A1 | X19: A2 | Y19: B2 | Z19: A1 | AA19: A2
A20: 17 | B20: 3189 | C20: RAJU NUKAM | D20: NARSIMHA | E20: BC | F20: 2001-02-12 | G20: 2014-06-16 | H20: B | J20: BBC | K20: B | L20: 6 | M20: 8 | N20: 5 | O20: 9 | P20: 8 | Q20: 6 | R20: 177 | S20: 42 | T20: 7 | V20: C1 | W20: B1 | X20: C2 | Y20: A2 | Z20: B1 | AA20: C1
A21: 18 | B21: 3192 | C21: SAIKUMAR VARTHYA | D21: RAMSINGH | E21: ST | F21: 2002-03-10 | G21: 2014-06-16 | H21: B | J21: BST | K21: B | L21: 10 | M21: 9 | N21: 7 | O21: 5 | P21: 5 | Q21: 9 | R21: 177 | S21: 45 | T21: 7.5 | V21: A1 | W21: A2 | X21: B2 | Y21: C2 | Z21: C2 | AA21: A2
A22: 19 | B22: 3554 | C22: SHIVAKUMAR JAKKULA | D22: MUTHAIAH | E22: BC | F22: 2005-03-18 | G22: 2016-06-20 | H22: B | J22: BBC | K22: B | L22: 6 | M22: 8 | N22: 8 | O22: 9 | P22: 5 | Q22: 8 | R22: 190 | S22: 44 | T22: 7.333333333 | V22: C1 | W22: B1 | X22: B1 | Y22: A2 | Z22: C2 | AA22: B1
A23: 20 | B23: 3191 | C23: SHIVAKUMAR MEGHAVATH | D23: DEVA | E23: ST | F23: 2002-03-20 | G23: 2014-06-16 | H23: B | J23: BST | K23: B | L23: 10 | M23: 7 | N23: 5 | O23: 10 | P23: 6 | Q23: 8 | R23: 168 | S23: 46 | T23: 7.666666667 | V23: A1 | W23: B2 | X23: C2 | Y23: A1 | Z23: C1 | AA23: B1
A24: 21 | B24: 3203 | C24: SHIVAKUMAR MEGHAVATH | D24: LAXMAN | E24: ST | F24: 2003-10-16 | G24: 2014-06-16 | H24: B | J24: BST | K24: B | L24: 10 | M24: 8 | N24: 7 | O24: 6 | P24: 5 | Q24: 5 | R24: 176 | S24: 41 | T24: 6.833333333 | V24: A1 | W24: B1 | X24: B2 | Y24: C1 | Z24: C2 | AA24: C2
A25: 22 | B25: 3195 | C25: SRIKANTH KONDI | D25: PENTAIAH | E25: BC | F25: 2004-02-26 | G25: 2014-06-16 | H25: B | J25: BBC | K25: B | L25: 6 | M25: 6 | N25: 10 | O25: 6 | P25: 10 | Q25: 9 | R25: 177 | S25: 47 | T25: 7.833333333 | V25: C1 | W25: C1 | X25: A1 | Y25: C1 | Z25: A1 | AA25: A2
A26: 23 | B26: 3197 | C26: SRIKANTH MUDAVATH | D26: SHANKAR | E26: ST | F26: 2004-07-18 | G26: 2014-06-16 | H26: B | J26: BST | K26: B | L26: 5 | M26: 7 | N26: 5 | O26: 9 | P26: 6 | Q26: 9 | R26: 205 | S26: 41 | T26: 6.833333333 | V26: C2 | W26: B2 | X26: C2 | Y26: A2 | Z26: C1 | AA26: A2
A27: 24 | B27: 3202 | C27: SRINIVAS VARTHYA | D27: JANDHAR | E27: ST | F27: 2004-07-12 | G27: 2014-06-16 | H27: B | J27: BST | K27: B | L27: 10 | M27: 7 | N27: 10 | O27: 9 | P27: 10 | Q27: 10 | R27: 184 | S27: 56 | T27: 9.333333333 | V27: A1 | W27: B2 | X27: A1 | Y27: A2 | Z27: A1 | AA27: A1
A28: 25 | B28: 3235 | C28: SRINU MEGHAVATH | D28: KISHAN | E28: ST | F28: 2003-12-03 | G28: 2014-06-17 | H28: B | J28: BST | K28: B | L28: 9 | M28: 10 | N28: 10 | O28: 7 | P28: 8 | Q28: 5 | R28: 208 | S28: 49 | T28: 8.166666667 | V28: A2 | W28: A1 | X28: A1 | Y28: B2 | Z28: B1 | AA28: C2
A29: 26 | B29: 3244 | C29: VISHAL ANAMGALLA | D29: KRISHNA | E29: SC | F29: 2002-05-08 | G29: 2014-06-18 | H29: B | J29: BSC | K29: B | L29: 7 | M29: 8 | N29: 8 | O29: 6 | P29: 9 | Q29: 9 | R29: 161 | S29: 47 | T29: 7.833333333 | V29: B2 | W29: B1 | X29: B1 | Y29: C1 | Z29: A2 | AA29: A2
S30: 0 | T30: 0
S31: 0 | T31: 0
S32: 0 | T32: 0
S33: 0 | T33: 0
S34: 0 | T34: 0
S35: 0 | T35: 0
S36: 0 | T36: 0
S37: 0 | T37: 0
S38: 0 | T38: 0
S39: 0 | T39: 0
S40: 0 | T40: 0
S41: 0 | T41: 0
S42: 0 | T42: 0
S43: 0 | T43: 0
S44: 0 | T44: 0
S45: 0 | T45: 0
S46: 0 | T46: 0
S47: 0 | T47: 0
S48: 0 | T48: 0
S49: 0 | T49: 0
S50: 0 | T50: 0
S51: 0 | T51: 0
S52: 0 | T52: 0
S53: 0 | T53: 0
S54: 0 | T54: 0
S55: 0 | T55: 0
S56: 0 | T56: 0
S57: 0 | T57: 0
S58: 0 | T58: 0
S59: 0 | T59: 0
S60: 0 | T60: 0
S61: 0 | T61: 0
S62: 0 | T62: 0
S63: 0 | T63: 0
S64: 0 | T64: 0
S65: 0 | T65: 0
S66: 0 | T66: 0
S67: 0 | T67: 0
J68: =H68&E68 ->  | S68: 0 | T68: 0
S69: =SUM(L69:Q69) -> 0 | T69: =S69/600% -> 0 | V69: =sscFGrade(L69) ->  | W69: =sscFGrade(M69) ->  | X69: =sscFGrade(N69) ->  | Y69: =sscFGrade(O69) ->  | Z69: =sscFGrade(P69) ->  | AA69: =sscFGrade(Q69) -> 
S70: 0 | T70: 0
S71: 0 | T71: 0
S72: 0 | T72: 0
S73: 0 | T73: 0
S74: 0 | T74: 0
S75: 0 | T75: 0
S76: 0 | T76: 0
S77: 0 | T77: 0
S78: 0 | T78: 0
S79: 0 | T79: 0
S80: 0 | T80: 0
S81: 0 | T81: 0
S82: 0 | T82: 0
S83: 0 | T83: 0
S84: 0 | T84: 0
S85: 0 | T85: 0
S86: 0 | T86: 0
S87: 0 | T87: 0
S88: 0 | T88: 0
S89: 0 | T89: 0
S90: 0 | T90: 0
S91: 0 | T91: 0
S92: 0 | T92: 0
S93: 0 | T93: 0
S94: 0 | T94: 0
S95: 0 | T95: 0
S96: 0 | T96: 0
S97: 0 | T97: 0
S98: 0 | T98: 0
S99: 0 | T99: 0
S100: 0 | T100: 0
S101: 0 | T101: 0
S102: 0 | T102: 0
S103: 0 | T103: 0
S104: 0 | T104: 0
S105: 0 | T105: 0
S106: 0 | T106: 0
S107: 0 | T107: 0
S108: 0 | T108: 0
S109: 0 | T109: 0
S110: 0 | T110: 0
S111: 0 | T111: 0
S112: 0 | T112: 0
S113: 0 | T113: 0
S114: 0 | T114: 0
S115: 0 | T115: 0
S116: 0 | T116: 0
S117: 0 | T117: 0
S118: 0 | T118: 0
K119: =H119&I119 ->  | S119: 0 | T119: 0
S120: 0 | T120: 0
S121: 0 | T121: 0
S122: 0 | T122: 0
S123: 0 | T123: 0
S124: 0 | T124: 0
S125: 0 | T125: 0
S126: 0 | T126: 0
S127: 0 | T127: 0
S128: 0 | T128: 0
S129: 0 | T129: 0
S130: 0 | T130: 0
S131: 0 | T131: 0
J132: =H132&E132 ->  | S132: 0 | T132: 0
S133: =SUM(L133:Q133) -> 0 | T133: =S133/600% -> 0 | V133: =sscFGrade(L133) ->  | W133: =sscFGrade(M133) ->  | X133: =sscFGrade(N133) ->  | Y133: =sscFGrade(O133) ->  | Z133: =sscFGrade(P133) ->  | AA133: =sscFGrade(Q133) -> 
S134: 0 | T134: 0
S135: 0 | T135: 0
S136: 0 | T136: 0
S137: 0 | T137: 0
S138: 0 | T138: 0
S139: 0 | T139: 0
S140: 0 | T140: 0
S141: 0 | T141: 0
S142: 0 | T142: 0
S143: 0 | T143: 0
S144: 0 | T144: 0
S145: 0 | T145: 0
S146: =SUM(L146:Q146) -> 0 | T146: 0
S147: 0 | T147: 0
S148: 0 | T148: 0
S149: 0 | T149: 0
S150: 0 | T150: 0
S151: 0 | T151: 0
S152: 0 | T152: 0
S153: 0 | T153: 0
Q154: ATB | R154: ATB
A155: . | B155: BOYS | C155: GIRLS | D155: TOTAL | Q155: =SUMIF(H4:H153,"B",R4:R153) -> 4754 | R155: =SUMIF(H4:H153,"G",R4:R153) -> 0 | S155: =SUM(Q155:R155) -> 4754
A156: SC | B156: =COUNTIF($J$4:$J$153,"BSC") -> 4 | C156: =COUNTIF($J$4:$J$153,"GSC") -> 0 | D156: =SUM(B156:C156) -> 4
A157: ST | B157: =COUNTIF($J$4:$J$153,"BST") -> 15 | C157: =COUNTIF($J$4:$J$153,"GST") -> 0 | D157: =SUM(B157:C157) -> 15 | F157: MINORITY
A158: BC | B158: =COUNTIF($J$4:$J$153,"BBC") -> 7 | C158: =COUNTIF($J$4:$J$153,"GBC") -> 0 | D158: =SUM(B158:C158) -> 7 | F158: BOYS | G158: GIRLS
A159: OC | B159: =COUNTIF($J$4:$J$153,"BOC") -> 0 | C159: =COUNTIF($J$4:$J$153,"GOC") -> 0 | D159: =SUM(B159:C159) -> 0 | F159: =COUNTIF(K4:K47,"BY") -> 0 | G159: =COUNTIF(K4:K47,"GY") -> 0
A160: TOTAL | B160: =SUM(B156:B159) -> 26 | C160: =SUM(C156:C159) -> 0 | D160: =SUM(B160:C160) -> 26

Sheet VIEM
A1: VIEM-2018-19
A2: =RIGHT(CELL("filename",C2),LEN(CELL("filename",C2))-FIND("]",CELL("filename",C2))) -> VIEM | V2: GRADES
A3: RNO | B3: ADMN NO | C3: NAME OF THE STUDENT | D3: FATHER'S NAME | E3: CASTE | F3: DOB | G3: DOA | H3: SEX | I3: MUSLIM | L3: TEL | M3: HIN | N3: ENG | O3: MAT | P3: SCI | Q3: SOC | R3: ATT | S3: TOTAL M | T3: MARKS % | V3: TEL | W3: HIN | X3: ENG | Y3: MAT | Z3: SCI | AA3: SOC
A4: 1 | B4: 3837 | C4: AKHILA VATTI | D4: MALLESH | E4: BC | F4: 2007-09-20 | G4: 2018-06-20 | H4: G | J4: =H4&E4 -> GBC | K4: =H4&I4 -> G | L4: 96 | M4: 80 | N4: 44 | O4: 93 | P4: 59 | Q4: 76 | R4: 197 | S4: =SUM(L4:Q4) -> 448 | T4: =S4/600% -> 74.66666667 | V4: =fgrade(L4) -> A1 | W4: =fgrade(M4) -> B1 | X4: C2 | Y4: A1 | Z4: C1 | AA4: B1
A5: 2 | B5: 3767 | C5: AKSHITHA MANUPATI | D5: KUMAR | E5: ST | F5: 2008-03-25 | G5: 2018-06-04 | H5: G | J5: GST | K5: G | L5: 92 | M5: 47 | N5: 89 | O5: 45 | P5: 71 | Q5: 44 | R5: 159 | S5: =SUM(L5:Q5) -> 388 | T5: =S5/600% -> 64.66666667 | V5: =fgrade(L5) -> A1 | W5: =fgrade(M5) -> C2 | X5: =fgrade(N5) -> A2 | Y5: =fgrade(O5) -> C2 | Z5: =fgrade(P5) -> B1 | AA5: =fgrade(Q5) -> C2
A6: 3 | B6: 3813 | C6: ANJALI ALAMPALLY | D6: SRINIVAS | E6: OC | G6: 2018-06-11 | H6: G | J6: GOC | K6: G | L6: 74 | M6: 52 | N6: 97 | O6: 60 | P6: 92 | Q6: 98 | R6: 184 | S6: 473 | T6: 78.83333333 | V6: B1 | W6: C1 | X6: A1 | Y6: C1 | Z6: A1 | AA6: A1
A7: 4 | B7: 3810 | C7: ANJALI PUNAMUTHI | D7: RAJU | E7: BC | F7: 2006-02-05 | G7: 2018-06-11 | H7: G | J7: GBC | K7: G | L7: 94 | M7: 74 | N7: 89 | O7: 86 | P7: 78 | Q7: 85 | R7: 177 | S7: 506 | T7: 84.33333333 | V7: A1 | W7: B1 | X7: A2 | Y7: A2 | Z7: B1 | AA7: A2
A8: 5 | B8: 3770 | C8: DIVYA POLAMONI | D8: KRISHNA | E8: BC | F8: 2007-11-02 | G8: 2018-06-04 | H8: G | J8: GBC | K8: G | L8: 50 | M8: 66 | N8: 90 | O8: 90 | P8: 38 | Q8: 74 | R8: 195 | S8: 408 | T8: 68 | V8: C2 | W8: B2 | X8: A2 | Y8: A2 | Z8: D | AA8: B1
A9: 6 | B9: 3826 | C9: GAUTHAMI RAMAVATH | D9: SRINU | E9: ST | F9: 2008-10-01 | G9: 2018-06-21 | H9: G | J9: GST | K9: G | L9: 97 | M9: 38 | N9: 94 | O9: 65 | P9: 62 | Q9: 92 | R9: 151 | S9: 448 | T9: 74.66666667 | V9: A1 | W9: D | X9: A1 | Y9: B2 | Z9: B2 | AA9: A1
A10: 7 | B10: 3783 | C10: JHANSI ASHWALA | D10: YADAIAH | E10: BC | F10: 2008-08-08 | G10: 2018-06-05 | H10: G | J10: GBC | K10: G | L10: 95 | M10: 74 | N10: 40 | O10: 88 | P10: 56 | Q10: 80 | R10: 194 | S10: 433 | T10: 72.16666667 | V10: A1 | W10: B1 | X10: D | Y10: A2 | Z10: C1 | AA10: B1
A11: 8 | B11: 3840 | C11: MADHURI CHINDAM | D11: PANDU | E11: BC | F11: 2007-08-15 | G11: 2018-06-25 | H11: G | J11: GBC | K11: G | L11: 95 | M11: 40 | N11: 70 | O11: 100 | P11: 50 | Q11: 72 | R11: 185 | S11: 427 | T11: 71.16666667 | V11: A1 | W11: D | X11: B2 | Y11: A1 | Z11: C2 | AA11: B1
A12: 9 | B12: 3845 | C12: MANUSHA NUKAM | D12: VIJAY KUMAR | E12: BC | F12: 2006-05-25 | G12: 2018-06-28 | H12: G | J12: GBC | K12: G | L12: 85 | M12: 92 | N12: 36 | O12: 96 | P12: 59 | Q12: 79 | R12: 177 | S12: 447 | T12: 74.5 | V12: A2 | W12: A1 | X12: D | Y12: A1 | Z12: C1 | AA12: B1
A13: 10 | B13: 3780 | C13: NAGESWARI NUKAM | D13: YADAIAH | E13: BC | F13: 2007-10-14 | G13: 2018-06-05 | H13: G | J13: GBC | K13: G | L13: 76 | M13: 59 | N13: 89 | O13: 93 | P13: 55 | Q13: 46 | R13: 201 | S13: 418 | T13: 69.66666667 | V13: B1 | W13: C1 | X13: A2 | Y13: A1 | Z13: C1 | AA13: C2
A14: 11 | B14: 3818 | C14: NANDINI CHEEMALA | D14: JANGAIAH | E14: BC | F14: 2006-05-18 | G14: 2018-06-12 | H14: G | J14: GBC | K14: G | L14: 73 | M14: 50 | N14: 42 | O14: 71 | P14: 91 | Q14: 50 | R14: 182 | S14: 377 | T14: 62.83333333 | V14: B1 | W14: C2 | X14: C2 | Y14: B1 | Z14: A1 | AA14: C2
A15: 12 | B15: 3790 | C15: NAUSIN UNNISA | D15: MOURUDDIN | E15: OC | F15: 2008-05-08 | G15: 2018-06-06 | H15: G | J15: GOC | K15: G | L15: 92 | M15: 51 | N15: 85 | O15: 70 | P15: 69 | Q15: 55 | R15: 192 | S15: 422 | T15: 70.33333333 | V15: A1 | W15: C1 | X15: A2 | Y15: B2 | Z15: B2 | AA15: C1
A16: 13 | B16: 3769 | C16: PINKY MNUPATI | D16: MALLESH | E16: ST | F16: 2008-09-03 | G16: 2018-06-04 | H16: G | J16: GST | K16: G | L16: 49 | M16: 56 | N16: 69 | O16: 38 | P16: 49 | Q16: 62 | R16: 204 | S16: 323 | T16: 53.83333333 | V16: C2 | W16: C1 | X16: B2 | Y16: D | Z16: C2 | AA16: B2
A17: 14 | B17: 3787 | C17: PRASANNALAXMI GUDDIMALLA | D17: SATYANARAYANA | E17: BC | F17: 2006-09-05 | G17: 2018-06-06 | H17: G | J17: GBC | K17: G | L17: 36 | M17: 59 | N17: 36 | O17: 88 | P17: 67 | Q17: 44 | R17: 171 | S17: 330 | T17: 55 | V17: D | W17: C1 | X17: D | Y17: A2 | Z17: B2 | AA17: C2
A18: 15 | B18: 3781 | C18: PRIYANKA BANDA | D18: CHANDRAIAH | E18: BC | F18: 2007-10-04 | G18: 2018-06-05 | H18: G | J18: GBC | K18: G | L18: 44 | M18: 98 | N18: 89 | O18: 58 | P18: 84 | Q18: 49 | R18: 152 | S18: 422 | T18: 70.33333333 | V18: C2 | W18: A1 | X18: A2 | Y18: C1 | Z18: A2 | AA18: C2
A19: 16 | B19: 3821 | C19: PUJA DASARAMONI | D19: MOGILAIAH | E19: BC | F19: 2008-06-11 | G19: 2018-06-14 | H19: G | J19: GBC | K19: G | L19: 63 | M19: 78 | N19: 95 | O19: 75 | P19: 85 | Q19: 74 | R19: 171 | S19: 470 | T19: 78.33333333 | V19: B2 | W19: B1 | X19: A1 | Y19: B1 | Z19: A2 | AA19: B1
A20: 17 | B20: 3838 | C20: PUJA NALLABOTHU | D20: NARSIMHA | E20: BC | F20: 2008-02-18 | G20: 2018-06-20 | H20: G | J20: GBC | K20: G | L20: 58 | M20: 95 | N20: 92 | O20: 48 | P20: 37 | Q20: 40 | R20: 188 | S20: 370 | T20: 61.66666667 | V20: C1 | W20: A1 | X20: A1 | Y20: C2 | Z20: D | AA20: D
A21: 18 | B21: 3814 | C21: SINDHU CHINDAM | D21: BASHAIAH | E21: BC | F21: 2008-03-03 | G21: 2018-06-11 | H21: G | J21: GBC | K21: G | L21: 44 | M21: 93 | N21: 95 | O21: 100 | P21: 92 | Q21: 73 | R21: 190 | S21: 497 | T21: 82.83333333 | V21: C2 | W21: A1 | X21: A1 | Y21: A1 | Z21: A1 | AA21: B1
A22: 19 | B22: 3768 | C22: SOWMYA ANUPATI | D22: JANGAIAH | E22: SC | F22: 2007-09-20 | G22: 2018-06-04 | H22: G | J22: GSC | K22: G | L22: 38 | M22: 98 | N22: 35 | O22: 93 | P22: 81 | Q22: 47 | R22: 170 | S22: 392 | T22: 65.33333333 | V22: D | W22: A1 | X22: D | Y22: A1 | Z22: A2 | AA22: C2
A23: 20 | B23: 3819 | C23: SRAVANI PUNAMUTHI | D23: SATHAIAH | E23: BC | F23: 2008-11-18 | G23: 2018-06-13 | H23: G | J23: GBC | K23: G | L23: 80 | M23: 90 | N23: 88 | O23: 86 | P23: 48 | Q23: 42 | R23: 171 | S23: 434 | T23: 72.33333333 | V23: B1 | W23: A2 | X23: A2 | Y23: A2 | Z23: C2 | AA23: C2
A24: 21 | B24: 3788 | C24: SREELEKHA ANAMGALLA | D24: BALRAJ | E24: SC | F24: 2007-08-26 | G24: 2018-06-06 | H24: G | J24: GSC | K24: G | L24: 82 | M24: 44 | N24: 90 | O24: 78 | P24: 61 | Q24: 71 | R24: 181 | S24: 426 | T24: 71 | V24: A2 | W24: C2 | X24: A2 | Y24: B1 | Z24: B2 | AA24: B1
A25: 22 | B25: 3809 | C25: SWAPNA GODUGU | D25: SHANKER | E25: BC | F25: 2007-08-07 | G25: 2018-06-11 | H25: G | J25: GBC | K25: G | L25: 92 | M25: 95 | N25: 76 | O25: 89 | P25: 96 | Q25: 92 | R25: 164 | S25: 540 | T25: 90 | V25: A1 | W25: A1 | X25: B1 | Y25: A2 | Z25: A1 | AA25: A1
A26: 23 | B26: 3797 | C26: SWATHI MADAPAKULA | D26: KRISHNAIAH | E26: BC | F26: 2007-08-29 | G26: 2018-06-07 | H26: G | J26: GBC | K26: G | L26: 51 | M26: 61 | N26: 55 | O26: 61 | P26: 41 | Q26: 65 | R26: 206 | S26: 334 | T26: 55.66666667 | V26: C1 | W26: B2 | X26: C1 | Y26: B2 | Z26: C2 | AA26: B2
A27: 24 | B27: 3817 | C27: TULASI BOYAPALLY | D27: ANJAIAH | E27: BC | F27: 2007-10-09 | G27: 2018-06-12 | H27: G | J27: GBC | K27: G | L27: 60 | M27: 62 | N27: 80 | O27: 47 | P27: 51 | Q27: 58 | R27: 173 | S27: 358 | T27: 59.66666667 | V27: C1 | W27: B2 | X27: B1 | Y27: C2 | Z27: C1 | AA27: C1
A28: 25 | B28: 3824 | C28: VAISHNAVI MARAPAKA | D28: DARSHAN | E28: SC | F28: 2006-10-13 | G28: 2018-06-19 | H28: G | J28: GSC | K28: G | L28: 61 | M28: 96 | N28: 73 | O28: 49 | P28: 99 | Q28: 40 | R28: 151 | S28: 418 | T28: 69.66666667 | V28: B2 | W28: A1 | X28: B1 | Y28: C2 | Z28: A1 | AA28: D
A29: 26 | B29: 3766 | C29: BHARATSAI YAMJALA | D29: VENKATESH | E29: SC | F29: 2007-02-07 | G29: 2018-06-04 | H29: B | J29: BSC | K29: B | L29: 39 | M29: 66 | N29: 75 | O29: 55 | P29: 65 | Q29: 72 | R29: 184 | S29: 372 | T29: 62 | V29: D | W29: B2 | X29: B1 | Y29: C1 | Z29: B2 | AA29: B1
A30: 27 | B30: 3825 | C30: CHANDU BOPPANI | D30: MALLESH | E30: SC | F30: 2004-08-07 | G30: 2018-06-20 | H30: B | J30: BSC | K30: B | L30: 39 | M30: 79 | N30: 79 | O30: 86 | P30: 75 | Q30: 84 | R30: 190 | S30: 442 | T30: 73.66666667 | V30: D | W30: B1 | X30: B1 | Y30: A2 | Z30: B1 | AA30: A2
A31: 28 | B31: 3841 | C31: DEVENDAR VADYAVATH | D31: MOTHILAL | E31: ST | F31: 2007-11-02 | G31: 2018-06-25 | H31: B | J31: BST | K31: B | L31: 74 | M31: 49 | N31: 39 | O31: 90 | P31: 73 | Q31: 38 | R31: 182 | S31: 363 | T31: 60.5 | V31: B1 | W31: C2 | X31: D | Y31: A2 | Z31: B1 | AA31: D
A32: 29 | B32: 3798 | C32: KIRAN POLAMONI | D32: SATHAIAH | E32: BC | F32: 2007-06-16 | G32: 2018-06-07 | H32: B | J32: BBC | K32: B | L32: 54 | M32: 54 | N32: 96 | O32: 77 | P32: 36 | Q32: 55 | R32: 178 | S32: 372 | T32: 62 | V32: C1 | W32: C1 | X32: A1 | Y32: B1 | Z32: D | AA32: C1
A33: 30 | B33: 3823 | C33: KRISHNA BOYINI | D33: CHANDRAIAH | E33: BC | F33: 2005-08-10 | G33: 2018-06-18 | H33: B | J33: BBC | K33: B | L33: 54 | M33: 69 | N33: 82 | O33: 81 | P33: 41 | Q33: 100 | R33: 184 | S33: 427 | T33: 71.16666667 | V33: C1 | W33: B2 | X33: A2 | Y33: A2 | Z33: C2 | AA33: A1
A34: 31 | B34: 3812 | C34: MADHU BUSSU | D34: RAJU | E34: BC | F34: 2007-05-11 | G34: 2018-06-11 | H34: B | J34: BBC | K34: B | L34: 89 | M34: 71 | N34: 82 | O34: 69 | P34: 86 | Q34: 50 | R34: 197 | S34: 447 | T34: 74.5 | V34: A2 | W34: B1 | X34: A2 | Y34: B2 | Z34: A2 | AA34: C2
A35: 32 | B35: 3791 | C35: MAHENDAR NUTHANAGANTI | D35: SHANKARAIAH | E35: BC | F35: 2009-08-07 | G35: 2018-06-06 | H35: B | J35: BBC | K35: B | L35: 73 | M35: 39 | N35: 39 | O35: 95 | P35: 72 | Q35: 47 | R35: 152 | S35: 365 | T35: 60.83333333 | V35: B1 | W35: D | X35: D | Y35: A1 | Z35: B1 | AA35: C2
A36: 33 | B36: 3820 | C36: MAHESH KANDALA | D36: BEERAPPA | E36: BC | F36: 2007-03-01 | G36: 2018-06-13 | H36: B | J36: BBC | K36: B | L36: 64 | M36: 37 | N36: 81 | O36: 65 | P36: 100 | Q36: 70 | R36: 193 | S36: 417 | T36: 69.5 | V36: B2 | W36: D | X36: A2 | Y36: B2 | Z36: A1 | AA36: B2
A37: 34 | B37: 3834 | C37: MAHESH KOLLOJU | D37: CHANDRAIAH | E37: BC | F37: 2006-08-29 | G37: 2018-06-19 | H37: B | J37: BBC | K37: B | L37: 36 | M37: 59 | N37: 52 | O37: 59 | P37: 86 | Q37: 58 | R37: 185 | S37: 350 | T37: 58.33333333 | V37: D | W37: C1 | X37: C1 | Y37: C1 | Z37: A2 | AA37: C1
A38: 35 | B38: 3789 | C38: NAVADEEP DASARAMONI | D38: VENKATESH | E38: BC | F38: 2008-08-06 | G38: 2018-06-06 | H38: B | J38: BBC | K38: B | L38: 36 | M38: 36 | N38: 55 | O38: 60 | P38: 73 | Q38: 74 | R38: 201 | S38: 334 | T38: 55.66666667 | V38: D | W38: D | X38: C1 | Y38: C1 | Z38: B1 | AA38: B1
A39: 36 | B39: 3786 | C39: NITIN MANKU | D39: RAMESH | E39: SC | F39: 2007-10-04 | G39: 2018-06-06 | H39: B | J39: BSC | K39: B | L39: 76 | M39: 65 | N39: 54 | O39: 64 | P39: 44 | Q39: 65 | R39: 165 | S39: 368 | T39: 61.33333333 | V39: B1 | W39: B2 | X39: C1 | Y39: B2 | Z39: C2 | AA39: B2
A40: 37 | B40: 3782 | C40: PRANAY MADDELA | D40: BALRAJ | E40: BC | F40: 2008-01-08 | G40: 2018-06-05 | H40: B | J40: BBC | K40: B | L40: 90 | M40: 61 | N40: 64 | O40: 70 | P40: 92 | Q40: 77 | R40: 199 | S40: 454 | T40: 75.66666667 | V40: A2 | W40: B2 | X40: B2 | Y40: B2 | Z40: A1 | AA40: B1
A41: 38 | B41: 3822 | C41: RAJU JILAMONI | D41: KRISHNAIAH | E41: BC | F41: 2008-04-08 | G41: 2018-06-14 | H41: B | J41: BBC | K41: B | L41: 95 | M41: 61 | N41: 78 | O41: 46 | P41: 95 | Q41: 93 | R41: 176 | S41: 468 | T41: 78 | V41: A1 | W41: B2 | X41: B1 | Y41: C2 | Z41: A1 | AA41: A1
A42: 39 | B42: 3793 | C42: RAMCHARAN JILAMONI | D42: BASHAIAH | E42: BC | F42: 2006-01-01 | G42: 2018-06-06 | H42: B | J42: BBC | K42: B | L42: 59 | M42: 56 | N42: 45 | O42: 80 | P42: 48 | Q42: 97 | R42: 195 | S42: 385 | T42: 64.16666667 | V42: C1 | W42: C1 | X42: C2 | Y42: B1 | Z42: C2 | AA42: A1
A43: 40 | B43: 3792 | C43: RAMCHARAN SABHAVAT | D43: PANDU | E43: ST | F43: 2008-11-26 | G43: 2018-06-06 | H43: B | J43: BST | K43: B | L43: 89 | M43: 87 | N43: 48 | O43: 92 | P43: 86 | Q43: 43 | R43: 164 | S43: 445 | T43: 74.16666667 | V43: A2 | W43: A2 | X43: C2 | Y43: A1 | Z43: A2 | AA43: C2
A44: 41 | B44: 3811 | C44: RAMU NUTANAGANTI | D44: JANGAIAH | E44: BC | F44: 2007-04-24 | G44: 2018-06-11 | H44: B | J44: BBC | K44: B | L44: 96 | M44: 44 | N44: 89 | O44: 92 | P44: 70 | Q44: 100 | R44: 208 | S44: 491 | T44: 81.83333333 | V44: A1 | W44: C2 | X44: A2 | Y44: A1 | Z44: B2 | AA44: A1
A45: 42 | B45: 3771 | C45: SHIVAPRASAD NUKAM | D45: ANJAIAH | E45: BC | F45: 2008-08-12 | G45: 2018-06-04 | H45: B | J45: BBC | K45: B | L45: 75 | M45: 41 | N45: 76 | O45: 81 | P45: 67 | Q45: 41 | R45: 165 | S45: 381 | T45: 63.5 | V45: B1 | W45: C2 | X45: B1 | Y45: A2 | Z45: B2 | AA45: C2
A46: 43 | B46: 3778 | C46: VINAY DASARAMONI | D46: RAMESH | E46: BC | F46: 2007-07-07 | G46: 2018-06-05 | H46: B | J46: BBC | K46: B | L46: 42 | M46: 84 | N46: 73 | O46: 98 | P46: 73 | Q46: 90 | R46: 172 | S46: 460 | T46: 76.66666667 | V46: C2 | W46: A2 | X46: B1 | Y46: A1 | Z46: B1 | AA46: A2
A47: 44 | B47: 3832 | C47: VINAY ERPULA | D47: RAJU | E47: SC | F47: 2007-07-16 | G47: 2018-06-18 | H47: B | J47: BSC | K47: B | L47: 74 | M47: 41 | N47: 87 | O47: 38 | P47: 86 | Q47: 75 | R47: 157 | S47: 401 | T47: 66.83333333 | V47: B1 | W47: C2 | X47: A2 | Y47: D | Z47: A2 | AA47: B1
S48: 0 | T48: 0
S49: =SUM(L49:Q49) -> 0 | T49: 0
J50: =H50&E50 ->  | K50: =H50&I50 ->  | S50: =SUM(L50:Q50) -> 0 | T50: 0
S51: 0 | T51: 0
S52: 0 | T52: 0
S53: 0 | T53: 0
S54: 0 | T54: 0
S55: 0 | T55: 0
S56: 0 | T56: 0
S57: 0 | T57: 0
S58: 0 | T58: 0
S59: 0 | T59: 0
S60: 0 | T60: 0
S61: 0 | T61: 0
S62: 0 | T62: 0
S63: 0 | T63: 0
S64: 0 | T64: 0
S65: 0 | T65: 0
S66: 0 | T66: 0
S67: 0 | T67: 0
S68: 0 | T68: 0
S69: 0 | T69: =S69/600% -> 0 | V69: =fgrade(L69) ->  | W69: =fgrade(M69) ->  | X69: =fgrade(N69) ->  | Y69: =fgrade(O69) ->  | Z69: =fgrade(P69) ->  | AA69: =fgrade(Q69) -> 
S70: 0 | T70: 0
S71: 0 | T71: 0
S72: 0 | T72: 0
S73: 0 | T73: 0
S74: 0 | T74: 0
S75: 0 | T75: 0
S76: 0 | T76: 0
S77: 0 | T77: 0
S78: 0 | T78: 0
S79: 0 | T79: 0
S80: 0 | T80: 0
S81: 0 | T81: 0
S82: 0 | T82: 0
S83: 0 | T83: 0
S84: 0 | T84: 0
S85: 0 | T85: 0
S86: 0 | T86: 0
S87: 0 | T87: 0
S88: 0 | T88: 0
S89: 0 | T89: 0
S90: 0 | T90: 0
S91: 0 | T91: 0
J92: =H92&E92 ->  | K92: =H92&I92 ->  | S92: 0 | T92: 0
S93: 0 | T93: 0
S94: 0 | T94: 0
S95: 0 | T95: 0
S96: 0 | T96: 0
S97: 0 | T97: 0
S98: 0 | T98: 0
S99: 0 | T99: 0
S100: 0 | T100: 0
S101: 0 | T101: 0
S102: 0 | T102: 0
S103: 0 | T103: 0
S104: 0 | T104: 0
S105: 0 | T105: 0
S106: 0 | T106: 0
S107: 0 | T107: 0
S108: 0 | T108: 0
S109: 0 | T109: 0
S110: 0 | T110: 0
S111: 0 | T111: 0
S112: 0 | T112: 0
S113: 0 | T113: 0
S114: =SUM(L114:Q114) -> 0 | T114: 0
S115: 0 | T115: 0
S116: 0 | T116: 0
S117: 0 | T117: 0
S118: 0 | T118: 0
S119: 0 | T119: 0
S120: 0 | T120: 0
S121: 0 | T121: 0
S122: 0 | T122: 0
S123: 0 | T123: 0
S124: 0 | T124: 0
S125: 0 | T125: 0
S126: 0 | T126: 0
S127: 0 | T127: 0
S128: 0 | T128: 0
S129: 0 | T129: 0
S130: 0 | T130: 0
S131: 0 | T131: 0
J132: =H132&E132 ->  | K132: =H132&I132 ->  | S132: 0 | T132: 0
S133: 0 | T133: =S133/600% -> 0 | V133: =fgrade(L133) ->  | W133: =fgrade(M133) ->  | X133: =fgrade(N133) ->  | Y133: =fgrade(O133) ->  | Z133: =fgrade(P133) ->  | AA133: =fgrade(Q133) -> 
S134: 0 | T134: 0
S135: 0 | T135: 0
S136: 0 | T136: 0
S137: 0 | T137: 0
S138: 0 | T138: 0
S139: 0 | T139: 0
S140: 0 | T140: 0
S141: 0 | T141: 0
S142: 0 | T142: 0
S143: 0 | T143: 0
S144: 0 | T144: 0
S145: 0 | T145: 0
S146: 0 | T146: 0
S147: 0 | T147: 0
S148: 0 | T148: 0
S149: 0 | T149: 0
S150: 0 | T150: 0
S151: 0 | T151: 0
S152: 0 | T152: 0
S153: 0 | T153: 0
A154: . | Q154: AT6B | R154: AT6G
A155: . | B155: BOYS | C155: GIRLS | D155: TOTAL | Q155: =SUMIF(H4:H153,"B",R4:R153) -> 3447 | R155: =SUMIF(H4:H153,"G",R4:R153) -> 4486 | S155: =SUM(Q155:R155) -> 7933
A156: SC | B156: =COUNTIF($J$4:$J$153,"BSC") -> 4 | C156: =COUNTIF($J$4:$J$153,"GSC") -> 3 | D156: =SUM(B156:C156) -> 7
A157: ST | B157: =COUNTIF($J$4:$J$153,"BST") -> 2 | C157: =COUNTIF($J$4:$J$153,"GST") -> 3 | D157: =SUM(B157:C157) -> 5
A158: BC | B158: =COUNTIF($J$4:$J$153,"BBC") -> 13 | C158: =COUNTIF($J$4:$J$153,"GBC") -> 17 | D158: =SUM(B158:C158) -> 30 | F158: MIN BOY | G158: MIN GIRL
A159: OC | B159: =COUNTIF($J$4:$J$153,"BOC") -> 0 | C159: =COUNTIF($J$4:$J$153,"GOC") -> 2 | D159: =SUM(B159:C159) -> 2 | F159: =COUNTIF(K4:K154,"BY") -> 0 | G159: =COUNTIF(K4:K154,"GY") -> 0
A160: TOTAL | B160: =SUM(B156:B159) -> 19 | C160: =SUM(C156:C159) -> 25 | D160: =SUM(B160:C160) -> 44

Sheet VIIEM
A1: VIIEM-2018-19
A2: =RIGHT(CELL("filename",C3),LEN(CELL("filename",C3))-FIND("]",CELL("filename",C3))) -> VIIEM | V2: GRADES
A3: RNO | B3: ADMN NO | C3: NAME OF THE STUDENT | D3: FATHER'S NAME | E3: CASTE | F3: DOB | G3: DOA | H3: SEX | I3: MUSLIM | L3: TEL | M3: HIN | N3: ENG | O3: MAT | P3: SCI | Q3: SOC | R3: ATT | S3: TOTAL M | T3: MARKS % | V3: TEL | W3: HIN | X3: ENG | Y3: MAT | Z3: SCI | AA3: SOC
A4: 1 | B4: 3749 | C4: ABHINAYASREE DASARAMONI | D4: VENKATESH | E4: BC | F4: 2006-06-27 | G4: 2017-07-05 | H4: G | J4: =TRIM(H4&E4) -> GBC | K4: =H4&I4 -> G | L4: 72 | M4: 60 | N4: 55 | O4: 76 | P4: 47 | Q4: 96 | R4: 169 | S4: =SUM(L4:Q4) -> 406 | T4: =S4/600% -> 67.66666667 | V4: =fgrade(L4) -> B1 | W4: =fgrade(M4) -> C1 | X4: C1 | Y4: B1 | Z4: C2 | AA4: A1
A5: 2 | B5: 3643 | C5: AKHILA PAMBALA | D5: GOPAL | E5: SC | F5: 2007-08-05 | G5: 2017-03-25 | H5: G | J5: GSC | K5: G | L5: 59 | M5: 82 | N5: 99 | O5: 46 | P5: 67 | Q5: 68 | R5: 207 | S5: =SUM(L5:Q5) -> 421 | T5: =S5/600% -> 70.16666667 | V5: =fgrade(L5) -> C1 | W5: =fgrade(M5) -> A2 | X5: =fgrade(N5) -> A1 | Y5: =fgrade(O5) -> C2 | Z5: =fgrade(P5) -> B2 | AA5: =fgrade(Q5) -> B2
A6: 3 | B6: 3698 | C6: AKSHAYA GODUGU | D6: PARVATHALU | E6: BC | F6: 2007-06-14 | G6: 2017-04-10 | H6: G | J6: GBC | K6: G | L6: 93 | M6: 89 | N6: 77 | O6: 61 | P6: 99 | Q6: 100 | R6: 158 | S6: 519 | T6: 86.5 | V6: A1 | W6: A2 | X6: B1 | Y6: B2 | Z6: A1 | AA6: A1
A7: 4 | B7: 3685 | C7: ANUSHA GOREGE | D7: ILAIAH | E7: BC | F7: 2005-06-01 | G7: 2017-04-04 | H7: G | J7: GBC | K7: G | L7: 41 | M7: 37 | N7: 75 | O7: 64 | P7: 86 | Q7: 91 | R7: 151 | S7: 394 | T7: 65.66666667 | V7: C2 | W7: D | X7: B1 | Y7: B2 | Z7: A2 | AA7: A1
A8: 5 | B8: 3700 | C8: ANUSHA RAVULA | D8: KRISHNAIAH | E8: BC | F8: 2006-10-15 | G8: 2017-04-19 | H8: G | J8: GBC | K8: G | L8: 100 | M8: 47 | N8: 93 | O8: 46 | P8: 92 | Q8: 77 | R8: 212 | S8: 455 | T8: 75.83333333 | V8: A1 | W8: C2 | X8: A1 | Y8: C2 | Z8: A1 | AA8: B1
A9: 6 | B9: 3756 | C9: BHANUSREE NUKAM | D9: DHANAIAH | E9: BC | F9: 2004-08-15 | G9: 2017-08-17 | H9: G | J9: GBC | K9: G | L9: 69 | M9: 100 | N9: 74 | O9: 59 | P9: 85 | Q9: 53 | R9: 157 | S9: 440 | T9: 73.33333333 | V9: B2 | W9: A1 | X9: B1 | Y9: C1 | Z9: A2 | AA9: C1
A10: 7 | B10: 3686 | C10: BHARGAVISREE | D10: RAJU | E10: BC | F10: 2004-12-28 | G10: 2017-04-04 | H10: G | J10: GBC | K10: G | L10: 52 | M10: 68 | N10: 76 | O10: 67 | P10: 70 | Q10: 71 | R10: 185 | S10: 404 | T10: 67.33333333 | V10: C1 | W10: B2 | X10: B1 | Y10: B2 | Z10: B2 | AA10: B1
A11: 8 | B11: 3702 | C11: BHAVANI ALAMPALLY | D11: SRINIVAS | E11: OC | F11: 2006-11-17 | G11: 2017-06-12 | H11: G | J11: GOC | K11: G | L11: 42 | M11: 55 | N11: 37 | O11: 59 | P11: 37 | Q11: 91 | R11: 195 | S11: 321 | T11: 53.5 | V11: C2 | W11: C1 | X11: D | Y11: C1 | Z11: D | AA11: A1
A12: 9 | B12: 3689 | C12: BHOOMIKA CHIMARLA | D12: VENKATAIAH | E12: SC | F12: 2006-01-01 | G12: 2017-04-04 | H12: G | J12: GSC | K12: G | L12: 52 | M12: 40 | N12: 77 | O12: 36 | P12: 94 | Q12: 58 | R12: 207 | S12: 357 | T12: 59.5 | V12: C1 | W12: D | X12: B1 | Y12: D | Z12: A1 | AA12: C1
A13: 10 | B13: 3691 | C13: DEEPA NUKAM | D13: DHANAIAH | E13: BC | F13: 2006-09-07 | G13: 2017-04-04 | H13: G | J13: GBC | K13: G | L13: 94 | M13: 41 | N13: 68 | O13: 88 | P13: 62 | Q13: 35 | R13: 150 | S13: 388 | T13: 64.66666667 | V13: A1 | W13: C2 | X13: B2 | Y13: A2 | Z13: B2 | AA13: D
A14: 11 | B14: 3644 | C14: ISHWARYA SATHIRI | D14: RAVI | E14: SC | F14: 2006-07-03 | G14: 2017-06-12 | H14: G | J14: GSC | K14: G | L14: 43 | M14: 89 | N14: 51 | O14: 84 | P14: 54 | Q14: 92 | R14: 159 | S14: 413 | T14: 68.83333333 | V14: C2 | W14: A2 | X14: C1 | Y14: A2 | Z14: C1 | AA14: A1
A15: 12 | B15: 3703 | C15: KALPANA POLAMONI | D15: SATHAIAH | E15: BC | F15: 2005-08-08 | G15: 2017-04-04 | H15: G | J15: GBC | K15: G | L15: 67 | M15: 38 | N15: 51 | O15: 56 | P15: 72 | Q15: 51 | R15: 194 | S15: 335 | T15: 55.83333333 | V15: B2 | W15: D | X15: C1 | Y15: C1 | Z15: B1 | AA15: C1
A16: 13 | B16: 3663 | C16: KAVITHA JILAMONI | D16: MARAIAH | E16: BC | F16: 2006-10-07 | G16: 2017-04-03 | H16: G | J16: GBC | K16: G | L16: 50 | M16: 74 | N16: 88 | O16: 51 | P16: 59 | Q16: 56 | R16: 206 | S16: 378 | T16: 63 | V16: C2 | W16: B1 | X16: A2 | Y16: C1 | Z16: C1 | AA16: C1
A17: 14 | B17: 3637 | C17: NANDINI SATHIRI | D17: PAPAIAH | E17: SC | F17: 2006-08-10 | G17: 2017-03-24 | H17: G | J17: GSC | K17: G | L17: 91 | M17: 45 | N17: 88 | O17: 46 | P17: 57 | Q17: 37 | R17: 196 | S17: 364 | T17: 60.66666667 | V17: A1 | W17: C2 | X17: A2 | Y17: C2 | Z17: C1 | AA17: D
A18: 15 | B18: 3741 | C18: NAVYA KAMANDLAPALLY | D18: SRINIVAS | E18: BC | F18: 2007-11-13 | G18: 2017-07-03 | H18: G | J18: GBC | K18: G | L18: 59 | M18: 99 | N18: 100 | O18: 65 | P18: 88 | Q18: 88 | R18: 166 | S18: 499 | T18: 83.16666667 | V18: C1 | W18: A1 | X18: A1 | Y18: B2 | Z18: A2 | AA18: A2
A19: 16 | B19: 3665 | C19: NIKITHA MANKU | D19: NARASIMHA | E19: BC | F19: 2006-01-13 | G19: 2017-04-03 | H19: G | J19: GBC | K19: G | L19: 90 | M19: 91 | N19: 72 | O19: 95 | P19: 69 | Q19: 99 | R19: 151 | S19: 516 | T19: =S19/600% -> 86 | V19: A2 | W19: A1 | X19: B1 | Y19: A1 | Z19: B2 | AA19: A1
A20: 17 | B20: 3693 | C20: PALLAVI DASARAMONI | D20: SURESH | E20: BC | F20: 2007-02-21 | G20: 2017-04-04 | H20: G | J20: GBC | K20: G | L20: 55 | M20: 49 | N20: 53 | O20: 78 | P20: 44 | Q20: 52 | R20: 200 | S20: 331 | T20: 55.16666667 | V20: C1 | W20: C2 | X20: C1 | Y20: B1 | Z20: C2 | AA20: C1
A21: 18 | B21: 3690 | C21: PALLAVI JILAMONI | D21: SRINIVAS | E21: BC | F21: 2007-02-16 | G21: 2017-04-04 | H21: G | J21: GBC | K21: G | L21: 50 | M21: 89 | N21: 40 | O21: 96 | P21: 39 | Q21: 64 | R21: 168 | S21: 378 | T21: 63 | V21: C2 | W21: A2 | X21: D | Y21: A1 | Z21: D | AA21: B2
A22: 19 | B22: 3692 | C22: POOJA CHINDAM | D22: BEERAPPA | E22: BC | F22: 2007-07-20 | G22: 2017-04-04 | H22: G | J22: GBC | K22: G | L22: 45 | M22: 51 | N22: 65 | O22: 57 | P22: 66 | Q22: 83 | R22: 201 | S22: 367 | T22: 61.16666667 | V22: C2 | W22: C1 | X22: B2 | Y22: C1 | Z22: B2 | AA22: A2
A23: 20 | B23: 3684 | C23: POOJA DASARAMONI | D23: SURESH | E23: BC | F23: 2005-05-13 | G23: 2017-04-04 | H23: G | J23: GBC | K23: G | L23: 70 | M23: 75 | N23: 44 | O23: 81 | P23: 62 | Q23: 70 | R23: 182 | S23: 402 | T23: 67 | V23: B2 | W23: B1 | X23: C2 | Y23: A2 | Z23: B2 | AA23: B2
A24: 21 | B24: 3667 | C24: POOJITHA DASARAMONI | D24: DASARATHA | E24: BC | F24: 2007-08-03 | G24: 2017-04-03 | H24: G | J24: GBC | K24: G | L24: 80 | M24: 69 | N24: 42 | O24: 81 | P24: 80 | Q24: 87 | R24: 199 | S24: 439 | T24: 73.16666667 | V24: B1 | W24: B2 | X24: C2 | Y24: A2 | Z24: B1 | AA24: A2
A25: 22 | B25: 3687 | C25: RANI GORIGE | D25: JANGAIAH | E25: BC | F25: 2006-06-14 | G25: 2017-04-04 | H25: G | J25: GBC | K25: G | L25: 90 | M25: 89 | N25: 47 | O25: 88 | P25: 65 | Q25: 61 | R25: 198 | S25: 440 | T25: 73.33333333 | V25: A2 | W25: A2 | X25: C2 | Y25: A2 | Z25: B2 | AA25: B2
A26: 23 | B26: 3664 | C26: SHIRISHA ANUPATI | D26: JANGIAH | E26: SC | F26: 2005-06-14 | G26: 2017-04-03 | H26: G | J26: GSC | K26: G | L26: 63 | M26: 77 | N26: 68 | O26: 39 | P26: 50 | Q26: 92 | R26: 205 | S26: 389 | T26: 64.83333333 | V26: B2 | W26: B1 | X26: B2 | Y26: D | Z26: C2 | AA26: A1
A27: 24 | B27: 3688 | C27: SHIVANI MANKU | D27: DARSHAN | E27: BC | F27: 2006-05-10 | G27: 2017-04-04 | H27: G | J27: GBC | K27: G | L27: 89 | M27: 41 | N27: 45 | O27: 51 | P27: 42 | Q27: 85 | R27: 205 | S27: 353 | T27: 58.83333333 | V27: A2 | W27: C2 | X27: C2 | Y27: C1 | Z27: C2 | AA27: A2
A28: 25 | B28: 3699 | C28: SHIVANI RAVULA | D28: SRISAILAM | E28: BC | F28: 2006-10-11 | G28: 2017-04-13 | H28: G | J28: GBC | K28: G | L28: 43 | M28: 92 | N28: 41 | O28: 42 | P28: 73 | Q28: 36 | R28: 169 | S28: 327 | T28: 54.5 | V28: C2 | W28: A1 | X28: C2 | Y28: C2 | Z28: B1 | AA28: D
A29: 26 | B29: 3705 | C29: SHIVANI RAVULA | D29: VENKATESH | E29: BC | F29: 2006-06-13 | G29: 2017-06-04 | H29: G | J29: GBC | K29: G | L29: 52 | M29: 59 | N29: 63 | O29: 63 | P29: 43 | Q29: 40 | R29: 183 | S29: 320 | T29: 53.33333333 | V29: C1 | W29: C1 | X29: B2 | Y29: B2 | Z29: C2 | AA29: D
A30: 27 | B30: 3668 | C30: SPANDANA BODDU | D30: VENKATESH | E30: BC | F30: 2007-08-29 | G30: 2017-04-03 | H30: G | J30: GBC | K30: G | L30: 42 | M30: 84 | N30: 54 | O30: 64 | P30: 38 | Q30: 96 | R30: 159 | S30: 378 | T30: 63 | V30: C2 | W30: A2 | X30: C1 | Y30: B2 | Z30: D | AA30: A1
A31: 28 | B31: 3669 | C31: SREEJA POTLA | D31: JANGAIAH | E31: SC | F31: 2006-01-16 | G31: 2017-04-03 | H31: G | J31: GSC | K31: G | L31: 73 | M31: 44 | N31: 84 | O31: 44 | P31: 35 | Q31: 95 | R31: 199 | S31: 375 | T31: 62.5 | V31: B1 | W31: C2 | X31: A2 | Y31: C2 | Z31: D | AA31: A1
A32: 29 | B32: 3670 | C32: SWATHI MANKU | D32: RAVI | E32: SC | F32: 2006-06-19 | G32: 2017-04-03 | H32: G | J32: GSC | K32: G | L32: 62 | M32: 92 | N32: 72 | O32: 88 | P32: 89 | Q32: 35 | R32: 211 | S32: 438 | T32: 73 | V32: B2 | W32: A1 | X32: B1 | Y32: A2 | Z32: A2 | AA32: D
A33: 30 | B33: 3753 | C33: VAISHNAVI CHINDAM | D33: BHASHAIAH | E33: BC | F33: 2005-12-23 | G33: 2017-06-20 | H33: G | J33: GBC | K33: G | L33: 93 | M33: 95 | N33: 69 | O33: 39 | P33: 88 | Q33: 37 | R33: 176 | S33: 421 | T33: 70.16666667 | V33: A1 | W33: A1 | X33: B2 | Y33: D | Z33: A2 | AA33: D
A34: 31 | B34: 3734 | C34: VAISHNAVI JOGU | D34: SUDHAKAR | E34: SC | F34: 2005-06-02 | G34: 2017-06-28 | H34: G | J34: GSC | K34: G | L34: 67 | M34: 36 | N34: 47 | O34: 64 | P34: 64 | Q34: 47 | R34: 172 | S34: 325 | T34: 54.16666667 | V34: B2 | W34: D | X34: C2 | Y34: B2 | Z34: B2 | AA34: C2
A35: 32 | B35: 3732 | C35: VAISHNAVI KASULA | D35: JANGAIAH | E35: BC | F35: 2006-10-04 | G35: 2017-08-02 | H35: G | J35: GBC | K35: G | L35: 35 | M35: 69 | N35: 72 | O35: 79 | P35: 93 | Q35: 95 | R35: 207 | S35: 443 | T35: 73.83333333 | V35: D | W35: B2 | X35: B1 | Y35: B1 | Z35: A1 | AA35: A1
A36: 33 | B36: 3557 | C36: VAMSHI B | D36: RAJU | E36: BC | F36: 2005-07-06 | G36: 2016-06-28 | H36: G | J36: GBC | K36: G | L36: 59 | M36: 94 | N36: 55 | O36: 72 | P36: 60 | Q36: 75 | R36: 159 | S36: 415 | T36: 69.16666667 | V36: C1 | W36: A1 | X36: C1 | Y36: B1 | Z36: C1 | AA36: B1
A37: 34 | B37: 3696 | C37: VIJAYA POOJARI | D37: VEERESH | E37: BC | F37: 2007-11-19 | G37: 2017-04-07 | H37: G | J37: GBC | K37: G | L37: 55 | M37: 45 | N37: 73 | O37: 91 | P37: 64 | Q37: 45 | R37: 202 | S37: 373 | T37: 62.16666667 | V37: C1 | W37: C2 | X37: B1 | Y37: A1 | Z37: B2 | AA37: C2
A38: 35 | B38: 3493 | C38: VINAY G | D38: SRINIVAS | E38: BC | F38: 2005-08-26 | G38: 2016-06-15 | H38: G | J38: GBC | K38: G | L38: 98 | M38: 72 | N38: 56 | O38: 81 | P38: 51 | Q38: 74 | R38: 192 | S38: 432 | T38: 72 | V38: A1 | W38: B1 | X38: C1 | Y38: A2 | Z38: C1 | AA38: B1
A39: 36 | B39: 3719 | C39: ANAND LONGARI | D39: MAHESH | E39: BC | F39: 2003-08-09 | G39: 2017-06-20 | H39: B | J39: BBC | K39: B | L39: 86 | M39: 88 | N39: 80 | O39: 76 | P39: 100 | Q39: 68 | R39: 182 | S39: 498 | T39: 83 | V39: A2 | W39: A2 | X39: B1 | Y39: B1 | Z39: A1 | AA39: B2
A40: 37 | B40: 3847 | C40: AVANTHIKA ANDOJU | D40: CHANDRASHEKAR | E40: BC | F40: 2006-05-31 | G40: 2018-06-11 | H40: B | J40: BBC | K40: B | L40: 63 | M40: 91 | N40: 36 | O40: 40 | P40: 38 | Q40: 72 | R40: 179 | S40: 340 | T40: 56.66666667 | V40: B2 | W40: A1 | X40: D | Y40: D | Z40: D | AA40: B1
A41: 38 | B41: 3815 | C41: GANESH GUDDIMALLA | D41: RAMULU | E41: BC | F41: 2005-11-17 | G41: 2018-06-12 | H41: B | J41: BBC | K41: B | L41: 68 | M41: 73 | N41: 81 | O41: 97 | P41: 97 | Q41: 99 | R41: 192 | S41: 515 | T41: 85.83333333 | V41: B2 | W41: B1 | X41: A2 | Y41: A1 | Z41: A1 | AA41: A1
A42: 39 | B42: 3842 | C42: HARSHAVARDHAN MADARAMONI | D42: BALRAJ | E42: BC | F42: 2006-05-03 | G42: 2018-06-25 | H42: B | J42: BBC | K42: B | L42: 45 | M42: 67 | N42: 94 | O42: 83 | P42: 90 | Q42: 98 | R42: 162 | S42: 477 | T42: 79.5 | V42: C2 | W42: B2 | X42: A1 | Y42: A2 | Z42: A2 | AA42: A1
A43: 40 | B43: 3843 | C43: KIRAN J | D43: MOTHILAL | E43: ST | F43: 2004-08-09 | G43: 2018-06-25 | H43: B | J43: BST | K43: B | L43: 61 | M43: 40 | N43: 74 | O43: 40 | P43: 58 | Q43: 54 | R43: 171 | S43: 327 | T43: 54.5 | V43: B2 | W43: D | X43: B1 | Y43: D | Z43: C1 | AA43: C1
A44: 41 | B44: 3784 | C44: LOKESH KORRA | D44: SHANKAR | E44: ST | F44: 2008-03-06 | G44: 2018-06-06 | H44: B | J44: BST | K44: B | L44: 68 | M44: 36 | N44: 68 | O44: 44 | P44: 45 | Q44: 93 | R44: 208 | S44: 354 | T44: 59 | V44: B2 | W44: D | X44: B2 | Y44: C2 | Z44: C2 | AA44: A1
A45: 42 | B45: 3848 | C45: MAHENDAR ARLA | D45: JANGAIAH | E45: BC | F45: 2006-01-21 | G45: 2018-06-29 | H45: B | J45: BBC | K45: B | L45: 91 | M45: 40 | N45: 89 | O45: 77 | P45: 51 | Q45: 42 | R45: 180 | S45: 390 | T45: 65 | V45: A1 | W45: D | X45: A2 | Y45: B1 | Z45: C1 | AA45: C2
A46: 43 | B46: 3804 | C46: MAHENDER CHARY N | D46: CHARY | E46: BC | F46: 2005-12-27 | G46: 2018-06-11 | H46: B | J46: BBC | K46: B | L46: 72 | M46: 70 | N46: 48 | O46: 70 | P46: 63 | Q46: 46 | R46: 175 | S46: 369 | T46: 61.5 | V46: B1 | W46: B2 | X46: C2 | Y46: B2 | Z46: B2 | AA46: C2
A47: 44 | B47: 3816 | C47: MAHESH CHERUKU | D47: ANJAIAH | E47: BC | F47: 2004-12-29 | G47: 2018-06-12 | H47: B | J47: BBC | K47: B | L47: 73 | M47: 77 | N47: 47 | O47: 100 | P47: 96 | Q47: 51 | R47: 208 | S47: 444 | T47: 74 | V47: B1 | W47: B1 | X47: C2 | Y47: A1 | Z47: A1 | AA47: C1
A48: 45 | B48: 3773 | C48: MAHESH GUNUKULA | D48: SATHAIAH | E48: BC | F48: 2004-04-17 | G48: 2018-06-04 | H48: B | J48: BBC | K48: B | L48: 56 | M48: 51 | N48: 48 | O48: 51 | P48: 53 | Q48: 43 | R48: 186 | S48: 302 | T48: 50.33333333 | V48: C1 | W48: C1 | X48: C2 | Y48: C1 | Z48: C1 | AA48: C2
A49: 46 | B49: 3857 | C49: MAHESH MOGILI | D49: KUMAR | E49: BC | F49: 2005-11-24 | G49: 2018-06-11 | H49: B | J49: BBC | K49: B | L49: 57 | M49: 100 | N49: 44 | O49: 86 | P49: 47 | Q49: 74 | R49: 174 | S49: 408 | T49: 68 | V49: C1 | W49: A1 | X49: C2 | Y49: A2 | Z49: C2 | AA49: B1
A50: 47 | B50: 3697 | C50: MANIKANTA RAVULA | D50: RAMULU | E50: BC | F50: 2005-01-01 | G50: 2017-04-03 | H50: B | J50: BBC | K50: B | L50: 90 | M50: 74 | N50: 83 | O50: 58 | P50: 38 | Q50: 89 | R50: 209 | S50: 432 | T50: 72 | V50: A2 | W50: B1 | X50: A2 | Y50: C1 | Z50: D | AA50: A2
A51: 48 | B51: 3851 | C51: MANISHA MADHAM | D51: VENKATESH | E51: BC | F51: 2005-11-13 | G51: 2018-07-07 | H51: B | J51: BBC | K51: B | L51: 78 | M51: 65 | N51: 81 | O51: 52 | P51: 43 | Q51: 60 | R51: 165 | S51: 379 | T51: 63.16666667 | V51: B1 | W51: B2 | X51: A2 | Y51: C1 | Z51: C2 | AA51: C1
A52: 49 | B52: 3835 | C52: PARAMESH JERRIPOTHULA | D52: RANGAIAH | E52: SC | F52: 2007-04-30 | G52: 2018-06-20 | H52: B | J52: BSC | K52: B | L52: 86 | M52: 87 | N52: 56 | O52: 68 | P52: 81 | Q52: 65 | R52: 206 | S52: 443 | T52: 73.83333333 | V52: A2 | W52: A2 | X52: C1 | Y52: B2 | Z52: A2 | AA52: B2
A53: 50 | B53: 3833 | C53: RAJESH JATAVATH | D53: RAVI | E53: ST | F53: 2006-01-01 | G53: 2018-06-19 | H53: B | J53: BST | K53: B | L53: 63 | M53: 72 | N53: 80 | O53: 59 | P53: 58 | Q53: 64 | R53: 160 | S53: 396 | T53: 66 | V53: B2 | W53: B1 | X53: B1 | Y53: C1 | Z53: C1 | AA53: B2
A54: 51 | B54: 3800 | C54: SAIKUMAR ERUKONDA | D54: ILAIAH | E54: BC | F54: 2005-10-13 | H54: B | J54: BBC | K54: B | L54: 87 | M54: 99 | N54: 91 | O54: 43 | P54: 60 | Q54: 76 | R54: 155 | S54: 456 | T54: 76 | V54: A2 | W54: A1 | X54: A1 | Y54: C2 | Z54: C1 | AA54: B1
A55: 52 | B55: 3716 | C55: SAIKUMAR MEGAVATH | D55: SRINU | E55: ST | F55: 2006-09-04 | G55: 2017-06-20 | H55: B | J55: BST | K55: B | L55: 42 | M55: 71 | N55: 50 | O55: 62 | P55: 50 | Q55: 84 | R55: 161 | S55: 359 | T55: 59.83333333 | V55: C2 | W55: B1 | X55: C2 | Y55: B2 | Z55: C2 | AA55: A2
A56: 53 | B56: 3654 | C56: SAMPATH KONDA | D56: ANAND | E56: BC | F56: 2007-01-10 | G56: 2017-03-27 | H56: B | J56: BBC | K56: B | L56: 37 | M56: 62 | N56: 56 | O56: 41 | P56: 71 | Q56: 58 | R56: 151 | S56: 325 | T56: 54.16666667 | V56: D | W56: B2 | X56: C1 | Y56: C2 | Z56: B1 | AA56: C1
A57: 54 | B57: 3746 | C57: SHAIBAZ MD | D57: BABA | E57: BC | F57: 2005-10-12 | H57: B | I57: Y | J57: BBC | K57: BY | L57: 78 | M57: 67 | N57: 70 | O57: 93 | P57: 71 | Q57: 47 | R57: 198 | S57: 426 | T57: 71 | V57: B1 | W57: B2 | X57: B2 | Y57: A1 | Z57: B1 | AA57: C2
A58: 55 | B58: 3808 | C58: SRAVANI BUTTI | D58: KRISHNA | E58: BC | F58: 2006-09-06 | G58: 2018-06-11 | H58: B | J58: BBC | K58: B | L58: 47 | M58: 47 | N58: 76 | O58: 61 | P58: 100 | Q58: 70 | R58: 157 | S58: 401 | T58: 66.83333333 | V58: C2 | W58: C2 | X58: B1 | Y58: B2 | Z58: A1 | AA58: B2
A59: 56 | B59: 3662 | C59: VAMSHI CHEEMALA | D59: JANGAIAH | E59: BC | F59: 2005-06-06 | G59: 2017-04-03 | H59: B | J59: BBC | K59: B | L59: 100 | M59: 44 | N59: 65 | O59: 45 | P59: 50 | Q59: 35 | R59: 150 | S59: 339 | T59: 56.5 | V59: A1 | W59: C2 | X59: B2 | Y59: C2 | Z59: C2 | AA59: D
A60: 57 | B60: 3735 | C60: VIGNESH EKKA | D60: BASHAIAH | E60: BC | F60: 2006-09-22 | G60: 2017-06-28 | H60: B | J60: BBC | K60: B | L60: 63 | M60: 57 | N60: 100 | O60: 55 | P60: 44 | Q60: 47 | R60: 201 | S60: 366 | T60: 61 | V60: B2 | W60: C1 | X60: A1 | Y60: C1 | Z60: C2 | AA60: C2
A61: 58 | B61: 3653 | C61: VIJAYKUMAR KASULA | D61: JANGAIAH | E61: BC | F61: 2006-12-25 | G61: 2017-03-27 | H61: B | J61: BBC | K61: B | L61: 89 | M61: 36 | N61: 100 | O61: 74 | P61: 62 | Q61: 83 | R61: 202 | S61: 444 | T61: 74 | V61: A2 | W61: D | X61: A1 | Y61: B1 | Z61: B2 | AA61: A2
A62: 59 | B62: 3718 | C62: VIKRAM NEELLA | D62: KRISHNA | E62: BC | F62: 2006-08-21 | G62: 2017-06-20 | H62: B | J62: BBC | K62: B | L62: 81 | M62: 97 | N62: 58 | O62: 53 | P62: 76 | Q62: 62 | R62: 173 | S62: 427 | T62: 71.16666667 | V62: A2 | W62: A1 | X62: C1 | Y62: C1 | Z62: B1 | AA62: B2
A63: 60 | B63: 3760 | C63: VINAY POLAMONI | D63: BUGGA RAMULU | E63: BC | F63: 2006-09-04 | G63: 2017-06-20 | H63: B | J63: BBC | K63: B | L63: 77 | M63: 64 | N63: 100 | O63: 41 | P63: 68 | Q63: 92 | R63: 182 | S63: 442 | T63: 73.66666667 | V63: B1 | W63: B2 | X63: A1 | Y63: C2 | Z63: B2 | AA63: A1
S64: 0 | T64: 0
S65: 0 | T65: 0
S66: 0 | T66: 0
S67: 0 | T67: 0
J68: =TRIM(H68&E68) ->  | K68: =H68&I68 ->  | S68: 0 | T68: 0
S69: =SUM(L69:Q69) -> 0 | T69: =S69/600% -> 0 | V69: =fgrade(L69) ->  | W69: =fgrade(M69) ->  | X69: =fgrade(N69) ->  | Y69: =fgrade(O69) ->  | Z69: =fgrade(P69) ->  | AA69: =fgrade(Q69) -> 
S70: 0 | T70: 0
S71: 0 | T71: 0
S72: 0 | T72: 0
S73: 0 | T73: 0
S74: 0 | T74: 0
S75: 0 | T75: 0
S76: 0 | T76: 0
S77: 0 | T77: 0
S78: 0 | T78: 0
S79: 0 | T79: 0
S80: 0 | T80: 0
S81: 0 | T81: 0
S82: 0 | T82: 0
S83: 0 | T83: 0
S84: 0 | T84: 0
S85: 0 | T85: 0
S86: 0 | T86: 0
S87: 0 | T87: 0
S88: 0 | T88: 0
S89: 0 | T89: 0
S90: 0 | T90: 0
S91: 0 | T91: 0
S92: 0 | T92: 0
S93: 0 | T93: 0
S94: 0 | T94: 0
S95: 0 | T95: 0
S96: 0 | T96: 0
S97: 0 | T97: 0
S98: 0 | T98: 0
S99: 0 | T99: 0
S100: 0 | T100: 0
S101: 0 | T101: 0
S102: 0 | T102: 0
S103: 0 | T103: 0
S104: 0 | T104: 0
S105: 0 | T105: 0
S106: 0 | T106: 0
S107: 0 | T107: 0
S108: 0 | T108: 0
S109: 0 | T109: 0
S110: 0 | T110: 0
S111: 0 | T111: 0
S112: 0 | T112: 0
S113: 0 | T113: 0
S114: 0 | T114: 0
S115: 0 | T115: 0
S116: 0 | T116: 0
S117: 0 | T117: 0
S118: 0 | T118: 0
S119: 0 | T119: 0
S120: 0 | T120: 0
S121: 0 | T121: 0
S122: 0 | T122: 0
S123: 0 | T123: 0
J124: =TRIM(H124&E124) ->  | K124: =H124&I124 ->  | S124: 0 | T124: 0
S125: 0 | T125: =S125/600% -> 0 | V125: =fgrade(L125) ->  | W125: =fgrade(M125) ->  | X125: =fgrade(N125) ->  | Y125: =fgrade(O125) ->  | Z125: =fgrade(P125) ->  | AA125: =fgrade(Q125) -> 
S126: 0 | T126: 0
S127: 0 | T127: 0
S128: 0 | T128: =S128/600% -> 0 | V128: =fgrade(L128) ->  | W128: =fgrade(M128) ->  | X128: =fgrade(N128) ->  | Y128: =fgrade(O128) ->  | Z128: =fgrade(P128) ->  | AA128: =fgrade(Q128) -> 
S129: 0 | T129: 0
S130: 0 | T130: 0
S131: 0 | T131: 0
S132: 0 | T132: 0
S133: =SUM(L133:Q133) -> 0 | T133: 0
S134: 0 | T134: 0
S135: 0 | T135: 0
S136: 0 | T136: 0
S137: 0 | T137: 0
S138: 0 | T138: 0
S139: 0 | T139: 0
S140: 0 | T140: 0
S141: 0 | T141: 0
S142: 0 | T142: 0
S143: 0 | T143: 0
S144: 0 | T144: 0
S145: 0 | T145: 0
S146: 0 | T146: 0
S147: 0 | T147: 0
S148: 0 | T148: 0
S149: 0 | T149: 0
S150: 0 | T150: 0
S151: 0 | T151: 0
S152: 0 | T152: 0
S153: 0 | T153: 0
A154: . | Q154: ATB | R154: ATB
A155: . | B155: BOYS | C155: GIRLS | D155: TOTAL | Q155: =SUMIF(H4:H153,"B",R4:R153) -> 4487 | R155: =SUMIF(H4:H153,"G",R4:R153) -> 6450 | S155: =SUM(Q155:R155) -> 10937
A156: SC | B156: =COUNTIF($J$4:$J$153,"BSC") -> 1 | C156: =COUNTIF($J$4:$J$153,"GSC") -> 8 | D156: =SUM(B156:C156) -> 9
A157: ST | B157: =COUNTIF($J$4:$J$153,"BST") -> 4 | C157: =COUNTIF($J$4:$J$153,"GST") -> 0 | D157: =SUM(B157:C157) -> 4
A158: BC | B158: =COUNTIF($J$4:$J$153,"BBC") -> 20 | C158: =COUNTIF($J$4:$J$153,"GBC") -> 26 | D158: =SUM(B158:C158) -> 46 | F158: MIN BOY | G158: MIN GIRL
A159: OC | B159: =COUNTIF($J$4:$J$153,"BOC") -> 0 | C159: =COUNTIF($J$4:$J$153,"GOC") -> 1 | D159: =SUM(B159:C159) -> 1 | F159: =COUNTIF(K4:K153,"BY") -> 1 | G159: =COUNTIF(K4:K153,"GY") -> 0
A160: TOTAL | B160: =SUM(B156:B159) -> 25 | C160: =SUM(C156:C159) -> 35 | D160: =SUM(B160:C160) -> 60

Sheet VIIIEM
A1: VIIIEM-2018-19
A2: =RIGHT(CELL("filename",C2),LEN(CELL("filename",C2))-FIND("]",CELL("filename",C2))) -> VIIIEM | V2: GRADES
A3: RNO | B3: ADMN NO | C3: NAME OF THE STUDENT | D3: FATHER'S NAME | E3: CASTE | F3: DOB | G3: DOA | H3: SEX | I3: MUSLIM | L3: TEL | M3: HIN | N3: ENG | O3: MAT | P3: SCI | Q3: SOC | R3: ATT | S3: TOTAL M | T3: MARKS % | V3: TEL | W3: HIN | X3: ENG | Y3: MAT | Z3: SCI | AA3: SOC
A4: 1 | B4: 3635 | C4: AKSHITHA P | D4: SRINIVAS | E4: BC | F4: 2005-08-30 | G4: 2017-03-22 | H4: G | J4: =H4&E4 -> GBC | K4: =H4&I4 -> G | L4: 69 | M4: 82 | N4: 45 | O4: 56 | P4: 100 | Q4: 69 | R4: 171 | S4: =SUM(L4:Q4) -> 421 | T4: =S4/600% -> 70.16666667 | V4: =fgrade(L4) -> B2 | W4: =fgrade(M4) -> A2 | X4: C2 | Y4: C1 | Z4: A1 | AA4: B2
A5: 2 | B5: 3571 | C5: BHAVANI B | D5: SRISHAILAM | E5: BC | F5: 2005-11-15 | G5: 2016-06-21 | H5: G | J5: GBC | K5: G | L5: 44 | M5: 87 | N5: 47 | O5: 100 | P5: 82 | Q5: 95 | R5: 179 | S5: =SUM(L5:Q5) -> 455 | T5: =S5/600% -> 75.83333333 | V5: =fgrade(L5) -> C2 | W5: =fgrade(M5) -> A2 | X5: =fgrade(N5) -> C2 | Y5: =fgrade(O5) -> A1 | Z5: =fgrade(P5) -> A2 | AA5: =fgrade(Q5) -> A1
A6: 3 | B6: 3494 | C6: GAYATHRI BHARGAVI I | D6: SUKESHWARA CHARY | E6: BC | F6: 2006-07-28 | G6: 2016-06-15 | H6: G | J6: GBC | K6: G | L6: 75 | M6: 79 | N6: 76 | O6: 36 | P6: 98 | Q6: 43 | R6: 198 | S6: 407 | T6: 67.83333333 | V6: B1 | W6: B1 | X6: B1 | Y6: D | Z6: A1 | AA6: C2
A7: 4 | B7: 3723 | C7: HARSHINI M | D7: SRIRAMULU | E7: BC | F7: 2006-08-14 | G7: 2017-06-21 | H7: G | J7: GBC | K7: G | L7: 65 | M7: 89 | N7: 83 | O7: 55 | P7: 44 | Q7: 36 | R7: 213 | S7: 372 | T7: 62 | V7: B2 | W7: A2 | X7: A2 | Y7: C1 | Z7: C2 | AA7: D
A8: 5 | B8: 3495 | C8: HEMALATHA N | D8: SRINIVAS | E8: BC | F8: 2005-04-20 | G8: 2016-06-15 | H8: G | J8: GBC | K8: G | L8: 35 | M8: 55 | N8: 91 | O8: 49 | P8: 91 | Q8: 69 | R8: 195 | S8: 390 | T8: 65 | V8: D | W8: C1 | X8: A1 | Y8: C2 | Z8: A1 | AA8: B2
A9: 6 | B9: 3627 | C9: ISHWARYA K | D9: SHAKARACHARY | E9: BC | F9: 2005-09-23 | G9: 2016-08-05 | H9: G | J9: GBC | K9: G | L9: 71 | M9: 62 | N9: 81 | O9: 63 | P9: 40 | Q9: 72 | R9: 196 | S9: 389 | T9: 64.83333333 | V9: B1 | W9: B2 | X9: A2 | Y9: B2 | Z9: D | AA9: B1
A10: 7 | B10: 3591 | C10: KAVYA K | D10: MALLESH | E10: BC | F10: 2005-07-27 | G10: 2016-03-26 | H10: G | J10: GBC | K10: G | L10: 93 | M10: 85 | N10: 99 | O10: 37 | P10: 46 | Q10: 41 | R10: 151 | S10: 401 | T10: 66.83333333 | V10: A1 | W10: A2 | X10: A1 | Y10: D | Z10: C2 | AA10: C2
A11: 8 | B11: 3525 | C11: KAVYA R | D11: MALLESH | E11: BC | F11: 2005-10-23 | G11: 2016-06-16 | H11: G | J11: GBC | K11: G | L11: 99 | M11: 38 | N11: 88 | O11: 97 | P11: 87 | Q11: 92 | R11: 190 | S11: 501 | T11: 83.5 | V11: A1 | W11: D | X11: A2 | Y11: A1 | Z11: A2 | AA11: A1
A12: 9 | B12: 3631 | C12: KEERTHANA A | D12: RAVI | E12: SC | F12: 2006-06-17 | G12: 2016-10-20 | H12: G | J12: GSC | K12: G | L12: 42 | M12: 77 | N12: 53 | O12: 100 | P12: 68 | Q12: 63 | R12: 205 | S12: 403 | T12: 67.16666667 | V12: C2 | W12: B1 | X12: C1 | Y12: A1 | Z12: B2 | AA12: B2
A13: 10 | B13: 3561 | C13: MADHIKA M | D13: SRINU | E13: SC | F13: 2006-07-03 | G13: 2016-06-20 | H13: G | J13: GSC | K13: G | L13: 40 | M13: 47 | N13: 69 | O13: 37 | P13: 58 | Q13: 52 | R13: 203 | S13: 303 | T13: 50.5 | V13: D | W13: C2 | X13: B2 | Y13: D | Z13: C1 | AA13: C1
A14: 11 | B14: 3484 | C14: MAHALAXMI M | D14: DASHRATHA | E14: ST | F14: 2006-01-10 | G14: 2016-06-14 | H14: G | J14: GST | K14: G | L14: 94 | M14: 87 | N14: 86 | O14: 98 | P14: 98 | Q14: 47 | R14: 186 | S14: 510 | T14: 85 | V14: A1 | W14: A2 | X14: A2 | Y14: A1 | Z14: A1 | AA14: C2
A15: 12 | B15: 3550 | C15: MANASA A | D15: SRINU | E15: SC | F15: 2005-07-24 | G15: 2016-06-18 | H15: G | J15: GSC | K15: G | L15: 81 | M15: 64 | N15: 75 | O15: 55 | P15: 85 | Q15: 85 | R15: 202 | S15: 445 | T15: 74.16666667 | V15: A2 | W15: B2 | X15: B1 | Y15: C1 | Z15: A2 | AA15: A2
A16: 13 | B16: 3584 | C16: MANISHA K | D16: SRINU | E16: BC | F16: 2004-08-31 | G16: 2016-06-22 | H16: G | J16: GBC | K16: G | L16: 96 | M16: 50 | N16: 62 | O16: 65 | P16: 70 | Q16: 35 | R16: 177 | S16: 378 | T16: 63 | V16: A1 | W16: C2 | X16: B2 | Y16: B2 | Z16: B2 | AA16: D
A17: 14 | B17: 3611 | C17: MANISHA V | D17: MALLESH | E17: BC | F17: 2005-08-16 | G17: 2016-07-04 | H17: G | J17: GBC | K17: G | L17: 73 | M17: 79 | N17: 55 | O17: 65 | P17: 49 | Q17: 76 | R17: 174 | S17: 397 | T17: 66.16666667 | V17: B1 | W17: B1 | X17: C1 | Y17: B2 | Z17: C2 | AA17: B1
A18: 15 | B18: 3709 | C18: MANISHA Y | D18: RAMAKRISHNA | E18: BC | F18: 2004-02-15 | G18: 2017-06-16 | H18: G | J18: GBC | K18: G | L18: 87 | M18: 44 | N18: 84 | O18: 48 | P18: 42 | Q18: 54 | R18: 155 | S18: 359 | T18: 59.83333333 | V18: A2 | W18: C2 | X18: A2 | Y18: C2 | Z18: C2 | AA18: C1
A19: 16 | B19: 3629 | C19: MOUNIKA CH | D19: MUTHYALU | E19: SC | F19: 2005-10-11 | G19: 2016-09-28 | H19: G | J19: GSC | K19: G | L19: 70 | M19: 90 | N19: 72 | O19: 68 | P19: 45 | Q19: 62 | R19: 203 | S19: 407 | T19: 67.83333333 | V19: B2 | W19: A2 | X19: B1 | Y19: B2 | Z19: C2 | AA19: B2
A20: 17 | B20: 3598 | C20: MOUNIKA M | D20: BHASHAIAH | E20: BC | F20: 2005-09-02 | G20: 2016-06-25 | H20: G | J20: GBC | K20: G | L20: 94 | M20: 83 | N20: 66 | O20: 42 | P20: 40 | Q20: 90 | R20: 175 | S20: 415 | T20: 69.16666667 | V20: A1 | W20: A2 | X20: B2 | Y20: C2 | Z20: D | AA20: A2
A21: 18 | B21: 3524 | C21: NANDINI M | D21: MALLESH | E21: ST | F21: 2006-03-09 | G21: 2016-06-16 | H21: G | J21: GST | K21: G | L21: 78 | M21: 54 | N21: 57 | O21: 87 | P21: 82 | Q21: 91 | R21: 182 | S21: 449 | T21: 74.83333333 | V21: B1 | W21: C1 | X21: C1 | Y21: A2 | Z21: A2 | AA21: A1
A22: 19 | B22: 3483 | C22: NANDINI P | D22: DURGESH | E22: SC | F22: 2006-08-28 | G22: 2016-06-14 | H22: G | J22: GSC | K22: G | L22: 72 | M22: 41 | N22: 63 | O22: 59 | P22: 50 | Q22: 91 | R22: 165 | S22: 376 | T22: 62.66666667 | V22: B1 | W22: C2 | X22: B2 | Y22: C1 | Z22: C2 | AA22: A1
A23: 20 | B23: 3617 | C23: NAZIYA MD | D23: USMAN | E23: BC | F23: 2005-04-20 | G23: 2016-07-12 | H23: G | I23: Y | J23: GBC | K23: GY | L23: 82 | M23: 38 | N23: 64 | O23: 52 | P23: 74 | Q23: 55 | R23: 206 | S23: 365 | T23: 60.83333333 | V23: A2 | W23: D | X23: B2 | Y23: C1 | Z23: B1 | AA23: C1
A24: 21 | B24: 3578 | C24: NIKITHA N | D24: SUDHAKAR | E24: BC | F24: 2005-04-05 | G24: 2016-06-21 | H24: G | J24: GBC | K24: G | L24: 47 | M24: 42 | N24: 80 | O24: 64 | P24: 35 | Q24: 39 | R24: 199 | S24: 307 | T24: 51.16666667 | V24: C2 | W24: C2 | X24: B1 | Y24: B2 | Z24: D | AA24: D
A25: 22 | B25: 3604 | C25: NIKITHA O | D25: MALLESH | E25: BC | F25: 2005-03-01 | G25: 2016-06-29 | H25: G | J25: GBC | K25: G | L25: 46 | M25: 84 | N25: 60 | O25: 44 | P25: 47 | Q25: 94 | R25: 168 | S25: 375 | T25: 62.5 | V25: C2 | W25: A2 | X25: C1 | Y25: C2 | Z25: C2 | AA25: A1
A26: 23 | B26: 3560 | C26: POOJITHA CH | D26: KRISHNA | E26: BC | F26: 2005-07-14 | G26: 2016-06-20 | H26: G | J26: GBC | K26: G | L26: 74 | M26: 69 | N26: 69 | O26: 82 | P26: 100 | Q26: 69 | R26: 204 | S26: 463 | T26: 77.16666667 | V26: B1 | W26: B2 | X26: B2 | Y26: A2 | Z26: A1 | AA26: B2
A27: 24 | B27: 3583 | C27: PRIYANKA E | D27: VENKATESH | E27: BC | F27: 2004-09-02 | G27: 2016-06-22 | H27: G | J27: GBC | K27: G | L27: 43 | M27: 38 | N27: 63 | O27: 89 | P27: 90 | Q27: 52 | R27: 169 | S27: 375 | T27: 62.5 | V27: C2 | W27: D | X27: B2 | Y27: A2 | Z27: A2 | AA27: C1
A28: 25 | B28: 3805 | C28: RAJESHWARI A | D28: VENKATESH | E28: BC | F28: 2004-07-24 | G28: 2018-06-11 | H28: G | J28: GBC | K28: G | L28: 56 | M28: 49 | N28: 93 | O28: 86 | P28: 39 | Q28: 74 | R28: 172 | S28: 397 | T28: 66.16666667 | V28: C1 | W28: C2 | X28: A1 | Y28: A2 | Z28: D | AA28: B1
A29: 26 | B29: 3530 | C29: SANDHYA G | D29: SWAMI | E29: SC | F29: 2005-05-14 | G29: 2016-06-16 | H29: G | J29: GSC | K29: G | L29: 57 | M29: 66 | N29: 41 | O29: 35 | P29: 46 | Q29: 56 | R29: 159 | S29: 301 | T29: 50.16666667 | V29: C1 | W29: B2 | X29: C2 | Y29: D | Z29: C2 | AA29: C1
A30: 27 | B30: 3721 | C30: SHIRISHA A | D30: SATYANARAYANA | E30: BC | F30: 2004-09-24 | G30: 2017-06-21 | H30: G | J30: GBC | K30: G | L30: 69 | M30: 81 | N30: 58 | O30: 35 | P30: 46 | Q30: 87 | R30: 203 | S30: 376 | T30: 62.66666667 | V30: B2 | W30: A2 | X30: C1 | Y30: D | Z30: C2 | AA30: A2
A31: 28 | B31: 3529 | C31: SHIVANI A | D31: VENKATESH | E31: SC | F31: 2005-08-07 | G31: 2016-06-16 | H31: G | J31: GSC | K31: G | L31: 69 | M31: 100 | N31: 57 | O31: 50 | P31: 72 | Q31: 83 | R31: 159 | S31: 431 | T31: 71.83333333 | V31: B2 | W31: A1 | X31: C1 | Y31: C2 | Z31: B1 | AA31: A2
A32: 29 | B32: 3757 | C32: SHRUTHI P | D32: RAJU | E32: ST | F32: 2005-09-01 | G32: 2017-08-17 | H32: G | J32: GST | K32: G | L32: 54 | M32: 97 | N32: 78 | O32: 42 | P32: 86 | Q32: 61 | R32: 151 | S32: 418 | T32: 69.66666667 | V32: C1 | W32: A1 | X32: B1 | Y32: C2 | Z32: A2 | AA32: B2
A33: 30 | B33: 3742 | C33: SINDHU P | D33: PANDU | E33: ST | F33: 2007-04-30 | G33: 2017-07-03 | H33: G | J33: GST | K33: G | L33: 98 | M33: 45 | N33: 37 | O33: 64 | P33: 96 | Q33: 73 | R33: 169 | S33: 413 | T33: 68.83333333 | V33: A1 | W33: C2 | X33: D | Y33: B2 | Z33: A1 | AA33: B1
A34: 31 | B34: 3794 | C34: SINDHU P | D34: SATYANARAYANA | E34: BC | F34: 2005-03-28 | G34: 2018-06-07 | H34: G | J34: GBC | K34: G | L34: 68 | M34: 85 | N34: 37 | O34: 80 | P34: 92 | Q34: 37 | R34: 163 | S34: 399 | T34: 66.5 | V34: B2 | W34: A2 | X34: D | Y34: B1 | Z34: A1 | AA34: D
A35: 32 | B35: 3528 | C35: SOWJANYA A | D35: JANGAIAH | E35: SC | F35: 2005-01-18 | G35: 2016-06-16 | H35: G | J35: GSC | K35: G | L35: 69 | M35: 96 | N35: 62 | O35: 98 | P35: 91 | Q35: 49 | R35: 207 | S35: 465 | T35: 77.5 | V35: B2 | W35: A1 | X35: B2 | Y35: A1 | Z35: A1 | AA35: C2
A36: 33 | B36: 3759 | C36: SOWMYA SREE P | D36: GOPAL | E36: SC | F36: 2004-06-27 | G36: 2017-08-17 | H36: G | J36: GSC | K36: G | L36: 55 | M36: 82 | N36: 69 | O36: 63 | P36: 76 | Q36: 51 | R36: 163 | S36: 396 | T36: 66 | V36: C1 | W36: A2 | X36: B2 | Y36: B2 | Z36: B1 | AA36: C1
A37: 34 | B37: 3795 | C37: SRAVANI G | D37: PANDU | E37: BC | F37: 2005-06-28 | G37: 2018-06-07 | H37: G | J37: GBC | K37: G | L37: 42 | M37: 47 | N37: 37 | O37: 45 | P37: 48 | Q37: 93 | R37: 188 | S37: 312 | T37: 52 | V37: C2 | W37: C2 | X37: D | Y37: C2 | Z37: C2 | AA37: A1
A38: 35 | B38: 3498 | C38: SRAVANI G | D38: SHANKAR | E38: BC | F38: 2004-09-03 | G38: 2016-06-15 | H38: G | J38: GBC | K38: G | L38: 80 | M38: 96 | N38: 73 | O38: 64 | P38: 87 | Q38: 38 | R38: 204 | S38: 438 | T38: 73 | V38: B1 | W38: A1 | X38: B1 | Y38: B2 | Z38: A2 | AA38: D
A39: 36 | B39: 3625 | C39: SRAVANI K | D39: PENTAIAH | E39: SC | F39: 2005-08-08 | G39: 2016-08-05 | H39: G | J39: GSC | K39: G | L39: 68 | M39: 52 | N39: 57 | O39: 55 | P39: 67 | Q39: 69 | R39: 181 | S39: 368 | T39: 61.33333333 | V39: B2 | W39: C1 | X39: C1 | Y39: C1 | Z39: B2 | AA39: B2
A40: 37 | B40: 3527 | C40: SRAVANTHI N | D40: YADAGIRI | E40: BC | F40: 2005-09-10 | G40: 2016-06-16 | H40: G | J40: GBC | K40: G | L40: 94 | M40: 39 | N40: 43 | O40: 63 | P40: 57 | Q40: 65 | R40: 165 | S40: 361 | T40: 60.16666667 | V40: A1 | W40: D | X40: C2 | Y40: B2 | Z40: C1 | AA40: B2
A41: 38 | B41: 3496 | C41: SRAVANTHI D | D41: DASHARATHA | E41: BC | F41: 2006-03-30 | G41: 2016-06-15 | H41: G | J41: GBC | K41: G | L41: 91 | M41: 97 | N41: 71 | O41: 98 | P41: 44 | Q41: 84 | R41: 168 | S41: 485 | T41: 80.83333333 | V41: A1 | W41: A1 | X41: B1 | Y41: A1 | Z41: C2 | AA41: A2
A42: 39 | B42: 3526 | C42: SRAVANTHI M | D42: LAXMAIAH | E42: SC | F42: 2005-04-20 | G42: 2016-06-16 | H42: G | J42: GSC | K42: G | L42: 88 | M42: 53 | N42: 46 | O42: 97 | P42: 84 | Q42: 99 | R42: 206 | S42: 467 | T42: 77.83333333 | V42: A2 | W42: C1 | X42: C2 | Y42: A1 | Z42: A2 | AA42: A1
A43: 40 | B43: 3796 | C43: SRILATHA CH | D43: SRISHAILAM | E43: BC | F43: 2004-12-10 | G43: 2018-06-07 | H43: G | J43: GBC | K43: G | L43: 85 | M43: 72 | N43: 71 | O43: 80 | P43: 80 | Q43: 55 | R43: 183 | S43: 443 | T43: 73.83333333 | V43: A2 | W43: B1 | X43: B1 | Y43: B1 | Z43: B1 | AA43: C1
A44: 41 | B44: 3595 | C44: SUNITHA M | D44: DEVA | E44: ST | F44: 2005-11-19 | G44: 2016-06-24 | H44: G | J44: GST | K44: G | L44: 73 | M44: 40 | N44: 73 | O44: 49 | P44: 67 | Q44: 94 | R44: 190 | S44: 396 | T44: 66 | V44: B1 | W44: D | X44: B1 | Y44: C2 | Z44: B2 | AA44: A1
A45: 42 | B45: 3491 | C45: TEJA CH | D45: JANGAIAH | E45: BC | F45: 2005-06-10 | G45: 2016-06-15 | H45: G | J45: GBC | K45: G | L45: 62 | M45: 75 | N45: 90 | O45: 37 | P45: 59 | Q45: 74 | R45: 167 | S45: 397 | T45: 66.16666667 | V45: B2 | W45: B1 | X45: A2 | Y45: D | Z45: C1 | AA45: B1
A46: 43 | B46: 3636 | C46: VAISHNAVI G | D46: VENKATESH | E46: BC | F46: 2005-10-10 | G46: 2017-03-22 | H46: G | J46: GBC | K46: G | L46: 63 | M46: 39 | N46: 88 | O46: 66 | P46: 71 | Q46: 36 | R46: 173 | S46: 363 | T46: 60.5 | V46: B2 | W46: D | X46: A2 | Y46: B2 | Z46: B1 | AA46: D
A47: 44 | B47: 3634 | C47: VANAMALA P | D47: HANUMANTHU | E47: BC | F47: 2005-05-24 | G47: 2017-03-21 | H47: G | J47: GBC | K47: G | L47: 96 | M47: 59 | N47: 93 | O47: 49 | P47: 61 | Q47: 67 | R47: 201 | S47: 425 | T47: 70.83333333 | V47: A1 | W47: C1 | X47: A1 | Y47: C2 | Z47: B2 | AA47: B2
A48: 45 | B48: 3551 | C48: VIJAYA N | D48: YADAIAH | E48: BC | F48: 2006-02-11 | G48: 2016-06-18 | H48: G | J48: GBC | K48: G | L48: 59 | M48: 81 | N48: 50 | O48: 99 | P48: 100 | Q48: 71 | R48: 169 | S48: 460 | T48: 76.66666667 | V48: C1 | W48: A2 | X48: C2 | Y48: A1 | Z48: A1 | AA48: B1
A49: 46 | B49: 3490 | C49: ANJANEYULU A | D49: YADAGIRI | E49: BC | F49: 2005-02-08 | G49: 2016-06-15 | H49: B | J49: BBC | K49: B | L49: 93 | M49: 65 | N49: 41 | O49: 76 | P49: 43 | Q49: 74 | R49: 157 | S49: 392 | T49: 65.33333333 | V49: A1 | W49: B2 | X49: C2 | Y49: B1 | Z49: C2 | AA49: B1
A50: 47 | B50: 3747 | C50: ARBAZ MD | D50: BABA | E50: OC | F50: 2003-10-09 | G50: 2017-07-04 | H50: B | I50: Y | J50: BOC | K50: BY | L50: 64 | M50: 73 | N50: 39 | O50: 56 | P50: 75 | Q50: 36 | R50: 157 | S50: 343 | T50: 57.16666667 | V50: B2 | W50: B1 | X50: D | Y50: C1 | Z50: B1 | AA50: D
A51: 48 | B51: 3485 | C51: ASHOK V | D51: SRINU | E51: ST | F51: 2005-11-05 | G51: 2016-06-14 | H51: B | J51: BST | K51: B | L51: 84 | M51: 45 | N51: 79 | O51: 100 | P51: 42 | Q51: 73 | R51: 176 | S51: 423 | T51: 70.5 | V51: A2 | W51: C2 | X51: B1 | Y51: A1 | Z51: C2 | AA51: B1
A52: 49 | B52: 3575 | C52: BADDHU M | D52: SAGAR | E52: ST | F52: 2004-03-25 | G52: 2016-06-21 | H52: B | J52: BST | K52: B | L52: 56 | M52: 63 | N52: 45 | O52: 98 | P52: 59 | Q52: 57 | R52: 199 | S52: 378 | T52: 63 | V52: C1 | W52: B2 | X52: C2 | Y52: A1 | Z52: C1 | AA52: C1
A53: 50 | B53: 3582 | C53: BHANUCHANDER A | D53: LINGAM | E53: BC | F53: 2003-09-24 | G53: 2016-06-22 | H53: B | J53: BBC | K53: B | L53: 83 | M53: 85 | N53: 61 | O53: 95 | P53: 41 | Q53: 50 | R53: 161 | S53: 415 | T53: 69.16666667 | V53: A2 | W53: A2 | X53: B2 | Y53: A1 | Z53: C2 | AA53: C2
A54: 51 | B54: 3722 | C54: BHANUCHANDER P | D54: JANARDHAN | E54: SC | F54: 2004-08-26 | G54: 2017-06-21 | H54: B | J54: BSC | K54: B | L54: 89 | M54: 63 | N54: 73 | O54: 97 | P54: 84 | Q54: 47 | R54: 162 | S54: 453 | T54: 75.5 | V54: A2 | W54: B2 | X54: B1 | Y54: A1 | Z54: A2 | AA54: C2
A55: 52 | B55: 3569 | C55: GANESH CH | D55: PANDU | E55: BC | F55: 2004-06-19 | G55: 2016-06-21 | H55: B | J55: BBC | K55: B | L55: 95 | M55: 97 | N55: 90 | O55: 65 | P55: 62 | Q55: 56 | R55: 208 | S55: 465 | T55: 77.5 | V55: A1 | W55: A1 | X55: A2 | Y55: B2 | Z55: B2 | AA55: C1
A56: 53 | B56: 3502 | C56: LAXMAN N | D56: JANGAIAH | E56: BC | F56: 2006-05-24 | G56: 2016-06-15 | H56: B | J56: BBC | K56: B | L56: 46 | M56: 46 | N56: 63 | O56: 94 | P56: 36 | Q56: 84 | R56: 209 | S56: 369 | T56: 61.5 | V56: C2 | W56: C2 | X56: B2 | Y56: A1 | Z56: D | AA56: A2
A57: 54 | B57: 3558 | C57: MAHESH B | D57: VEERESHA | E57: BC | F57: 2005-07-15 | G57: 2016-06-20 | H57: B | J57: BBC | K57: B | L57: 50 | M57: 44 | N57: 45 | O57: 94 | P57: 83 | Q57: 55 | R57: 198 | S57: 371 | T57: 61.83333333 | V57: C2 | W57: C2 | X57: C2 | Y57: A1 | Z57: A2 | AA57: C1
A58: 55 | B58: 3570 | C58: NARESH K | D58: SRINIVAS | E58: BC | F58: 2006-02-25 | G58: 2016-06-21 | H58: B | J58: BBC | K58: B | L58: 90 | M58: 59 | N58: 66 | O58: 80 | P58: 93 | Q58: 86 | R58: 157 | S58: 474 | T58: 79 | V58: A2 | W58: C1 | X58: B2 | Y58: B1 | Z58: A1 | AA58: A2
A59: 56 | B59: 3511 | C59: NIKHIL V | D59: JANGAIAH | E59: BC | F59: 2006-02-10 | G59: 2016-06-15 | H59: B | J59: BBC | K59: B | L59: 43 | M59: 86 | N59: 84 | O59: 65 | P59: 81 | Q59: 38 | R59: 185 | S59: 397 | T59: 66.16666667 | V59: C2 | W59: A2 | X59: A2 | Y59: B2 | Z59: A2 | AA59: D
A60: 57 | B60: 3851 | C60: PAVANI B | D60: MALLESH | E60: BC | F60: 2006-08-16 | G60: 2018-07-02 | H60: B | J60: BBC | K60: B | L60: 51 | M60: 36 | N60: 65 | O60: 76 | P60: 53 | Q60: 87 | R60: 191 | S60: 368 | T60: 61.33333333 | V60: C1 | W60: D | X60: B2 | Y60: B1 | Z60: C1 | AA60: A2
A61: 58 | B61: 3531 | C61: PRAVEEN KUMAR M | D61: RAJU | E61: ST | F61: 2004-02-26 | G61: 2016-06-16 | H61: B | J61: BST | K61: B | L61: 86 | M61: 91 | N61: 78 | O61: 55 | P61: 93 | Q61: 100 | R61: 152 | S61: 503 | T61: 83.83333333 | V61: A2 | W61: A1 | X61: B1 | Y61: C1 | Z61: A1 | AA61: A1
A62: 59 | B62: 3549 | C62: PRAVEEN R | D62: YADAIAH | E62: BC | F62: 2005-12-30 | G62: 2016-06-18 | H62: B | J62: BBC | K62: B | L62: 63 | M62: 90 | N62: 86 | O62: 43 | P62: 69 | Q62: 38 | R62: 152 | S62: 389 | T62: 64.83333333 | V62: B2 | W62: A2 | X62: A2 | Y62: C2 | Z62: B2 | AA62: D
A63: 60 | B63: 3587 | C63: RAKESH D | D63: RAVENDAR | E63: BC | F63: 2005-06-13 | G63: 2016-06-22 | H63: B | J63: BBC | K63: B | L63: 84 | M63: 43 | N63: 76 | O63: 44 | P63: 100 | Q63: 78 | R63: 198 | S63: 425 | T63: 70.83333333 | V63: A2 | W63: C2 | X63: B1 | Y63: C2 | Z63: A1 | AA63: B1
A64: 61 | B64: 3500 | C64: RAVI KIRAN N | D64: KRISHNA | E64: BC | F64: 2004-02-08 | G64: 2016-06-15 | H64: B | J64: BBC | K64: B | L64: 42 | M64: 61 | N64: 94 | O64: 36 | P64: 68 | Q64: 95 | R64: 190 | S64: 396 | T64: 66 | V64: C2 | W64: B2 | X64: A1 | Y64: D | Z64: B2 | AA64: A1
A65: 62 | B65: 3501 | C65: SAIKUMAR R | D65: SRINU | E65: ST | F65: 2005-02-26 | G65: 2016-06-15 | H65: B | J65: BST | K65: B | L65: 62 | M65: 52 | N65: 47 | O65: 90 | P65: 89 | Q65: 40 | R65: 161 | S65: 380 | T65: 63.33333333 | V65: B2 | W65: C1 | X65: C2 | Y65: A2 | Z65: A2 | AA65: D
A66: 63 | B66: 3758 | C66: SAINATH REDDY B | D66: KRISHNA REDDY | E66: OC | F66: 2005-02-09 | G66: 2017-08-17 | H66: B | J66: =H66&E66 -> BOC | K66: =H66&I66 -> B | L66: 91 | M66: 42 | N66: 89 | O66: 94 | P66: 93 | Q66: 99 | R66: 182 | S66: 508 | T66: 84.66666667 | V66: A1 | W66: C2 | X66: A2 | Y66: A1 | Z66: A1 | AA66: A1
A67: 64 | B67: 3589 | C67: SANJAY G | D67: KRISHNA | E67: BC | F67: 2006-09-27 | G67: 2016-06-23 | H67: B | J67: BBC | K67: B | L67: 67 | M67: 53 | N67: 87 | O67: 84 | P67: 82 | Q67: 81 | R67: 172 | S67: =SUM(L67:Q67) -> 454 | T67: =S67/600% -> 75.66666667 | V67: =fgrade(L67) -> B2 | W67: =fgrade(M67) -> C1 | X67: =fgrade(N67) -> A2 | Y67: =fgrade(O67) -> A2 | Z67: =fgrade(P67) -> A2 | AA67: =fgrade(Q67) -> A2
A68: 65 | B68: 3489 | C68: SATISH KUMAR M | D68: JANGAIAH | E68: BC | F68: 2005-07-26 | G68: 2016-06-15 | H68: B | J68: BBC | K68: B | L68: 71 | M68: 65 | N68: 46 | O68: 60 | P68: 56 | Q68: 97 | R68: 195 | S68: 395 | T68: 65.83333333 | V68: B1 | W68: B2 | X68: C2 | Y68: C1 | Z68: C1 | AA68: A1
A69: 66 | B69: 3762 | C69: SHARATH D | D69: KUMAR | E69: BC | F69: 2004-03-06 | G69: 2017-09-09 | H69: B | J69: BBC | K69: B | L69: 92 | M69: 75 | N69: 37 | O69: 44 | P69: 71 | Q69: 93 | R69: 168 | S69: 412 | T69: 68.66666667 | V69: A1 | W69: B1 | X69: D | Y69: C2 | Z69: B1 | AA69: A1
A70: 67 | B70: 3585 | C70: SHIVAKUMAR M | D70: BALRAJU | E70: BC | F70: 2005-08-21 | G70: 2016-06-22 | H70: B | J70: BBC | K70: B | L70: 98 | M70: 61 | N70: 78 | O70: 63 | P70: 41 | Q70: 57 | R70: 156 | S70: 398 | T70: 66.33333333 | V70: A1 | W70: B2 | X70: B1 | Y70: B2 | Z70: C2 | AA70: C1
A71: 68 | B71: 3499 | C71: SHIVAKUMAR P | D71: JANGAIAH | E71: BC | F71: 2002-09-07 | G71: 2016-06-15 | H71: B | J71: BBC | K71: B | L71: 39 | M71: 47 | N71: 35 | O71: 73 | P71: 77 | Q71: 58 | R71: 150 | S71: 329 | T71: 54.83333333 | V71: D | W71: C2 | X71: D | Y71: B1 | Z71: B1 | AA71: C1
A72: 69 | B72: 3559 | C72: SHYAM KUMAR P | D72: DURGAIAH | E72: BC | F72: 2005-04-07 | G72: 2016-06-20 | H72: B | J72: BBC | K72: B | L72: 81 | M72: 67 | N72: 44 | O72: 39 | P72: 42 | Q72: 80 | R72: 165 | S72: 353 | T72: 58.83333333 | V72: A2 | W72: B2 | X72: C2 | Y72: D | Z72: C2 | AA72: B1
A73: 70 | B73: 3829 | C73: SPOORTHI L | D73: SHEKAR REDDY | E73: OC | F73: 2006-11-07 | G73: 2018-06-18 | H73: B | J73: BOC | K73: B | L73: 79 | M73: 81 | N73: 48 | O73: 39 | P73: 87 | Q73: 71 | R73: 199 | S73: 405 | T73: 67.5 | V73: B1 | W73: A2 | X73: C2 | Y73: D | Z73: A2 | AA73: B1
A74: 71 | B74: 3655 | C74: SRIDHAR M | D74: SRISHAILAM | E74: BC | F74: 2003-09-27 | G74: 2017-03-25 | H74: B | J74: BBC | K74: B | L74: 58 | M74: 35 | N74: 52 | O74: 81 | P74: 61 | Q74: 55 | R74: 213 | S74: 342 | T74: 57 | V74: C1 | W74: D | X74: C1 | Y74: A2 | Z74: B2 | AA74: C1
A75: 72 | B75: 3597 | C75: SRISHANTH N | D75: YADAIAH | E75: BC | F75: 2003-01-01 | G75: 2016-06-25 | H75: B | J75: BBC | K75: B | L75: 66 | M75: 49 | N75: 45 | O75: 41 | P75: 79 | Q75: 79 | R75: 195 | S75: 359 | T75: 59.83333333 | V75: B2 | W75: C2 | X75: C2 | Y75: C2 | Z75: B1 | AA75: B1
A76: 73 | B76: 3545 | C76: SUHASH J | D76: CHANDRAIAH | E76: OC | F76: 2005-02-27 | G76: 2016-06-17 | H76: B | J76: BOC | K76: B | L76: 50 | M76: 98 | N76: 76 | O76: 82 | P76: 51 | Q76: 78 | R76: 166 | S76: 435 | T76: 72.5 | V76: C2 | W76: A1 | X76: B1 | Y76: A2 | Z76: C1 | AA76: B1
A77: 74 | B77: 3594 | C77: THARUN N | D77: DASHARATHA | E77: BC | F77: 2005-08-08 | G77: 2016-06-23 | H77: B | J77: BBC | K77: B | L77: 66 | M77: 97 | N77: 100 | O77: 49 | P77: 78 | Q77: 37 | R77: 182 | S77: 427 | T77: 71.16666667 | V77: B2 | W77: A1 | X77: A1 | Y77: C2 | Z77: B1 | AA77: D
A78: 75 | B78: 3492 | C78: VAMSHI M | D78: JANGAIAH | E78: BC | F78: 2006-07-17 | G78: 2016-06-15 | H78: B | J78: BBC | K78: B | L78: 75 | M78: 44 | N78: 52 | O78: 98 | P78: 49 | Q78: 59 | R78: 174 | S78: 377 | T78: 62.83333333 | V78: B1 | W78: C2 | X78: C1 | Y78: A1 | Z78: C2 | AA78: C1
A79: 76 | B79: 3614 | C79: VARJUN KUMAR J | D79: PAPAIAH | E79: SC | F79: 2004-06-26 | G79: 2016-07-04 | H79: B | J79: BSC | K79: B | L79: 94 | M79: 49 | N79: 100 | O79: 76 | P79: 52 | Q79: 36 | R79: 153 | S79: 407 | T79: 67.83333333 | V79: A1 | W79: C2 | X79: A1 | Y79: B1 | Z79: C1 | AA79: D
S80: =SUM(L80:Q80) -> 0 | T80: =S80/600% -> 0 | V80: =fgrade(L80) ->  | W80: =fgrade(M80) ->  | X80: =fgrade(N80) ->  | Y80: =fgrade(O80) ->  | Z80: =fgrade(P80) ->  | AA80: =fgrade(Q80) -> 
S81: 0 | T81: 0
S82: 0 | T82: 0
S83: 0 | T83: 0
S84: 0 | T84: 0
S85: 0 | T85: 0
S86: 0 | T86: 0
S87: 0 | T87: 0
S88: 0 | T88: 0
S89: 0 | T89: 0
S90: 0 | T90: 0
S91: 0 | T91: 0
S92: 0 | T92: 0
S93: 0 | T93: 0
S94: 0 | T94: 0
S95: 0 | T95: 0
S96: 0 | T96: 0
S97: 0 | T97: 0
S98: 0 | T98: 0
S99: 0 | T99: 0
S100: 0 | T100: 0
S101: 0 | T101: 0
S102: 0 | T102: 0
S103: 0 | T103: 0
S104: 0 | T104: 0
S105: 0 | T105: 0
S106: 0 | T106: 0
S107: 0 | T107: 0
S108: 0 | T108: 0
S109: 0 | T109: 0
S110: 0 | T110: 0
S111: 0 | T111: 0
S112: 0 | T112: 0
S113: 0 | T113: 0
S114: 0 | T114: 0
S115: 0 | T115: 0
S116: 0 | T116: 0
S117: 0 | T117: 0
S118: 0 | T118: 0
S119: 0 | T119: 0
S120: 0 | T120: 0
S121: 0 | T121: 0
S122: 0 | T122: 0
S123: 0 | T123: 0
S124: 0 | T124: 0
S125: 0 | T125: 0
S126: 0 | T126: 0
S127: 0 | T127: 0
S128: 0 | T128: 0
S129: 0 | T129: 0
J130: =H130&E130 ->  | K130: =H130&I130 ->  | S130: 0 | T130: 0
S131: 0 | T131: 0
S132: 0 | T132: 0
S133: 0 | T133: 0
S134: 0 | T134: 0
S135: 0 | T135: 0
S136: 0 | T136: 0
S137: 0 | T137: 0
S138: 0 | T138: 0
S139: 0 | T139: 0
S140: 0 | T140: 0
S141: 0 | T141: 0
S142: 0 | T142: 0
S143: 0 | T143: 0
S144: =SUM(L144:Q144) -> 0 | T144: =S144/600% -> 0 | V144: =fgrade(L144) ->  | W144: =fgrade(M144) ->  | X144: =fgrade(N144) ->  | Y144: =fgrade(O144) ->  | Z144: =fgrade(P144) ->  | AA144: =fgrade(Q144) -> 
S145: 0 | T145: 0
S146: 0 | T146: 0
S147: 0 | T147: 0
S148: 0 | T148: 0
S149: 0 | T149: 0
S150: 0 | T150: 0
S151: 0 | T151: 0
A152: 0 | Q152: ATB | R152: ATB
A153: 0 | B153: BOYS | C153: GIRLS | D153: TOTAL | K153: =H153&I153 ->  | Q153: =SUMIF(H4:H151,"B",R4:R151) -> 5483 | R153: =SUMIF(H4:H151,"G",R4:R151) -> 8207 | S153: =SUM(Q153:R153) -> 13690
A154: SC | B154: =COUNTIF($J$4:$J$151,"BSC") -> 2 | C154: =COUNTIF($J$4:$J$151,"GSC") -> 11 | D154: =SUM(B154:C154) -> 13
A155: ST | B155: =COUNTIF($J$4:$J$151,"BST") -> 4 | C155: =COUNTIF($J$4:$J$151,"GST") -> 5 | D155: =SUM(B155:C155) -> 9 | K155: =H155&I155 -> 
A156: BC | B156: =COUNTIF($J$4:$K$151,"BBC") -> 21 | C156: =COUNTIF($J$4:$J$151,"GBC") -> 29 | D156: =SUM(B156:C156) -> 50 | F156: MIN BOY | G156: MIN GIRL | K156: =H156&I156 -> 
A157: OC | B157: =COUNTIF($J$4:$J$151,"BOC") -> 4 | C157: =COUNTIF($J$4:$J$151,"GOC") -> 0 | D157: =SUM(B157:C157) -> 4 | F157: =COUNTIF(K4:K151,"BY") -> 1 | G157: =COUNTIF(K4:K151,"GY") -> 1 | K157: =H157&I157 -> 
A158: TOTAL | B158: =SUM(B154:B157) -> 31 | C158: =SUM(C154:C157) -> 45 | D158: =SUM(D154:D157) -> 76 | K158: =H158&I158 -> 

Sheet IXEM
A1: IXEM-2018-19
A2: =RIGHT(CELL("filename",C1),LEN(CELL("filename",C1))-FIND("]",CELL("filename",C1))) -> IXEM | V2: GRADES
A3: RNO | B3: ADMN NO | C3: NAME OF THE STUDENT | D3: FATHER'S NAME | E3: CASTE | F3: DOB | G3: DOA | H3: SEX | I3: MUSLIM | L3: TEL | M3: HIN | N3: ENG | O3: MAT | P3: SCI | Q3: SOC | R3: ATT | S3: TOTAL M | T3: MARKS % | V3: TEL | W3: HIN | X3: ENG | Y3: MAT | Z3: SCI | AA3: SOC | AC3: SECTION
A4: 1 | B4: 3432 | C4: AKHILA KONDIGARI | D4: SHANKER | E4: SC | F4: 2004-06-16 | G4: 2015-06-26 | H4: G | J4: =H4&E4 -> GSC | K4: =H4&I4 -> G | L4: 98 | M4: 64 | N4: 46 | O4: 65 | P4: 53 | Q4: 63 | R4: 193 | S4: =SUM(L4:Q4) -> 389 | T4: =S4/600% -> 64.83333333 | V4: =fgrade(L4) -> A1 | W4: =fgrade(M4) -> B2 | X4: C2 | Y4: B2 | Z4: C1 | AA4: B2 | AC4: A
A5: 2 | B5: 3424 | C5: ANKITH KUMAR KALE | D5: JANGAIAH | E5: SC | F5: 2005-03-02 | H5: G | J5: GSC | K5: G | L5: 70 | M5: 46 | N5: 36 | O5: 95 | P5: 89 | Q5: 77 | R5: 179 | S5: =SUM(L5:Q5) -> 413 | T5: =S5/600% -> 68.83333333 | V5: =fgrade(L5) -> B2 | W5: =fgrade(M5) -> C2 | X5: =fgrade(N5) -> D | Y5: =fgrade(O5) -> A1 | Z5: =fgrade(P5) -> A2 | AA5: =fgrade(Q5) -> B1 | AC5: A
A6: 3 | B6: 3363 | C6: AYASREE TAKKALA | D6: DHARMENDHAR | E6: SC | F6: 2005-01-08 | G6: 2015-06-22 | H6: G | J6: GSC | K6: G | L6: 56 | M6: 74 | N6: 74 | O6: 95 | P6: 43 | Q6: 93 | R6: 175 | S6: 435 | T6: 72.5 | V6: C1 | W6: B1 | X6: B1 | Y6: A1 | Z6: C2 | AA6: A1 | AC6: A
A7: 4 | B7: 3431 | C7: BHANUSREE CHIMARLA | D7: CHANDRAIAH | E7: SC | F7: 2003-10-11 | G7: 2015-06-26 | H7: G | J7: GSC | K7: G | L7: 49 | M7: 86 | N7: 99 | O7: 64 | P7: 74 | Q7: 59 | R7: 162 | S7: 431 | T7: 71.83333333 | V7: C2 | W7: A2 | X7: A1 | Y7: B2 | Z7: B1 | AA7: C1 | AC7: A
A8: 5 | B8: 3342 | C8: BUNNY MEGAVATH | D8: KISHAN | E8: ST | F8: 2004-10-11 | G8: 2015-06-16 | H8: G | J8: GST | K8: G | L8: 35 | M8: 81 | N8: 47 | O8: 99 | P8: 63 | Q8: 73 | R8: 189 | S8: 398 | T8: 66.33333333 | V8: D | W8: A2 | X8: C2 | Y8: A1 | Z8: B2 | AA8: B1 | AC8: A
A9: 6 | B9: 3361 | C9: CHANDANA PAMBALA | D9: DURGESH | E9: SC | F9: 2005-10-29 | G9: 2015-06-17 | H9: G | J9: GSC | K9: G | L9: 55 | M9: 38 | N9: 35 | O9: 69 | P9: 39 | Q9: 39 | R9: 167 | S9: 275 | T9: 45.83333333 | V9: C1 | W9: D | X9: D | Y9: B2 | Z9: D | AA9: D | AC9: A
A10: 7 | B10: 3720 | C10: CHANDU GYARA | D10: JANGAIAH | E10: SC | F10: 2004-12-20 | G10: 2017-06-20 | H10: G | J10: GSC | K10: G | L10: 77 | M10: 57 | N10: 40 | O10: 67 | P10: 65 | Q10: 69 | R10: 194 | S10: 375 | T10: 62.5 | V10: B1 | W10: C1 | X10: D | Y10: B2 | Z10: B2 | AA10: B2 | AC10: A
A11: 8 | B11: 3440 | C11: DEEKSHITHA GYARA | D11: NARSIMHA | E11: SC | F11: 2003-09-28 | G11: 2015-06-22 | H11: G | J11: GSC | K11: G | L11: 94 | M11: 56 | N11: 60 | O11: 42 | P11: 35 | Q11: 48 | R11: 199 | S11: 335 | T11: 55.83333333 | V11: A1 | W11: C1 | X11: C1 | Y11: C2 | Z11: D | AA11: C2 | AC11: A
A12: 9 | B12: 3445 | C12: DILIP GOLKONDA | D12: YADAGIRI | E12: SC | F12: 2003-12-06 | G12: 2015-06-26 | H12: G | J12: GSC | K12: G | L12: 74 | M12: 70 | N12: 60 | O12: 100 | P12: 89 | Q12: 57 | R12: 205 | S12: 450 | T12: 75 | V12: B1 | W12: B2 | X12: C1 | Y12: A1 | Z12: A2 | AA12: C1 | AC12: A
A13: 10 | B13: 3362 | C13: DIVYA MANUPATI | D13: MALLESH | E13: ST | F13: 2004-08-15 | G13: 2015-06-17 | H13: G | J13: GST | K13: G | L13: 58 | M13: 79 | N13: 83 | O13: 100 | P13: 58 | Q13: 83 | R13: 199 | S13: 461 | T13: 76.83333333 | V13: C1 | W13: B1 | X13: A2 | Y13: A1 | Z13: C1 | AA13: A2 | AC13: A
A14: 11 | B14: 3444 | C14: HANMANTH KATROTH | D14: SHANKER | E14: ST | F14: 2003-07-11 | G14: 2015-06-25 | H14: G | J14: GST | K14: G | L14: 81 | M14: 45 | N14: 38 | O14: 40 | P14: 65 | Q14: 94 | R14: 195 | S14: 363 | T14: 60.5 | V14: A2 | W14: C2 | X14: D | Y14: D | Z14: B2 | AA14: A1 | AC14: A
A15: 12 | B15: 3387 | C15: LAVANYA RAVULA | D15: RAMACHANDRAIAH | E15: BC | F15: 2003-09-15 | G15: 2015-06-22 | H15: G | J15: GBC | K15: G | L15: 63 | M15: 92 | N15: 69 | O15: 58 | P15: 48 | Q15: 78 | R15: 205 | S15: 408 | T15: 68 | V15: B2 | W15: A1 | X15: B2 | Y15: C1 | Z15: C2 | AA15: B1 | AC15: A
A16: 13 | B16: 3420 | C16: LOKESH SWAMY MADGULLA | D16: KRISHNA | E16: BC | F16: 2004-05-18 | G16: 2015-06-24 | H16: G | J16: GBC | K16: G | L16: 86 | M16: 83 | N16: 70 | O16: 89 | P16: 56 | Q16: 65 | R16: 168 | S16: 449 | T16: 74.83333333 | V16: A2 | W16: A2 | X16: B2 | Y16: A2 | Z16: C1 | AA16: B2 | AC16: A
A17: 14 | B17: 3534 | C17: MAHESH ARLA | D17: PARVATHALU | E17: BC | F17: 2004-02-26 | G17: 2016-06-16 | H17: G | J17: GBC | K17: G | L17: 46 | M17: 83 | N17: 80 | O17: 88 | P17: 41 | Q17: 83 | R17: 165 | S17: 421 | T17: 70.16666667 | V17: C2 | W17: A2 | X17: B1 | Y17: A2 | Z17: C2 | AA17: A2 | AC17: A
A18: 15 | B18: 3383 | C18: MAHESH BARMALA | D18: RAMACHANDRAIAH | E18: BC | F18: 2004-06-07 | G18: 2015-06-22 | H18: G | J18: GBC | K18: G | L18: 90 | M18: 86 | N18: 96 | O18: 42 | P18: 62 | Q18: 56 | R18: 162 | S18: 432 | T18: 72 | V18: A2 | W18: A2 | X18: A1 | Y18: C2 | Z18: B2 | AA18: C1 | AC18: A
A19: 16 | B19: 3376 | C19: MANUSHA GUNUKULA | D19: SATHAIAH | E19: BC | F19: 2003-06-25 | G19: 2015-06-20 | H19: G | J19: GBC | K19: G | L19: 70 | M19: 40 | N19: 42 | O19: 37 | P19: 44 | Q19: 40 | R19: 192 | S19: 273 | T19: 45.5 | V19: B2 | W19: D | X19: C2 | Y19: D | Z19: C2 | AA19: D | AC19: A
A20: 17 | B20: 3707 | C20: NAGARAJU ARUKONDA | D20: ESHWAR | E20: BC | F20: 2003-03-12 | G20: 2017-06-15 | H20: G | J20: GBC | K20: G | L20: 70 | M20: 91 | N20: 45 | O20: 77 | P20: 71 | Q20: 94 | R20: 178 | S20: 448 | T20: 74.66666667 | V20: B2 | W20: A1 | X20: C2 | Y20: B1 | Z20: B1 | AA20: A1 | AC20: A
A21: 18 | B21: 3392 | C21: NANDHINI JOGU | D21: SRINU | E21: SC | F21: 2004-01-06 | G21: 2015-06-22 | H21: G | J21: GSC | K21: G | L21: 53 | M21: 75 | N21: 72 | O21: 80 | P21: 82 | Q21: 50 | R21: 178 | S21: 412 | T21: 68.66666667 | V21: C1 | W21: B1 | X21: B1 | Y21: B1 | Z21: A2 | AA21: C2 | AC21: A
A22: 19 | B22: 3413 | C22: POOJITHA GUDDINALLA | D22: SRIRAMULU | E22: BC | F22: 2004-07-19 | G22: 2015-06-24 | H22: G | J22: GBC | K22: G | L22: 90 | M22: 50 | N22: 69 | O22: 86 | P22: 50 | Q22: 57 | R22: 213 | S22: 402 | T22: 67 | V22: A2 | W22: C2 | X22: B2 | Y22: A2 | Z22: C2 | AA22: C1 | AC22: A
A23: 20 | B23: 3350 | C23: PRASANNALAXMI KATTA | D23: NARSIMHA | E23: SC | F23: 2003-11-06 | G23: 2015-06-17 | H23: G | J23: GSC | K23: G | L23: 69 | M23: 66 | N23: 47 | O23: 38 | P23: 97 | Q23: 65 | R23: 198 | S23: 382 | T23: 63.66666667 | V23: B2 | W23: B2 | X23: C2 | Y23: D | Z23: A1 | AA23: B2 | AC23: A
A24: 21 | B24: 3384 | C24: PRAVEEN SUNKARI | D24: ASHOK | E24: BC | F24: 2002-10-04 | H24: G | J24: GBC | K24: G | L24: 58 | M24: 80 | N24: 92 | O24: 77 | P24: 53 | Q24: 90 | R24: 152 | S24: 450 | T24: 75 | V24: C1 | W24: B1 | X24: A1 | Y24: B1 | Z24: C1 | AA24: A2 | AC24: A
A25: 22 | B25: 3385 | C25: RAJESHWARI DASARAMONI | D25: VENKATESH | E25: BC | F25: 2003-07-04 | G25: 2015-06-22 | H25: G | J25: GBC | K25: G | L25: 90 | M25: 87 | N25: 92 | O25: 64 | P25: 90 | Q25: 81 | R25: 166 | S25: 504 | T25: 84 | V25: A2 | W25: A2 | X25: A1 | Y25: B2 | Z25: A2 | AA25: A2 | AC25: A
A26: 23 | B26: 3373 | C26: SANDHYA PUNNAM | D26: BUCHAIAH | E26: BC | F26: 2003-11-28 | G26: 2015-06-20 | H26: G | J26: GBC | K26: G | L26: 91 | M26: 39 | N26: 90 | O26: 50 | P26: 58 | Q26: 66 | R26: 211 | S26: 394 | T26: 65.66666667 | V26: A1 | W26: D | X26: A2 | Y26: C2 | Z26: C1 | AA26: B2 | AC26: A
A27: 24 | B27: 3618 | C27: SANDHYA YATA | D27: JANGAIAH | E27: BC | F27: 2005-08-24 | G27: 2016-07-13 | H27: G | J27: GBC | K27: G | L27: 73 | M27: 70 | N27: 100 | O27: 59 | P27: 80 | Q27: 48 | R27: 201 | S27: 430 | T27: 71.66666667 | V27: B1 | W27: B2 | X27: A1 | Y27: C1 | Z27: B1 | AA27: C2 | AC27: A
A28: 25 | B28: 3463 | C28: SHIVANI BUDIGALA | D28: SRISAILAM | E28: BC | F28: 2004-06-18 | G28: 2015-06-22 | H28: G | J28: GBC | K28: G | L28: 86 | M28: 63 | N28: 44 | O28: 83 | P28: 52 | Q28: 84 | R28: 209 | S28: 412 | T28: 68.66666667 | V28: A2 | W28: B2 | X28: C2 | Y28: A2 | Z28: C1 | AA28: A2 | AC28: A
A29: 26 | B29: 3386 | C29: SOWMYA SUNKARI | D29: RAMASWAMY | E29: BC | F29: 2004-08-23 | G29: 2015-06-22 | H29: G | J29: GBC | K29: G | L29: 100 | M29: 99 | N29: 83 | O29: 86 | P29: 97 | Q29: 52 | R29: 202 | S29: 517 | T29: 86.16666667 | V29: A1 | W29: A1 | X29: A2 | Y29: A2 | Z29: A1 | AA29: C1 | AC29: A
A30: 27 | B30: 3731 | C30: SREEJA MARAGONI | D30: VENKATAIAH | E30: BC | F30: 2004-02-17 | G30: 2017-06-24 | H30: G | J30: GBC | K30: G | L30: 93 | M30: 35 | N30: 77 | O30: 98 | P30: 67 | Q30: 70 | R30: 179 | S30: 440 | T30: 73.33333333 | V30: A1 | W30: D | X30: B1 | Y30: A1 | Z30: B2 | AA30: B2 | AC30: A
A31: 28 | B31: 3412 | C31: VARALAXMI BODDU | D31: VENKATESH | E31: BC | F31: 2005-08-27 | G31: 2015-06-24 | H31: G | J31: GBC | K31: G | L31: 44 | M31: 56 | N31: 92 | O31: 49 | P31: 61 | Q31: 76 | R31: 152 | S31: 378 | T31: 63 | V31: C2 | W31: C1 | X31: A1 | Y31: C2 | Z31: B2 | AA31: B1 | AC31: A
A32: 29 | B32: 3378 | C32: JEEVAN ANAMGALLA | D32: YADAIAH | E32: SC | F32: 2005-06-07 | G32: 2015-06-22 | H32: B | J32: BSC | K32: B | L32: 47 | M32: 53 | N32: 77 | O32: 61 | P32: 100 | Q32: 81 | R32: 192 | S32: 419 | T32: 69.83333333 | V32: C2 | W32: C1 | X32: B1 | Y32: B2 | Z32: A1 | AA32: A2 | AC32: A
A33: 30 | B33: 3839 | C33: NAVYASREE KOLLOGU | D33: CHANDRASHEKAR CHARY | E33: BC | F33: 2005-07-19 | G33: 2018-06-23 | H33: B | J33: BBC | K33: B | L33: 74 | M33: 47 | N33: 36 | O33: 94 | P33: 80 | Q33: 77 | R33: 208 | S33: 408 | T33: 68 | V33: B1 | W33: C2 | X33: D | Y33: A1 | Z33: B1 | AA33: B1 | AC33: A
A34: 31 | B34: 3626 | C34: RAJESH BURA | D34: NARAHARI | E34: SC | F34: 2004-09-21 | G34: 2016-07-11 | H34: B | J34: BSC | K34: B | L34: 60 | M34: 48 | N34: 86 | O34: 74 | P34: 75 | Q34: 54 | R34: 156 | S34: 397 | T34: 66.16666667 | V34: C1 | W34: C2 | X34: A2 | Y34: B1 | Z34: B1 | AA34: C1 | AC34: A
A35: 32 | B35: 3381 | C35: RAJU KANDALA | D35: ILAIAH | E35: BC | F35: 2003-09-15 | G35: 2015-06-22 | H35: B | J35: BBC | K35: B | L35: 45 | M35: 69 | N35: 44 | O35: 44 | P35: 87 | Q35: 36 | R35: 200 | S35: 325 | T35: 54.16666667 | V35: C2 | W35: B2 | X35: C2 | Y35: C2 | Z35: A2 | AA35: D | AC35: A
A36: 33 | B36: 3344 | C36: RAMCHARAJ TEJ VANKUDOTH | D36: GOPAL | E36: ST | F36: 2005-06-07 | G36: 2015-06-16 | H36: B | J36: BST | K36: B | L36: 57 | M36: 54 | N36: 36 | O36: 48 | P36: 36 | Q36: 36 | R36: 198 | S36: 267 | T36: 44.5 | V36: C1 | W36: C1 | X36: D | Y36: C2 | Z36: D | AA36: D | AC36: A
A37: 34 | B37: 3347 | C37: SAIKIRAN YATA | D37: RAVI | E37: BC | F37: 2003-06-07 | G37: 2015-06-16 | H37: B | J37: BBC | K37: B | L37: 69 | M37: 96 | N37: 52 | O37: 55 | P37: 38 | Q37: 48 | R37: 192 | S37: 358 | T37: 59.66666667 | V37: B2 | W37: A1 | X37: C1 | Y37: C1 | Z37: D | AA37: C2 | AC37: A
A38: 35 | B38: 3748 | C38: SHANKER JERPULA | D38: SREENU | E38: ST | F38: 2003-01-01 | G38: 2017-07-05 | H38: B | J38: BST | K38: B | L38: 74 | M38: 80 | N38: 43 | O38: 66 | P38: 48 | Q38: 72 | R38: 199 | S38: 383 | T38: 63.83333333 | V38: B1 | W38: B1 | X38: C2 | Y38: B2 | Z38: C2 | AA38: B1 | AC38: A
A39: 36 | B39: 3660 | C39: SHIVA KALLOJU | D39: RAMULU | E39: BC | F39: 2005-05-16 | G39: 2017-03-27 | H39: B | J39: BBC | K39: B | L39: 86 | M39: 55 | N39: 95 | O39: 53 | P39: 62 | Q39: 76 | R39: 199 | S39: 427 | T39: 71.16666667 | V39: A2 | W39: C1 | X39: A1 | Y39: C1 | Z39: B2 | AA39: B1 | AC39: A
A40: 37 | B40: 3364 | C40: SHIVAKUMAR PAMBALA | D40: GOPAL | E40: SC | F40: 2003-12-14 | G40: 2015-06-17 | H40: B | J40: BSC | K40: B | L40: 40 | M40: 65 | N40: 89 | O40: 52 | P40: 85 | Q40: 59 | R40: 159 | S40: 390 | T40: 65 | V40: D | W40: B2 | X40: A2 | Y40: C1 | Z40: A2 | AA40: C1 | AC40: A
A41: 38 | B41: 3442 | C41: SHRAVAN KUMAR GUDDIMALLA | D41: VENKATESH | E41: BC | G41: 2015-06-29 | H41: B | J41: BBC | K41: B | L41: 93 | M41: 58 | N41: 42 | O41: 69 | P41: 73 | Q41: 43 | R41: 193 | S41: 378 | T41: 63 | V41: A1 | W41: C1 | X41: C2 | Y41: B2 | Z41: B1 | AA41: C2 | AC41: A
A42: 39 | B42: 3439 | C42: SIDHARTHA SATHIRI | D42: YADAGIRI | E42: SC | F42: 2003-12-06 | G42: 2015-06-26 | H42: B | J42: BSC | K42: B | L42: 98 | M42: 68 | N42: 64 | O42: 88 | P42: 51 | Q42: 45 | R42: 213 | S42: 414 | T42: 69 | V42: A1 | W42: B2 | X42: B2 | Y42: A2 | Z42: C1 | AA42: C2 | AC42: A
A43: 40 | B43: 3389 | C43: SUFIYAN MD | D43: HAMEED | E43: BC | F43: 2003-12-21 | G43: 2015-06-22 | H43: B | J43: BBC | K43: B | L43: 59 | M43: 65 | N43: 52 | O43: 46 | P43: 58 | Q43: 62 | R43: 205 | S43: 342 | T43: 57 | V43: C1 | W43: B2 | X43: C1 | Y43: C2 | Z43: C1 | AA43: B2 | AC43: A
A44: 41 | B44: 3850 | C44: THARUN AMANGALLA | D44: RAVI | E44: SC | F44: 2002-12-10 | G44: 2018-07-02 | H44: B | J44: BSC | K44: B | L44: 48 | M44: 65 | N44: 81 | O44: 90 | P44: 70 | Q44: 53 | R44: 174 | S44: 407 | T44: 67.83333333 | V44: C2 | W44: B2 | X44: A2 | Y44: A2 | Z44: B2 | AA44: C1 | AC44: A
A45: 42 | B45: 3535 | C45: UDAY CHARY KALLOJU | D45: NARSIMHA CHARY | E45: BC | F45: 2004-10-31 | G45: 2016-06-16 | H45: B | J45: BBC | K45: B | L45: 91 | M45: 89 | N45: 61 | O45: 69 | P45: 39 | Q45: 58 | R45: 150 | S45: 407 | T45: 67.83333333 | V45: A1 | W45: A2 | X45: B2 | Y45: B2 | Z45: D | AA45: C1 | AC45: A
A46: 43 | B46: 3473 | C46: VAMSHI ANIMALLA | D46: NARSIMHA | E46: SC | F46: 2004-06-21 | G46: 2015-10-10 | H46: B | J46: BSC | K46: B | L46: 88 | M46: 81 | N46: 81 | O46: 49 | P46: 38 | Q46: 53 | R46: 164 | S46: 390 | T46: 65 | V46: A2 | W46: A2 | X46: A2 | Y46: C2 | Z46: D | AA46: C1 | AC46: A
A47: 44 | B47: 3358 | C47: VAMSHI MEGAVATH | D47: HANUMA | E47: ST | F47: 2004-03-04 | G47: 2015-06-17 | H47: B | J47: BST | K47: B | L47: 78 | M47: 70 | N47: 92 | O47: 80 | P47: 94 | Q47: 38 | R47: 185 | S47: 452 | T47: 75.33333333 | V47: B1 | W47: B2 | X47: A1 | Y47: B1 | Z47: A1 | AA47: D | AC47: A
A48: 45 | B48: 3427 | C48: VIJAY KAGU | D48: RAMULU | E48: BC | F48: 2003-11-10 | G48: 2015-06-25 | H48: B | J48: BBC | K48: B | L48: 67 | M48: 36 | N48: 93 | O48: 46 | P48: 62 | Q48: 36 | R48: 164 | S48: 340 | T48: 56.66666667 | V48: B2 | W48: D | X48: A1 | Y48: C2 | Z48: B2 | AA48: D | AC48: A
A49: 46 | B49: 3725 | C49: AKHILA JOGINI | D49: JANGAIAH | E49: BC | F49: 2004-06-30 | G49: 2017-06-21 | H49: G | J49: GBC | K49: G | L49: 42 | M49: 75 | N49: 41 | O49: 91 | P49: 52 | Q49: 43 | R49: 205 | S49: 344 | T49: 57.33333333 | V49: C2 | W49: B1 | X49: C2 | Y49: A1 | Z49: C1 | AA49: C2 | AC49: B
A50: 47 | B50: 3656 | C50: ANUSHA GADDAM | D50: JANGAIAH | E50: SC | F50: 2004-05-19 | G50: 2017-03-27 | H50: G | J50: GSC | K50: G | L50: 85 | M50: 98 | N50: 38 | O50: 68 | P50: 41 | Q50: 79 | R50: 205 | S50: 409 | T50: 68.16666667 | V50: A2 | W50: A1 | X50: D | Y50: B2 | Z50: C2 | AA50: B1 | AC50: B
A51: 48 | B51: 3366 | C51: ANUSHA GANTA | D51: YADAIAH | E51: BC | F51: 2005-01-22 | G51: 2015-06-17 | H51: G | J51: GBC | K51: G | L51: 79 | M51: 94 | N51: 78 | O51: 58 | P51: 38 | Q51: 41 | R51: 187 | S51: 388 | T51: 64.66666667 | V51: B1 | W51: A1 | X51: B1 | Y51: C1 | Z51: D | AA51: C2 | AC51: B
A52: 49 | B52: 3647 | C52: ANUSHA JENIGA | D52: CHANDRAIAH | E52: BC | F52: 2005-06-17 | G52: 2017-03-25 | H52: G | J52: GBC | K52: G | L52: 74 | M52: 73 | N52: 59 | O52: 71 | P52: 87 | Q52: 39 | R52: 192 | S52: 403 | T52: 67.16666667 | V52: B1 | W52: B1 | X52: C1 | Y52: B1 | Z52: A2 | AA52: D | AC52: B
A53: 50 | B53: 3542 | C53: ANUSHA KONALA | D53: BISHAPATHI | E53: BC | F53: 2005-02-10 | G53: 2016-06-17 | H53: G | J53: GBC | K53: G | L53: 83 | M53: 55 | N53: 94 | O53: 43 | P53: 56 | Q53: 86 | R53: 207 | S53: 417 | T53: 69.5 | V53: A2 | W53: C1 | X53: A1 | Y53: C2 | Z53: C1 | AA53: A2 | AC53: B
A54: 51 | B54: 3377 | C54: ASHWINI MEGAVATH | D54: BHASKAR | E54: ST | F54: 2004-08-06 | G54: 2015-06-22 | H54: G | J54: GST | K54: G | L54: 95 | M54: 54 | N54: 48 | O54: 54 | P54: 78 | Q54: 45 | R54: 178 | S54: 374 | T54: 62.33333333 | V54: A1 | W54: C1 | X54: C2 | Y54: C1 | Z54: B1 | AA54: C2 | AC54: B
A55: 52 | B55: 3724 | C55: BHARVAVI POOJARI | D55: KRISHNA | E55: BC | F55: 2004-03-04 | G55: 2017-06-21 | H55: G | J55: GBC | K55: G | L55: 94 | M55: 46 | N55: 48 | O55: 91 | P55: 39 | Q55: 48 | R55: 173 | S55: 366 | T55: 61 | V55: A1 | W55: C2 | X55: C2 | Y55: A1 | Z55: D | AA55: C2 | AC55: B
A56: 53 | B56: 3379 | C56: KAVERU ADEPU | D56: BALRAJU | E56: BC | F56: 2004-02-24 | G56: 2015-06-22 | H56: G | J56: GBC | K56: G | L56: 93 | M56: 62 | N56: 64 | O56: 87 | P56: 86 | Q56: 100 | R56: 192 | S56: 492 | T56: 82 | V56: A1 | W56: B2 | X56: B2 | Y56: A2 | Z56: A2 | AA56: A1 | AC56: B
A57: 54 | B57: 3641 | C57: KAVYA GORRENKALA | D57: RAMESH | E57: BC | F57: 2004-09-21 | G57: 2017-03-24 | H57: G | J57: GBC | K57: G | L57: 54 | M57: 71 | N57: 73 | O57: 86 | P57: 36 | Q57: 51 | R57: 166 | S57: 371 | T57: 61.83333333 | V57: C1 | W57: B1 | X57: B1 | Y57: A2 | Z57: D | AA57: C1 | AC57: B
A58: 55 | B58: 3646 | C58: KOMALA GAJJI | D58: LINGAIAH | E58: BC | F58: 2005-10-12 | G58: 2017-08-25 | H58: G | J58: GBC | K58: G | L58: 56 | M58: 76 | N58: 37 | O58: 85 | P58: 75 | Q58: 53 | R58: 156 | S58: 382 | T58: 63.66666667 | V58: C1 | W58: B1 | X58: D | Y58: A2 | Z58: B1 | AA58: C1 | AC58: B
A59: 56 | B59: 3410 | C59: MADHAVI NAROJI | D59: SATYANARAYANA | E59: BC | F59: 2003-04-20 | G59: 2015-06-23 | H59: G | J59: GBC | K59: G | L59: 82 | M59: 91 | N59: 53 | O59: 42 | P59: 35 | Q59: 93 | R59: 178 | S59: 396 | T59: 66 | V59: A2 | W59: A1 | X59: C1 | Y59: C2 | Z59: D | AA59: A1 | AC59: B
A60: 57 | B60: 3388 | C60: MOUNIKA AVA | D60: PARVATHALU | E60: BC | F60: 2003-08-26 | G60: 2015-06-22 | H60: G | J60: GBC | K60: G | L60: 36 | M60: 37 | N60: 88 | O60: 58 | P60: 93 | Q60: 83 | R60: 150 | S60: 395 | T60: 65.83333333 | V60: D | W60: D | X60: A2 | Y60: C1 | Z60: A1 | AA60: A2 | AC60: B
A61: 58 | B61: 3712 | C61: NIKITHA NUKKAM | D61: VENKATESH | E61: BC | F61: 2004-04-22 | G61: 2017-06-19 | H61: G | J61: GBC | K61: G | L61: 68 | M61: 100 | N61: 72 | O61: 92 | P61: 91 | Q61: 66 | R61: 172 | S61: 489 | T61: 81.5 | V61: B2 | W61: A1 | X61: B1 | Y61: A1 | Z61: A1 | AA61: B2 | AC61: B
A62: 59 | B62: 3727 | C62: PALLAVI NELAKANTI | D62: JANGAIAH | E62: BC | F62: 2004-05-28 | G62: 2017-06-21 | H62: G | J62: GBC | K62: G | L62: 49 | M62: 71 | N62: 66 | O62: 50 | P62: 78 | Q62: 59 | R62: 165 | S62: 373 | T62: 62.16666667 | V62: C2 | W62: B1 | X62: B2 | Y62: C2 | Z62: B1 | AA62: C1 | AC62: B
A63: 60 | B63: 3546 | C63: POJITHA INDROJI | D63: RAMACHARY | E63: BC | F63: 2003-06-17 | G63: 2016-06-17 | H63: G | J63: GBC | K63: G | L63: 75 | M63: 44 | N63: 65 | O63: 93 | P63: 100 | Q63: 92 | R63: 202 | S63: 469 | T63: 78.16666667 | V63: B1 | W63: C2 | X63: B2 | Y63: A1 | Z63: A1 | AA63: A1 | AC63: B
A64: 61 | B64: 3648 | C64: POOJA VATTI | D64: YELLAIAH | E64: BC | F64: 2005-06-18 | G64: 2017-03-25 | H64: G | J64: GBC | K64: G | L64: 94 | M64: 78 | N64: 79 | O64: 98 | P64: 56 | Q64: 59 | R64: 171 | S64: 464 | T64: 77.33333333 | V64: A1 | W64: B1 | X64: B1 | Y64: A1 | Z64: C1 | AA64: C1 | AC64: B
A65: 62 | B65: 3657 | C65: PRAVALIKA GUDDIMALA | D65: SATYANARAYANA | E65: BC | F65: 2004-08-15 | G65: 2017-03-27 | H65: G | J65: GBC | K65: G | L65: 54 | M65: 39 | N65: 63 | O65: 57 | P65: 99 | Q65: 62 | R65: 193 | S65: 374 | T65: 62.33333333 | V65: C1 | W65: D | X65: B2 | Y65: C1 | Z65: A1 | AA65: B2 | AC65: B
A66: 63 | B66: 3657 | C66: RAJESHWARI SAPAVATH | D66: SRINU | E66: ST | F66: 2006-10-09 | G66: 2017-03-27 | H66: G | J66: GST | K66: G | L66: 100 | M66: 40 | N66: 57 | O66: 58 | P66: 76 | Q66: 63 | R66: 200 | S66: 394 | T66: 65.66666667 | V66: A1 | W66: D | X66: C1 | Y66: C1 | Z66: B1 | AA66: B2 | AC66: B
A67: 64 | B67: 3642 | C67: REVATHI GORRENKALA | D67: SATHAIAH | E67: BC | F67: 2005-03-06 | G67: 2017-03-24 | H67: G | J67: GBC | K67: G | L67: 41 | M67: 61 | N67: 63 | O67: 81 | P67: 72 | Q67: 72 | R67: 167 | S67: 390 | T67: 65 | V67: C2 | W67: B2 | X67: B2 | Y67: A2 | Z67: B1 | AA67: B1 | AC67: B
A68: 65 | B68: 3761 | C68: BHARATH DUSARI | D68: KUMAR | E68: BC | F68: 2003-08-17 | G68: 2017-09-09 | H68: B | J68: =H68&E68 -> BBC | K68: =H68&I68 -> B | L68: 74 | M68: 87 | N68: 51 | O68: 50 | P68: 65 | Q68: 72 | R68: 180 | S68: 399 | T68: 66.5 | V68: B1 | W68: A2 | X68: C1 | Y68: C2 | Z68: B2 | AA68: B1 | AC68: B
A69: 66 | B69: 3830 | C69: BHEEMUDU GANGADEVI | D69: ANJAIAH | E69: BC | F69: 2003-05-06 | G69: 2018-06-18 | H69: B | J69: BBC | K69: B | L69: 72 | M69: 68 | N69: 65 | O69: 94 | P69: 59 | Q69: 75 | R69: 162 | S69: =SUM(L69:Q69) -> 433 | T69: =S69/600% -> 72.16666667 | V69: =fgrade(L69) -> B1 | W69: =fgrade(M69) -> B2 | X69: =fgrade(N69) -> B2 | Y69: =fgrade(O69) -> A1 | Z69: =fgrade(P69) -> C1 | AA69: =fgrade(Q69) -> B1 | AC69: B
A70: 67 | B70: 3755 | C70: KUMAR AVA | D70: VENKATESH | E70: BC | F70: 2002-02-15 | G70: 2017-08-17 | H70: B | J70: BBC | K70: B | L70: 80 | M70: 100 | N70: 85 | O70: 76 | P70: 71 | Q70: 85 | R70: 211 | S70: 497 | T70: 82.83333333 | V70: B1 | W70: A1 | X70: A2 | Y70: B1 | Z70: B1 | AA70: A2 | AC70: B
A71: 68 | B71: 3359 | C71: MAHENDER MEGHAVATH | D71: JEEVLAL | E71: ST | F71: 2004-05-20 | G71: 2016-06-17 | H71: B | J71: BST | K71: B | L71: 85 | M71: 72 | N71: 81 | O71: 52 | P71: 71 | Q71: 73 | R71: 156 | S71: 434 | T71: 72.33333333 | V71: A2 | W71: B1 | X71: A2 | Y71: C1 | Z71: B1 | AA71: B1 | AC71: B
A72: 69 | B72: 3533 | C72: MAHESH BUTHARAJU | D72: BUCHAIAH | E72: BC | F72: 2002-07-22 | G72: 2016-06-16 | H72: B | J72: BBC | K72: B | L72: 67 | M72: 38 | N72: 49 | O72: 65 | P72: 91 | Q72: 35 | R72: 187 | S72: 345 | T72: 57.5 | V72: B2 | W72: D | X72: C2 | Y72: B2 | Z72: A1 | AA72: D | AC72: B
A73: 70 | B73: 3460 | C73: MAHESH TOLLU | D73: YADAIAH | E73: SC | F73: 2004-10-20 | G73: 2015-06-22 | H73: B | J73: BSC | K73: B | L73: 61 | M73: 86 | N73: 92 | O73: 70 | P73: 64 | Q73: 89 | R73: 155 | S73: 462 | T73: 77 | V73: B2 | W73: A2 | X73: A1 | Y73: B2 | Z73: B2 | AA73: A2 | AC73: B
A74: 71 | B74: 3455 | C74: MANISH KUMAR GATLA | D74: KRISHNA | E74: BC | F74: 2004-06-27 | G74: 2015-07-08 | H74: B | J74: BBC | K74: B | L74: 99 | M74: 73 | N74: 52 | O74: 52 | P74: 71 | Q74: 78 | R74: 198 | S74: 425 | T74: 70.83333333 | V74: A1 | W74: B1 | X74: C1 | Y74: C1 | Z74: B1 | AA74: B1 | AC74: B
A75: 72 | B75: 3394 | C75: NARSIMHA SAPAVAT | D75: PANDU | E75: ST | F75: 2004-12-26 | G75: 2015-06-22 | H75: B | J75: BST | K75: B | L75: 79 | M75: 43 | N75: 97 | O75: 60 | P75: 55 | Q75: 98 | R75: 197 | S75: 432 | T75: 72 | V75: B1 | W75: C2 | X75: A1 | Y75: C1 | Z75: C1 | AA75: A1 | AC75: B
A76: 73 | B76: 3658 | C76: NAVEEN MADARAMONI | D76: BALRAJ | E76: BC | F76: 2003-03-16 | G76: 2007-03-27 | H76: B | J76: BBC | K76: B | L76: 44 | M76: 79 | N76: 87 | O76: 67 | P76: 78 | Q76: 61 | R76: 177 | S76: 416 | T76: 69.33333333 | V76: C2 | W76: B1 | X76: A2 | Y76: B2 | Z76: B1 | AA76: B2 | AC76: B
A77: 74 | B77: 3659 | C77: PRANAY KUMAR MAMIDI | D77: YADAIAH | E77: SC | F77: 2005-09-06 | G77: 2017-03-27 | H77: B | J77: BSC | K77: B | L77: 91 | M77: 86 | N77: 41 | O77: 68 | P77: 64 | Q77: 56 | R77: 182 | S77: 406 | T77: 67.66666667 | V77: A1 | W77: A2 | X77: C2 | Y77: B2 | Z77: B2 | AA77: C1 | AC77: B
A78: 75 | B78: 3408 | C78: RAGHAVENDAR DASARAMONI | D78: VENKATESH | E78: BC | F78: 2004-06-02 | G78: 2015-06-22 | H78: B | J78: BBC | K78: B | L78: 62 | M78: 68 | N78: 89 | O78: 49 | P78: 45 | Q78: 97 | R78: 185 | S78: 410 | T78: 68.33333333 | V78: B2 | W78: B2 | X78: A2 | Y78: C2 | Z78: C2 | AA78: A1 | AC78: B
A79: 76 | B79: 3714 | C79: RAJU CHINTHALA | D79: RAMULU | E79: BC | F79: 2003-06-21 | G79: 2017-06-19 | H79: B | J79: BBC | K79: B | L79: 57 | M79: 52 | N79: 50 | O79: 74 | P79: 84 | Q79: 36 | R79: 205 | S79: 353 | T79: 58.83333333 | V79: C1 | W79: C1 | X79: C2 | Y79: B1 | Z79: A2 | AA79: D | AC79: B
A80: 77 | B80: 3474 | C80: RAKESH SAGAR KUTURU | D80: KRISHNA SAGAR | E80: BC | F80: 2004-06-21 | G80: 2016-06-15 | H80: B | J80: BBC | K80: B | L80: 77 | M80: 100 | N80: 50 | O80: 48 | P80: 92 | Q80: 36 | R80: 178 | S80: 403 | T80: 67.16666667 | V80: B1 | W80: A1 | X80: C2 | Y80: C2 | Z80: A1 | AA80: D | AC80: B
A81: 78 | B81: 3726 | C81: RAMESH RAVULA | D81: YADAIAH | E81: BC | F81: 2003-03-16 | G81: 2017-06-21 | H81: B | J81: BBC | K81: B | L81: 55 | M81: 37 | N81: 65 | O81: 40 | P81: 58 | Q81: 55 | R81: 180 | S81: 310 | T81: 51.66666667 | V81: C1 | W81: D | X81: B2 | Y81: D | Z81: C1 | AA81: C1 | AC81: B
A82: 79 | B82: 3370 | C82: SABHA MD | D82: VASI | E82: BC | F82: 2004-05-11 | G82: 2015-06-18 | H82: B | J82: BBC | K82: B | L82: 91 | M82: 44 | N82: 56 | O82: 64 | P82: 52 | Q82: 50 | R82: 175 | S82: 357 | T82: 59.5 | V82: A1 | W82: C2 | X82: C1 | Y82: B2 | Z82: C1 | AA82: C2 | AC82: B
A83: 80 | B83: 3508 | C83: SAIKIRAN NUTHANGANTI | D83: KRISHNA | E83: BC | F83: 2003-01-29 | G83: 2016-06-15 | H83: B | J83: BBC | K83: B | L83: 64 | M83: 44 | N83: 48 | O83: 57 | P83: 35 | Q83: 75 | R83: 181 | S83: 323 | T83: 53.83333333 | V83: B2 | W83: C2 | X83: C2 | Y83: C1 | Z83: D | AA83: B1 | AC83: B
A84: 81 | B84: 3403 | C84: SAIKIRAN ORUGANTI | D84: JANGAIAH | E84: BC | F84: 2005-12-20 | G84: 2015-06-22 | H84: B | J84: BBC | K84: B | L84: 97 | M84: 44 | N84: 87 | O84: 36 | P84: 66 | Q84: 50 | R84: 194 | S84: 380 | T84: 63.33333333 | V84: A1 | W84: C2 | X84: A2 | Y84: D | Z84: B2 | AA84: C2 | AC84: B
A85: 82 | B85: 3404 | C85: SAINATH ORUGANTI | D85: VENKATESH | E85: BC | F85: 2004-01-30 | G85: 2015-06-22 | H85: B | J85: BBC | K85: B | L85: 83 | M85: 70 | N85: 39 | O85: 43 | P85: 36 | Q85: 94 | R85: 153 | S85: 365 | T85: 60.83333333 | V85: A2 | W85: B2 | X85: D | Y85: C2 | Z85: D | AA85: A1 | AC85: B
A86: 83 | B86: 3751 | C86: SIDDU VALLIGONDA | D86: NARSIMHA | E86: SC | F86: 2004-06-10 | G86: 2017-07-12 | H86: B | J86: BSC | K86: B | L86: 64 | M86: 62 | N86: 80 | O86: 90 | P86: 83 | Q86: 68 | R86: 152 | S86: 447 | T86: 74.5 | V86: B2 | W86: B2 | X86: B1 | Y86: A2 | Z86: A2 | AA86: B2 | AC86: B
A87: 84 | B87: 3339 | C87: SIRIKUMAR VARTHYA | D87: RAMSINGH | E87: ST | F87: 2004-04-13 | G87: 2015-06-15 | H87: B | J87: BST | K87: B | L87: 46 | M87: 64 | N87: 51 | O87: 62 | P87: 50 | Q87: 95 | R87: 182 | S87: 368 | T87: 61.33333333 | V87: C2 | W87: B2 | X87: C1 | Y87: B2 | Z87: C2 | AA87: A1 | AC87: B
A88: 85 | B88: 3638 | C88: SOWMYA MARAMONI | D88: VENKATESH | E88: BC | F88: 2004-07-08 | G88: 2017-03-24 | H88: B | J88: BBC | K88: B | L88: 98 | M88: 59 | N88: 82 | O88: 52 | P88: 95 | Q88: 61 | R88: 207 | S88: 447 | T88: 74.5 | V88: A1 | W88: C1 | X88: A2 | Y88: C1 | Z88: A1 | AA88: B2 | AC88: B
A89: 86 | B89: 3640 | C89: SRAVANI NOUSE | D89: KISTAIAH | E89: SC | F89: 2004-06-04 | G89: 2017-03-24 | H89: B | J89: BSC | K89: B | L89: 38 | M89: 72 | N89: 35 | O89: 41 | P89: 64 | Q89: 97 | R89: 169 | S89: 347 | T89: 57.83333333 | V89: D | W89: B1 | X89: D | Y89: C2 | Z89: B2 | AA89: A1 | AC89: B
A90: 87 | B90: 3729 | C90: SRISAILAM VATTI | D90: SATHAIAH | E90: BC | F90: 2004-07-12 | G90: 2017-06-22 | H90: B | J90: BBC | K90: B | L90: 80 | M90: 70 | N90: 47 | O90: 79 | P90: 51 | Q90: 38 | R90: 190 | S90: 365 | T90: 60.83333333 | V90: B1 | W90: B2 | X90: C2 | Y90: B1 | Z90: C1 | AA90: D | AC90: B
A91: 88 | B91: 3360 | C91: SURESH MANUPATI | D91: NARSIMHA | E91: ST | F91: 2004-09-27 | G91: 2015-06-17 | H91: B | J91: BST | K91: B | L91: 46 | M91: 35 | N91: 70 | O91: 74 | P91: 61 | Q91: 52 | R91: 150 | S91: 338 | T91: 56.33333333 | V91: C2 | W91: D | X91: B2 | Y91: B1 | Z91: B2 | AA91: C1 | AC91: B
A92: 89 | B92: 3639 | C92: SUSHMITHA NAMPALLY | D92: NARSIMHA | E92: BC | F92: 2005-03-31 | G92: 2017-03-24 | H92: B | J92: BBC | K92: B | L92: 68 | M92: 87 | N92: 66 | O92: 43 | P92: 86 | Q92: 53 | R92: 152 | S92: 403 | T92: 67.16666667 | V92: B2 | W92: A2 | X92: B2 | Y92: C2 | Z92: A2 | AA92: C1 | AC92: B
A93: 90 | B93: 3426 | C93: UDAY KIRAN KATROTH | D93: RAVI | E93: ST | F93: 2004-07-15 | G93: 2015-06-24 | H93: B | J93: BST | K93: B | L93: 71 | M93: 47 | N93: 79 | O93: 45 | P93: 40 | Q93: 64 | R93: 210 | S93: 346 | T93: 57.66666667 | V93: B1 | W93: C2 | X93: B1 | Y93: C2 | Z93: D | AA93: B2 | AC93: B
A94: 91 | B94: 3754 | C94: USHARANI MANKU | D94: YADAIAH | E94: SC | F94: 2005-07-30 | G94: 2017-08-17 | H94: B | J94: BSC | K94: B | L94: 38 | M94: 77 | N94: 64 | O94: 88 | P94: 72 | Q94: 36 | R94: 201 | S94: 375 | T94: 62.5 | V94: D | W94: B1 | X94: B2 | Y94: A2 | Z94: B1 | AA94: D | AC94: B
A95: 92 | B95: 3730 | C95: VAMSHIDHAR REDDY KANDIMALLA | D95: MALLAREDDY | E95: OC | F95: 2004-10-29 | G95: 2017-06-22 | H95: B | J95: BOC | K95: B | L95: 37 | M95: 36 | N95: 58 | O95: 44 | P95: 69 | Q95: 56 | R95: 181 | S95: 300 | T95: 50 | V95: D | W95: D | X95: C1 | Y95: C2 | Z95: B2 | AA95: C1 | AC95: B
A96: 93 | B96: 3507 | C96: VENUMADHAV NUTHANAGANTI | D96: JANGAIAH | E96: BC | F96: 2004-09-17 | G96: 2016-06-15 | H96: B | J96: BBC | K96: B | L96: 94 | M96: 51 | N96: 51 | O96: 41 | P96: 88 | Q96: 57 | R96: 162 | S96: 382 | T96: 63.66666667 | V96: A1 | W96: C1 | X96: C1 | Y96: C2 | Z96: A2 | AA96: C1 | AC96: B
A97: 94 | B97: 3390 | C97: ZUBER MD | D97: DASTHAGIRI | E97: BC | F97: 2003-10-15 | G97: 2015-06-22 | H97: B | I97: Y | J97: BBC | K97: BY | L97: 58 | M97: 38 | N97: 55 | O97: 86 | P97: 82 | Q97: 60 | R97: 182 | S97: 379 | T97: 63.16666667 | V97: C1 | W97: D | X97: C1 | Y97: A2 | Z97: A2 | AA97: C1 | AC97: B
S98: 0 | T98: 0
S99: 0 | T99: 0
S100: 0 | T100: 0
S101: 0 | T101: 0
S102: 0 | T102: 0
S103: 0 | T103: 0
S104: 0 | T104: 0
S105: 0 | T105: 0
S106: 0 | T106: 0
S107: 0 | T107: 0
S108: 0 | T108: 0
S109: 0 | T109: 0
S110: 0 | T110: 0
S111: 0 | T111: 0
S112: 0 | T112: 0
S113: 0 | T113: 0
S114: 0 | T114: 0
S115: 0 | T115: 0
S116: 0 | T116: 0
S117: 0 | T117: 0
S118: 0 | T118: 0
S119: 0 | T119: 0
S120: 0 | T120: 0
S121: 0 | T121: 0
S122: 0 | T122: 0
S123: 0 | T123: 0
S124: 0 | T124: 0
S125: 0 | T125: 0
S126: 0 | T126: 0
S127: 0 | T127: 0
S128: 0 | T128: 0
S129: 0 | T129: 0
S130: 0 | T130: 0
S131: 0 | T131: 0
J132: =H132&E132 ->  | K132: =H132&I132 ->  | S132: 0 | T132: 0
S133: =SUM(L133:Q133) -> 0 | T133: =S133/600% -> 0 | V133: =fgrade(L133) ->  | W133: =fgrade(M133) ->  | X133: =fgrade(N133) ->  | Y133: =fgrade(O133) ->  | Z133: =fgrade(P133) ->  | AA133: =fgrade(Q133) -> 
S134: 0 | T134: 0
S135: 0 | T135: 0
S136: 0 | T136: 0
S137: 0 | T137: 0
S138: 0 | T138: 0
S139: 0 | T139: 0
S140: 0 | T140: 0
S141: 0 | T141: 0
S142: 0 | T142: 0
S143: 0 | T143: 0
S144: 0 | T144: 0
S145: 0 | T145: 0
S146: 0 | T146: 0
S147: 0 | T147: 0
S148: 0 | T148: 0
S149: 0 | T149: 0
S150: 0 | T150: 0
S151: 0 | T151: 0
S152: 0 | T152: 0
S153: 0 | T153: 0
A154: 0 | Q154: ATB | R154: ATB
A155: 0 | B155: BOYS | C155: GIRLS | D155: TOTAL | Q155: =SUMIF(H4:H153,"B",R4:R153) -> 8545 | R155: =SUMIF(H4:H153,"G",R4:R153) -> 8647 | S155: =SUM(Q155:R155) -> 17192
A156: SC | B156: =COUNTIF($J$4:$J$153,"BSC") -> 11 | C156: =COUNTIF($J$4:$J$153,"GSC") -> 11 | D156: =SUM(B156:C156) -> 22 | K156: =H156&I156 -> 
A157: ST | B157: =COUNTIF($J$4:$J$153,"BST") -> 8 | C157: =COUNTIF($J$4:$J$153,"GST") -> 5 | D157: =SUM(B157:C157) -> 13
A158: BC | B158: =COUNTIF($J$4:$J$153,"BBC") -> 27 | C158: =COUNTIF($J$4:$J$153,"GBC") -> 31 | D158: =SUM(B158:C158) -> 58 | F158: MIN BOY | G158: MIN GIRL
A159: OC | B159: =COUNTIF($J$4:$J$153,"BOC") -> 1 | C159: =COUNTIF($J$4:$J$153,"GOC") -> 0 | D159: =SUM(B159:C159) -> 1 | F159: =COUNTIF(K4:K154,"BY") -> 1 | G159: =COUNTIF(K4:K154,"GY") -> 0
A160: TOTAL | B160: =SUM(B156:B159) -> 47 | C160: =SUM(C156:C159) -> 47 | D160: =SUM(D156:D159) -> 94

Sheet XEM
A1: XEM-2018-19
A2: =RIGHT(CELL("filename",C3),LEN(CELL("filename",C3))-FIND("]",CELL("filename",C3))) -> XEM | V2: GRADES
A3: RNO | B3: ADMN NO | C3: NAME OF THE STUDENT | D3: FATHER'S NAME | E3: CASTE | F3: DOB | G3: DOA | H3: SEX | I3: MUSLIM | L3: TEL | M3: HIN | N3: ENG | O3: MAT | P3: SCI | Q3: SOC | R3: ATT | S3: TOTAL M | T3: MARKS % | V3: TEL | W3: HIN | X3: ENG | Y3: MAT | Z3: SCI | AA3: SOC
A4: 1 | B4: 3225 | C4: AKHILA D | D4: RAMESH | E4: BC | F4: 2004-08-19 | G4: 2014-06-16 | H4: G | J4: =H4&E4 -> GBC | K4: =H4&I4 -> G | L4: 8 | M4: 10 | N4: 10 | O4: 7 | P4: 10 | Q4: 6 | R4: 153 | S4: =SUM(L4:Q4) -> 51 | T4: =S4/600% -> 8.5 | V4: =sscFGrade(L4) -> B1 | W4: =sscFGrade(M4) -> A1 | X4: A1 | Y4: B2 | Z4: A1 | AA4: C1
A5: 2 | B5: 3253 | C5: AKSHITHA M | D5: MALLESH | E5: BC | F5: 2003-12-07 | G5: 2014-06-18 | H5: G | J5: GBC | K5: =H5&I5 -> G | L5: 9 | M5: 7 | N5: 7 | O5: 6 | P5: 10 | Q5: 8 | R5: 152 | S5: =SUM(L5:Q5) -> 47 | T5: =S5/600% -> 7.833333333 | V5: =sscFGrade(L5) -> A2 | W5: =sscFGrade(M5) -> B2 | X5: =sscFGrade(N5) -> B2 | Y5: =sscFGrade(O5) -> C1 | Z5: =sscFGrade(P5) -> A1 | AA5: =sscFGrade(Q5) -> B1
A6: 3 | B6: 3605 | C6: AMBIKA M | D6: BASHAIAH | E6: BC | F6: 2003-09-02 | G6: 2016-06-29 | H6: G | J6: GBC | K6: G | L6: 6 | M6: 6 | N6: 10 | O6: 10 | P6: 10 | Q6: 5 | R6: 171 | S6: 47 | T6: 7.833333333 | V6: C1 | W6: C1 | X6: A1 | Y6: A1 | Z6: A1 | AA6: C2
A7: 4 | B7: 3206 | C7: ANURADHA G | D7: NARSIMHA | E7: BC | F7: 2003-04-08 | G7: 2014-06-16 | H7: G | J7: GBC | K7: G | L7: 8 | M7: 9 | N7: 9 | O7: 6 | P7: 7 | Q7: 6 | R7: 188 | S7: 45 | T7: 7.5 | V7: B1 | W7: A2 | X7: A2 | Y7: C1 | Z7: B2 | AA7: C1
A8: 5 | B8: 3510 | C8: ANUSHA G | D8: PANDU | E8: BC | F8: 2003-01-02 | G8: 2016-06-15 | H8: G | J8: GBC | K8: G | L8: 8 | M8: 9 | N8: 7 | O8: 6 | P8: 8 | Q8: 8 | R8: 205 | S8: 46 | T8: 7.666666667 | V8: B1 | W8: A2 | X8: B2 | Y8: C1 | Z8: B1 | AA8: B1
A9: 6 | B9: 3544 | C9: ANUSHA K | D9: ILAIAH | E9: BC | F9: 2002-05-10 | G9: 2016-06-17 | H9: G | J9: GBC | K9: G | L9: 10 | M9: 8 | N9: 9 | O9: 5 | P9: 5 | Q9: 8 | R9: 182 | S9: 45 | T9: 7.5 | V9: A1 | W9: B1 | X9: A2 | Y9: C2 | Z9: C2 | AA9: B1
A10: 7 | B10: 3214 | C10: ANUSHA K | D10: RAMESH | E10: BC | F10: 2004-07-12 | G10: 2014-06-16 | H10: G | J10: GBC | K10: G | L10: 5 | M10: 10 | N10: 6 | O10: 6 | P10: 6 | Q10: 9 | R10: 160 | S10: 42 | T10: 7 | V10: C2 | W10: A1 | X10: C1 | Y10: C1 | Z10: C1 | AA10: A2
A11: 8 | B11: 3215 | C11: ANUSHA P | D11: BUGGARAMULU | E11: BC | F11: 2004-12-06 | G11: 2014-06-16 | H11: G | J11: GBC | K11: G | L11: 6 | M11: 6 | N11: 8 | O11: 6 | P11: 7 | Q11: 8 | R11: 201 | S11: 41 | T11: 6.833333333 | V11: C1 | W11: C1 | X11: B1 | Y11: C1 | Z11: B2 | AA11: B1
A12: 9 | B12: 3210 | C12: ANUSHA R | D12: BUCHAIAH | E12: BC | F12: 2002-04-11 | G12: 2014-06-16 | H12: G | J12: GBC | K12: G | L12: 6 | M12: 5 | N12: 9 | O12: 5 | P12: 6 | Q12: 9 | R12: 211 | S12: 40 | T12: 6.666666667 | V12: C1 | W12: C2 | X12: A2 | Y12: C2 | Z12: C1 | AA12: A2
A13: 10 | B13: 3249 | C13: DHANUSHA P | D13: LAXMAIAH | E13: BC | F13: 2003-04-18 | G13: 2014-06-18 | H13: G | J13: GBC | K13: G | L13: 5 | M13: 7 | N13: 7 | O13: 8 | P13: 5 | Q13: 6 | R13: 179 | S13: 38 | T13: 6.333333333 | V13: C2 | W13: B2 | X13: B2 | Y13: B1 | Z13: C2 | AA13: C1
A14: 11 | B14: 3521 | C14: KOMALA M | D14: SRISHAILAM | E14: BC | F14: 2004-06-26 | G14: 2016-06-15 | H14: G | J14: GBC | K14: G | L14: 9 | M14: 9 | N14: 10 | O14: 6 | P14: 8 | Q14: 8 | R14: 161 | S14: 50 | T14: 8.333333333 | V14: A2 | W14: A2 | X14: A1 | Y14: C1 | Z14: B1 | AA14: B1
A15: 12 | B15: 3349 | C15: MANASA M | D15: SATHAIAH | E15: BC | F15: 2004-12-27 | G15: 2015-06-17 | H15: G | J15: GBC | K15: G | L15: 9 | M15: 9 | N15: 6 | O15: 8 | P15: 10 | Q15: 7 | R15: 192 | S15: 49 | T15: 8.166666667 | V15: A2 | W15: A2 | X15: C1 | Y15: B1 | Z15: A1 | AA15: B2
A16: 13 | B16: 3478 | C16: MANISHA P | D16: SATYANARAYANA | E16: BC | F16: 2003-01-06 | G16: 2016-06-13 | H16: G | J16: GBC | K16: G | L16: 5 | M16: 7 | N16: 5 | O16: 8 | P16: 8 | Q16: 9 | R16: 166 | S16: 42 | T16: 7 | V16: C2 | W16: B2 | X16: C2 | Y16: B1 | Z16: B1 | AA16: A2
A17: 14 | B17: 3212 | C17: MANUSHA CH | D17: JANGAIAH | E17: BC | F17: 2003-04-09 | G17: 2014-06-16 | H17: G | J17: GBC | K17: G | L17: 5 | M17: 8 | N17: 8 | O17: 10 | P17: 8 | Q17: 7 | R17: 210 | S17: 46 | T17: 7.666666667 | V17: C2 | W17: B1 | X17: B1 | Y17: A1 | Z17: B1 | AA17: B2
A18: 15 | B18: 3293 | C18: NAVANEETHA M | D18: KRISHNA | E18: BC | F18: 2003-06-18 | G18: 2014-06-23 | H18: G | J18: GBC | K18: G | L18: 7 | M18: 9 | N18: 7 | O18: 7 | P18: 6 | Q18: 10 | R18: 192 | S18: 46 | T18: 7.666666667 | V18: B2 | W18: A2 | X18: B2 | Y18: B2 | Z18: C1 | AA18: A1
A19: 16 | B19: 3248 | C19: POOJA M | D19: ANJAIAH | E19: BC | F19: 2003-08-17 | G19: 2014-06-18 | H19: G | J19: GBC | K19: G | L19: 7 | M19: 8 | N19: 8 | O19: 10 | P19: 9 | Q19: 8 | R19: 213 | S19: 50 | T19: 8.333333333 | V19: B2 | W19: B1 | X19: B1 | Y19: A1 | Z19: A2 | AA19: B1
A20: 17 | B20: 3292 | C20: POOJA R | D20: BEERAPPA | E20: BC | F20: 2003-06-27 | G20: 2014-06-21 | H20: G | J20: GBC | K20: G | L20: 6 | M20: 6 | N20: 5 | O20: 9 | P20: 5 | Q20: 8 | R20: 209 | S20: 39 | T20: 6.5 | V20: C1 | W20: C1 | X20: C2 | Y20: A2 | Z20: C2 | AA20: B1
A21: 18 | B21: 3321 | C21: SADASSUM MD | D21: SALAM | E21: BC | F21: 2004-02-06 | G21: 2014-07-03 | H21: G | I21: Y | J21: GBC | K21: GY | L21: 7 | M21: 8 | N21: 9 | O21: 9 | P21: 10 | Q21: 8 | R21: 168 | S21: 51 | T21: 8.5 | V21: B2 | W21: B1 | X21: A2 | Y21: A2 | Z21: A1 | AA21: B1
A22: 19 | B22: 3409 | C22: SANA BEGUM MD | D22: JAHANGEER | E22: BC | F22: 2003-11-04 | G22: 2015-06-22 | H22: G | I22: Y | J22: GBC | K22: GY | L22: 7 | M22: 6 | N22: 10 | O22: 8 | P22: 10 | Q22: 10 | R22: 174 | S22: 51 | T22: 8.5 | V22: B2 | W22: C1 | X22: A1 | Y22: B1 | Z22: A1 | AA22: A1
A23: 20 | B23: 3184 | C23: SANDHYA K | D23: SRISAILAM | E23: BC | F23: 2004-04-07 | G23: 2014-06-18 | H23: G | J23: GBC | K23: G | L23: 6 | M23: 6 | N23: 6 | O23: 7 | P23: 10 | Q23: 5 | R23: 181 | S23: 40 | T23: 6.666666667 | V23: C1 | W23: C1 | X23: C1 | Y23: B2 | Z23: A1 | AA23: C2
A24: 21 | B24: 3599 | C24: SHIREESHA B | D24: RAJESHWAR | E24: BC | F24: 2003-10-17 | G24: 2016-06-25 | H24: G | J24: GBC | K24: G | L24: 10 | M24: 8 | N24: 10 | O24: 5 | P24: 8 | Q24: 6 | R24: 188 | S24: 47 | T24: 7.833333333 | V24: A1 | W24: B1 | X24: A1 | Y24: C2 | Z24: B1 | AA24: C1
A25: 22 | B25: 3268 | C25: SHIREESHA N | D25: VENKATESH | E25: BC | F25: 2002-08-01 | G25: 2014-06-19 | H25: G | J25: GBC | K25: G | L25: 10 | M25: 10 | N25: 9 | O25: 5 | P25: 7 | Q25: 10 | R25: 162 | S25: 51 | T25: 8.5 | V25: A1 | W25: A1 | X25: A2 | Y25: C2 | Z25: B2 | AA25: A1
A26: 23 | B26: 3279 | C26: SHIVANI D | D26: DASHARATHA | E26: BC | F26: 2002-08-17 | G26: 2014-06-20 | H26: G | J26: GBC | K26: G | L26: 5 | M26: 7 | N26: 9 | O26: 9 | P26: 6 | Q26: 9 | R26: 193 | S26: 45 | T26: 7.5 | V26: C2 | W26: B2 | X26: A2 | Y26: A2 | Z26: C1 | AA26: A2
A27: 24 | B27: 3620 | C27: SHIVANI M | D27: BASHAIAH | E27: BC | F27: 2004-03-23 | G27: 2016-07-15 | H27: G | J27: GBC | K27: G | L27: 6 | M27: 7 | N27: 6 | O27: 7 | P27: 10 | Q27: 6 | R27: 178 | S27: 42 | T27: 7 | V27: C1 | W27: B2 | X27: C1 | Y27: B2 | Z27: A1 | AA27: C1
A28: 25 | B28: 3255 | C28: SHIVANI P | D28: SATYAM | E28: BC | F28: 2004-03-18 | G28: 2014-06-18 | H28: G | J28: GBC | K28: G | L28: 5 | M28: 7 | N28: 6 | O28: 7 | P28: 7 | Q28: 9 | R28: 179 | S28: 41 | T28: 6.833333333 | V28: C2 | W28: B2 | X28: C1 | Y28: B2 | Z28: B2 | AA28: A2
A29: 26 | B29: 3523 | C29: SINDHU V | D29: ILAIAH | E29: BC | F29: 2004-05-02 | G29: 2016-06-15 | H29: G | J29: GBC | K29: G | L29: 5 | M29: 5 | N29: 10 | O29: 5 | P29: 9 | Q29: 5 | R29: 185 | S29: 39 | T29: 6.5 | V29: C2 | W29: C2 | X29: A1 | Y29: C2 | Z29: A2 | AA29: C2
A30: 27 | B30: 3217 | C30: SNEHA CH | D30: KRISHNA | E30: BC | F30: 2004-05-19 | G30: 2014-06-16 | H30: G | J30: GBC | K30: G | L30: 7 | M30: 7 | N30: 9 | O30: 5 | P30: 9 | Q30: 6 | R30: 179 | S30: 43 | T30: 7.166666667 | V30: B2 | W30: B2 | X30: A2 | Y30: C2 | Z30: A2 | AA30: C1
A31: 28 | B31: 3522 | C31: SRAVANI M | D31: ILAIAH | E31: BC | F31: 2004-07-14 | G31: 2016-06-15 | H31: G | J31: GBC | K31: G | L31: 8 | M31: 10 | N31: 6 | O31: 8 | P31: 10 | Q31: 8 | R31: 154 | S31: 50 | T31: 8.333333333 | V31: B1 | W31: A1 | X31: C1 | Y31: B1 | Z31: A1 | AA31: B1
A32: 29 | B32: 3218 | C32: SRILATHA CH | D32: RAMULU | E32: BC | F32: 2004-01-19 | G32: 2014-06-16 | H32: G | J32: GBC | K32: G | L32: 8 | M32: 6 | N32: 6 | O32: 9 | P32: 9 | Q32: 10 | R32: 157 | S32: 48 | T32: 8 | V32: B1 | W32: C1 | X32: C1 | Y32: A2 | Z32: A2 | AA32: A1
A33: 30 | B33: 3543 | C33: SRILATHA I | D33: ANJANEYULU | E33: BC | F33: 2003-01-28 | G33: 2016-06-17 | H33: G | J33: GBC | K33: G | L33: 7 | M33: 9 | N33: 9 | O33: 10 | P33: 7 | Q33: 5 | R33: 169 | S33: 47 | T33: 7.833333333 | V33: B2 | W33: A2 | X33: A2 | Y33: A1 | Z33: B2 | AA33: C2
A34: 31 | B34: 3316 | C34: SRILATHA S | D34: MANIKYAM | E34: SC | F34: 2002-07-03 | G34: 2014-07-02 | H34: G | J34: GSC | K34: G | L34: 8 | M34: 5 | N34: 6 | O34: 10 | P34: 8 | Q34: 5 | R34: 168 | S34: 42 | T34: 7 | V34: B1 | W34: C2 | X34: C1 | Y34: A1 | Z34: B1 | AA34: C2
A35: 32 | B35: 3211 | C35: SWAPNA A | D35: NARSIMHA | E35: BC | F35: 2004-04-08 | G35: 2014-06-16 | H35: G | J35: GBC | K35: G | L35: 7 | M35: 7 | N35: 9 | O35: 7 | P35: 7 | Q35: 5 | R35: 206 | S35: 42 | T35: 7 | V35: B2 | W35: B2 | X35: A2 | Y35: B2 | Z35: B2 | AA35: C2
A36: 33 | B36: 3737 | C36: USHASHRI K | D36: SHALVACHARY | E36: BC | F36: 2002-12-20 | G36: 2017-06-28 | H36: G | J36: GBC | K36: G | L36: 9 | M36: 6 | N36: 6 | O36: 9 | P36: 5 | Q36: 8 | R36: 191 | S36: 43 | T36: 7.166666667 | V36: A2 | W36: C1 | X36: C1 | Y36: A2 | Z36: C2 | AA36: B1
A37: 34 | B37: 3419 | C37: YASMEEN MD | D37: FAKIR | E37: BC | F37: 2003-10-05 | G37: 2015-06-25 | H37: G | I37: Y | J37: GBC | K37: GY | L37: 6 | M37: 8 | N37: 5 | O37: 6 | P37: 9 | Q37: 8 | R37: 201 | S37: 42 | T37: 7 | V37: C1 | W37: B1 | X37: C2 | Y37: C1 | Z37: A2 | AA37: B1
A38: 35 | B38: 3616 | C38: AKBAR MD | D38: ISMAIL | E38: BC | F38: 2002-08-18 | G38: 2016-07-11 | H38: B | I38: Y | J38: BBC | K38: BY | L38: 5 | M38: 6 | N38: 9 | O38: 8 | P38: 5 | Q38: 5 | R38: 159 | S38: 38 | T38: 6.333333333 | V38: C2 | W38: C1 | X38: A2 | Y38: B1 | Z38: C2 | AA38: C2
A39: 36 | B39: 3479 | C39: AKSHAY KUMAR R | D39: BASHAIAH | E39: BC | F39: 2003-05-08 | G39: 2016-06-13 | H39: B | J39: BBC | K39: B | L39: 6 | M39: 7 | N39: 5 | O39: 9 | P39: 5 | Q39: 8 | R39: 213 | S39: 40 | T39: 6.666666667 | V39: C1 | W39: B2 | X39: C2 | Y39: A2 | Z39: C2 | AA39: B1
A40: 37 | B40: 3480 | C40: ANAND KUMAR R | D40: BASHAIAH | E40: BC | F40: 2003-05-08 | G40: 2016-06-13 | H40: B | J40: BBC | K40: B | L40: 5 | M40: 8 | N40: 9 | O40: 7 | P40: 5 | Q40: 9 | R40: 201 | S40: 43 | T40: 7.166666667 | V40: C2 | W40: B1 | X40: A2 | Y40: B2 | Z40: C2 | AA40: A2
A41: 38 | B41: 3615 | C41: ARBAS MD | D41: ISMAIL | E41: BC | F41: 2004-05-24 | G41: 2016-07-11 | H41: B | I41: Y | J41: BBC | K41: BY | L41: 10 | M41: 10 | N41: 5 | O41: 7 | P41: 9 | Q41: 6 | R41: 161 | S41: 47 | T41: 7.833333333 | V41: A1 | W41: A1 | X41: C2 | Y41: B2 | Z41: A2 | AA41: C1
A42: 39 | B42: 3315 | C42: ARUNTEJA D | D42: VENKATESH | E42: BC | F42: 2002-07-16 | G42: 2014-07-01 | H42: B | J42: BBC | K42: B | L42: 7 | M42: 9 | N42: 5 | O42: 8 | P42: 9 | Q42: 8 | R42: 162 | S42: 46 | T42: 7.666666667 | V42: B2 | W42: A2 | X42: C2 | Y42: B1 | Z42: A2 | AA42: B1
A43: 40 | B43: 3207 | C43: BHARATH J | D43: CHANDRAIAH | E43: BC | F43: 2004-06-22 | G43: 2014-06-16 | H43: B | J43: BBC | K43: B | L43: 10 | M43: 5 | N43: 8 | O43: 6 | P43: 8 | Q43: 5 | R43: 169 | S43: 42 | T43: 7 | V43: A1 | W43: C2 | X43: B1 | Y43: C1 | Z43: B1 | AA43: C2
A44: 41 | B44: 3291 | C44: BHASKER J | D44: SRINIVAS | E44: BC | F44: 2003-12-16 | G44: 2014-06-21 | H44: B | J44: BBC | K44: B | L44: 9 | M44: 7 | N44: 7 | O44: 7 | P44: 5 | Q44: 6 | R44: 201 | S44: 41 | T44: 6.833333333 | V44: A2 | W44: B2 | X44: B2 | Y44: B2 | Z44: C2 | AA44: C1
A45: 42 | B45: 3425 | C45: GANESH B | D45: JANGAIAH | E45: SC | F45: 2001-08-10 | G45: 2015-06-25 | H45: B | J45: BSC | K45: B | L45: 7 | M45: 5 | N45: 6 | O45: 7 | P45: 9 | Q45: 7 | R45: 174 | S45: 41 | T45: 6.833333333 | V45: B2 | W45: C2 | X45: C1 | Y45: B2 | Z45: A2 | AA45: B2
A46: 43 | B46: 3552 | C46: GANESH P | D46: NANU | E46: ST | F46: 2003-04-28 | G46: 2016-06-18 | H46: B | J46: BST | K46: B | L46: 10 | M46: 7 | N46: 5 | O46: 6 | P46: 9 | Q46: 6 | R46: 152 | S46: 43 | T46: 7.166666667 | V46: A1 | W46: B2 | X46: C2 | Y46: C1 | Z46: A2 | AA46: C1
A47: 44 | B47: 3457 | C47: GANESH S | D47: SRINU | E47: ST | F47: 2004-06-21 | G47: 2015-07-09 | H47: B | J47: BST | K47: B | L47: 5 | M47: 5 | N47: 8 | O47: 8 | P47: 10 | Q47: 5 | R47: 172 | S47: 41 | T47: 6.833333333 | V47: C2 | W47: C2 | X47: B1 | Y47: B1 | Z47: A1 | AA47: C2
A48: 45 | B48: 3257 | C48: HARIKRISHNA M | D48: SHANKAR | E48: ST | F48: 2003-07-16 | G48: 2014-06-18 | H48: B | J48: BST | K48: B | L48: 10 | M48: 8 | N48: 5 | O48: 7 | P48: 6 | Q48: 9 | R48: 169 | S48: 45 | T48: 7.5 | V48: A1 | W48: B1 | X48: C2 | Y48: B2 | Z48: C1 | AA48: A2
A49: 46 | B49: 3240 | C49: HARIKUMAR M | D49: SWAMI | E49: ST | F49: 2001-12-01 | G49: 2014-06-17 | H49: B | J49: BST | K49: B | L49: 8 | M49: 7 | N49: 10 | O49: 9 | P49: 5 | Q49: 5 | R49: 213 | S49: 44 | T49: 7.333333333 | V49: B1 | W49: B2 | X49: A1 | Y49: A2 | Z49: C2 | AA49: C2
A50: 47 | B50: 3302 | C50: JAGADHESWAR CHARY I | D50: JANGA CHARY | E50: BC | F50: 2003-02-11 | G50: 2014-06-24 | H50: B | J50: BBC | K50: B | L50: 8 | M50: 6 | N50: 5 | O50: 9 | P50: 7 | Q50: 7 | R50: 158 | S50: 42 | T50: 7 | V50: B1 | W50: C1 | X50: C2 | Y50: A2 | Z50: B2 | AA50: B2
A51: 48 | B51: 3327 | C51: JAGAN GOUD S | D51: YADAGIRI | E51: BC | F51: 2002-11-01 | G51: 2014-07-10 | H51: B | J51: BBC | K51: B | L51: 6 | M51: 8 | N51: 10 | O51: 5 | P51: 6 | Q51: 10 | R51: 210 | S51: 45 | T51: 7.5 | V51: C1 | W51: B1 | X51: A1 | Y51: C2 | Z51: C1 | AA51: A1
A52: 49 | B52: 3224 | C52: KARTHIK T | D52: KRISHNA | E52: BC | F52: 2004-07-15 | G52: 2014-06-16 | H52: B | J52: BBC | K52: B | L52: 5 | M52: 7 | N52: 10 | O52: 6 | P52: 10 | Q52: 10 | R52: 182 | S52: 48 | T52: 8 | V52: C2 | W52: B2 | X52: A1 | Y52: C1 | Z52: A1 | AA52: A1
A53: 50 | B53: 3228 | C53: KIRAN N | D53: YADHAIAH | E53: BC | F53: 2004-01-26 | G53: 2014-06-22 | H53: B | J53: BBC | K53: B | L53: 5 | M53: 6 | N53: 9 | O53: 8 | P53: 7 | Q53: 9 | R53: 213 | S53: 44 | T53: 7.333333333 | V53: C2 | W53: C1 | X53: A2 | Y53: B1 | Z53: B2 | AA53: A2
A54: 51 | B54: 3222 | C54: KRISHNA G | D54: JANGAIAH | E54: BC | F54: 2002-08-30 | G54: 2014-06-16 | H54: B | J54: BBC | K54: B | L54: 10 | M54: 5 | N54: 6 | O54: 6 | P54: 5 | Q54: 8 | R54: 187 | S54: 40 | T54: 6.666666667 | V54: A1 | W54: C2 | X54: C1 | Y54: C1 | Z54: C2 | AA54: B1
A55: 52 | B55: 3453 | C55: LAXMAN K | D55: BASKER | E55: ST | F55: 2002-11-15 | G55: 2015-06-30 | H55: B | J55: BST | K55: B | L55: 5 | M55: 10 | N55: 7 | O55: 9 | P55: 10 | Q55: 9 | R55: 205 | S55: 50 | T55: 8.333333333 | V55: C2 | W55: A1 | X55: B2 | Y55: A2 | Z55: A1 | AA55: A2
A56: 53 | B56: 3266 | C56: MADHU B | D56: ILAIAH | E56: BC | F56: 2002-05-18 | G56: 2014-06-19 | H56: B | J56: BBC | K56: B | L56: 8 | M56: 8 | N56: 9 | O56: 8 | P56: 8 | Q56: 9 | R56: 166 | S56: 50 | T56: 8.333333333 | V56: B1 | W56: B1 | X56: A2 | Y56: B1 | Z56: B1 | AA56: A2
A57: 54 | B57: 3608 | C57: MAHESH K | D57: SRISAILAM | E57: BC | F57: 2003-04-15 | G57: 2016-06-30 | H57: B | J57: BBC | K57: B | L57: 8 | M57: 6 | N57: 10 | O57: 10 | P57: 8 | Q57: 5 | R57: 186 | S57: 47 | T57: 7.833333333 | V57: B1 | W57: C1 | X57: A1 | Y57: A1 | Z57: B1 | AA57: C2
A58: 55 | B58: 3227 | C58: NAVEEN KUMAR M | D58: JANGAIAH | E58: BC | F58: 2009-08-19 | G58: 2014-06-16 | H58: B | J58: BBC | K58: B | L58: 6 | M58: 6 | N58: 9 | O58: 8 | P58: 6 | Q58: 6 | R58: 180 | S58: 41 | T58: 6.833333333 | V58: C1 | W58: C1 | X58: A2 | Y58: B1 | Z58: C1 | AA58: C1
A59: 56 | B59: 3590 | C59: NAVEEN U | D59: DEVILAL | E59: ST | F59: 2004-07-15 | G59: 2016-06-23 | H59: B | J59: BST | K59: B | L59: 10 | M59: 6 | N59: 5 | O59: 6 | P59: 7 | Q59: 8 | R59: 156 | S59: 42 | T59: 7 | V59: A1 | W59: C1 | X59: C2 | Y59: C1 | Z59: B2 | AA59: B1
A60: 57 | B60: 3586 | C60: PAVAN B | D60: CHANDRAIAH | E60: BC | F60: 2003-08-14 | G60: 2016-06-22 | H60: B | J60: BBC | K60: B | L60: 8 | M60: 6 | N60: 5 | O60: 9 | P60: 6 | Q60: 7 | R60: 203 | S60: 41 | T60: 6.833333333 | V60: B1 | W60: C1 | X60: C2 | Y60: A2 | Z60: C1 | AA60: B2
A61: 58 | B61: 3252 | C61: PRAVEEN A | D61: SAILU | E61: SC | F61: 2002-07-17 | G61: 2014-06-18 | H61: B | J61: BSC | K61: B | L61: 6 | M61: 8 | N61: 8 | O61: 7 | P61: 8 | Q61: 7 | R61: 152 | S61: 44 | T61: 7.333333333 | V61: C1 | W61: B1 | X61: B1 | Y61: B2 | Z61: B1 | AA61: B2
A62: 59 | B62: 3272 | C62: PRAVEEN M | D62: BHASKER | E62: SC | F62: 2003-01-06 | G62: 2014-06-19 | H62: B | J62: BSC | K62: B | L62: 9 | M62: 5 | N62: 8 | O62: 5 | P62: 10 | Q62: 7 | R62: 193 | S62: 44 | T62: 7.333333333 | V62: A2 | W62: C2 | X62: B1 | Y62: C2 | Z62: A1 | AA62: B2
A63: 60 | B63: 3738 | C63: RAJESH BODDU | D63: VENKATESH | E63: BC | F63: 2002-04-04 | G63: 2017-06-28 | H63: B | J63: BBC | K63: B | L63: 10 | M63: 9 | N63: 8 | O63: 7 | P63: 5 | Q63: 7 | R63: 199 | S63: 46 | T63: 7.666666667 | V63: A1 | W63: A2 | X63: B1 | Y63: B2 | Z63: C2 | AA63: B2
A64: 61 | B64: 3261 | C64: RAVITEJA L | D64: DASU | E64: BC | F64: 2004-02-11 | G64: 2014-06-19 | H64: B | J64: BBC | K64: B | L64: 7 | M64: 8 | N64: 7 | O64: 6 | P64: 9 | Q64: 6 | R64: 182 | S64: 43 | T64: 7.166666667 | V64: B2 | W64: B1 | X64: B2 | Y64: C1 | Z64: A2 | AA64: C1
A65: 62 | B65: 3243 | C65: SANJAY J | D65: JANGAIAH | E65: BC | F65: 2002-11-28 | G65: 2014-06-17 | H65: B | J65: BBC | K65: B | L65: 5 | M65: 9 | N65: 10 | O65: 9 | P65: 9 | Q65: 10 | R65: 209 | S65: 52 | T65: 8.666666667 | V65: C2 | W65: A2 | X65: A1 | Y65: A2 | Z65: A2 | AA65: A1
A66: 63 | B66: 3509 | C66: SHANKAR K | D66: SRINU | E66: BC | F66: 2003-05-24 | G66: 2016-06-15 | H66: B | J66: BBC | K66: B | L66: 7 | M66: 6 | N66: 9 | O66: 6 | P66: 5 | Q66: 6 | R66: 176 | S66: 39 | T66: 6.5 | V66: B2 | W66: C1 | X66: A2 | Y66: C1 | Z66: C2 | AA66: C1
A67: 64 | B67: 3458 | C67: SHANKAR V | D67: LAKKA | E67: ST | F67: 2003-08-10 | G67: 2015-07-09 | H67: B | J67: BST | K67: B | L67: 10 | M67: 9 | N67: 8 | O67: 6 | P67: 8 | Q67: 8 | R67: 199 | S67: 49 | T67: 8.166666667 | V67: A1 | W67: A2 | X67: B1 | Y67: C1 | Z67: B1 | AA67: B1
A68: 65 | B68: 3537 | C68: SHIVA KUMAR A | D68: RAMESH | E68: BC | F68: 2004-07-28 | G68: 2016-06-16 | H68: B | J68: =H68&E68 -> BBC | K68: B | L68: 9 | M68: 6 | N68: 7 | O68: 10 | P68: 7 | Q68: 6 | R68: 171 | S68: 45 | T68: 7.5 | V68: A2 | W68: C1 | X68: B2 | Y68: A1 | Z68: B2 | AA68: C1
A69: 66 | B69: 3226 | C69: SHIVA KUMAR T | D69: MALLESH | E69: BC | F69: 2002-02-10 | G69: 2014-06-16 | H69: B | J69: BBC | K69: B | L69: 10 | M69: 7 | N69: 10 | O69: 7 | P69: 7 | Q69: 7 | R69: 184 | S69: =SUM(L69:Q69) -> 48 | T69: =S69/600% -> 8 | V69: =sscFGrade(L69) -> A1 | W69: =sscFGrade(M69) -> B2 | X69: =sscFGrade(N69) -> A1 | Y69: =sscFGrade(O69) -> B2 | Z69: =sscFGrade(P69) -> B2 | AA69: =sscFGrade(Q69) -> B2
A70: 67 | B70: 3223 | C70: SHIVA M | D70: LAXMAIAH | E70: SC | F70: 2002-10-05 | G70: 2014-06-16 | H70: B | J70: BSC | K70: B | L70: 8 | M70: 10 | N70: 6 | O70: 6 | P70: 9 | Q70: 10 | R70: 196 | S70: 49 | T70: 8.166666667 | V70: B1 | W70: A1 | X70: C1 | Y70: C1 | Z70: A2 | AA70: A1
A71: 68 | B71: 3262 | C71: SHIVA M | D71: RAMESH | E71: SC | F71: 2003-12-19 | G71: 2014-06-19 | H71: B | J71: BSC | K71: B | L71: 5 | M71: 10 | N71: 9 | O71: 9 | P71: 10 | Q71: 5 | R71: 212 | S71: 48 | T71: 8 | V71: C2 | W71: A1 | X71: A2 | Y71: A2 | Z71: A1 | AA71: C2
A72: 69 | B72: 3185 | C72: SHIVA R | D72: RAMULU | E72: BC | F72: 2002-02-27 | G72: 2014-06-13 | H72: B | J72: BBC | K72: B | L72: 7 | M72: 5 | N72: 6 | O72: 9 | P72: 7 | Q72: 5 | R72: 207 | S72: 39 | T72: 6.5 | V72: B2 | W72: C2 | X72: C1 | Y72: A2 | Z72: B2 | AA72: C2
A73: 70 | B73: 3326 | C73: SHIVA Y | D73: SATYANARAYANA | E73: BC | F73: 2002-07-06 | G73: 2014-07-10 | H73: B | J73: BBC | K73: B | L73: 10 | M73: 7 | N73: 5 | O73: 9 | P73: 10 | Q73: 10 | R73: 202 | S73: 51 | T73: 8.5 | V73: A1 | W73: B2 | X73: C2 | Y73: A2 | Z73: A1 | AA73: A1
A74: 71 | B74: 3221 | C74: SRIKANTH CH | D74: ILAIAH | E74: BC | F74: 2001-06-14 | G74: 2014-06-16 | H74: B | J74: BBC | K74: B | L74: 5 | M74: 8 | N74: 9 | O74: 9 | P74: 8 | Q74: 6 | R74: 162 | S74: 45 | T74: 7.5 | V74: C2 | W74: B1 | X74: A2 | Y74: A2 | Z74: B1 | AA74: C1
A75: 72 | B75: 3308 | C75: SRIKANTH CH | D75: SATHAIAH | E75: BC | F75: 2003-03-03 | G75: 2014-06-25 | H75: B | J75: BBC | K75: B | L75: 6 | M75: 6 | N75: 9 | O75: 7 | P75: 5 | Q75: 10 | R75: 211 | S75: 43 | T75: 7.166666667 | V75: C1 | W75: C1 | X75: A2 | Y75: B2 | Z75: C2 | AA75: A1
A76: 73 | B76: 3736 | C76: VAMSHI A | D76: YADAIAH | E76: BC | F76: 2003-03-02 | G76: 2017-06-28 | H76: B | J76: BBC | K76: B | L76: 8 | M76: 7 | N76: 6 | O76: 9 | P76: 9 | Q76: 7 | R76: 150 | S76: 46 | T76: 7.666666667 | V76: B1 | W76: B2 | X76: C1 | Y76: A2 | Z76: A2 | AA76: B2
A77: 74 | B77: 3572 | C77: VAMSHI B | D77: KRISTAIAH | E77: BC | F77: 2000-02-22 | G77: 2016-06-21 | H77: B | J77: BBC | K77: B | L77: 7 | M77: 5 | N77: 8 | O77: 6 | P77: 10 | Q77: 6 | R77: 161 | S77: 42 | T77: 7 | V77: B2 | W77: C2 | X77: B1 | Y77: C1 | Z77: A1 | AA77: C1
A78: 75 | B78: 3281 | C78: VAMSHI CH | D78: VENKATESH | E78: BC | F78: 2001-11-04 | G78: 2014-06-20 | H78: B | J78: BBC | K78: B | L78: 10 | M78: 7 | N78: 10 | O78: 5 | P78: 5 | Q78: 6 | R78: 180 | S78: 43 | T78: 7.166666667 | V78: A1 | W78: B2 | X78: A1 | Y78: C2 | Z78: C2 | AA78: C1
A79: 76 | B79: 3219 | C79: VAMSHI P | D79: JANGAIAH | E79: SC | F79: 2001-07-24 | G79: 2014-06-16 | H79: B | J79: BSC | K79: B | L79: 5 | M79: 9 | N79: 6 | O79: 9 | P79: 10 | Q79: 6 | R79: 172 | S79: 45 | T79: 7.5 | V79: C2 | W79: A2 | X79: C1 | Y79: A2 | Z79: A1 | AA79: C1
A80: 77 | B80: 3241 | C80: VENU MADHA VM | D80: DHASHARATHA | E80: ST | F80: 2002-10-19 | G80: 2014-06-17 | H80: B | J80: BST | K80: B | L80: 10 | M80: 10 | N80: 7 | O80: 8 | P80: 10 | Q80: 8 | R80: 187 | S80: 53 | T80: 8.833333333 | V80: A1 | W80: A1 | X80: B2 | Y80: B1 | Z80: A1 | AA80: B1
S81: 0 | T81: 0 | V81: =fgrade(L81) ->  | W81: =fgrade(M81) ->  | X81: =fgrade(N81) ->  | Y81: =fgrade(O81) ->  | Z81: =fgrade(P81) ->  | AA81: =fgrade(Q81) -> 
S82: 0 | T82: 0
S83: 0 | T83: 0
S84: 0 | T84: 0
S85: 0 | T85: 0
S86: 0 | T86: 0
S87: 0 | T87: 0
S88: 0 | T88: 0
S89: 0 | T89: 0
S90: 0 | T90: 0
S91: 0 | T91: 0
S92: 0 | T92: 0
S93: 0 | T93: 0
S94: 0 | T94: 0
S95: 0 | T95: 0
S96: 0 | T96: 0
S97: 0 | T97: 0
S98: 0 | T98: 0
S99: 0 | T99: 0
S100: 0 | T100: 0
S101: 0 | T101: 0
S102: 0 | T102: 0
S103: 0 | T103: 0
S104: 0 | T104: 0
S105: 0 | T105: 0
S106: 0 | T106: 0
S107: 0 | T107: 0
S108: 0 | T108: 0
S109: 0 | T109: 0
S110: 0 | T110: 0
S111: 0 | T111: 0
S112: 0 | T112: 0
S113: 0 | T113: 0
S114: 0 | T114: 0
S115: 0 | T115: 0
S116: 0 | T116: 0
S117: 0 | T117: 0
S118: 0 | T118: 0
K119: =H119&I119 ->  | S119: 0 | T119: 0
S120: 0 | T120: 0
S121: 0 | T121: 0
S122: 0 | T122: 0
S123: 0 | T123: 0
S124: 0 | T124: 0
S125: 0 | T125: 0
S126: 0 | T126: 0
S127: 0 | T127: 0
S128: 0 | T128: 0
S129: 0 | T129: 0
S130: 0 | T130: 0
S131: 0 | T131: 0
J132: =H132&E132 ->  | S132: 0 | T132: 0
S133: =SUM(L133:Q133) -> 0 | T133: =S133/600% -> 0 | V133: =fgrade(L133) ->  | W133: =fgrade(M133) ->  | X133: =fgrade(N133) ->  | Y133: =fgrade(O133) ->  | Z133: =fgrade(P133) ->  | AA133: =fgrade(Q133) -> 
S134: 0 | T134: 0
S135: 0 | T135: 0
S136: 0 | T136: 0
S137: 0 | T137: 0
S138: 0 | T138: 0
S139: 0 | T139: 0
S140: 0 | T140: 0
S141: 0 | T141: 0
S142: 0 | T142: 0
S143: 0 | T143: 0
S144: 0 | T144: 0
S145: 0 | T145: 0
S146: 0 | T146: 0
S147: 0 | T147: 0
S148: 0 | T148: 0
S149: 0 | T149: 0
S150: 0 | T150: 0
S151: 0 | T151: 0
S152: 0 | T152: 0
S153: 0 | T153: 0
A154: 0 | Q154: ATB | R154: ATB
A155: 0 | B155: BOYS | C155: GIRLS | D155: TOTAL | Q155: =SUMIF(H4:H153,"B",R4:R153) -> 7897 | R155: =SUMIF(H4:H153,"G",R4:R153) -> 6178 | S155: =SUM(Q155:R155) -> 14075
A156: SC | B156: =COUNTIF($J$4:$J$153,"BSC") -> 6 | C156: =COUNTIF($J$4:$J$153,"GSC") -> 1 | D156: =SUM(B156:C156) -> 7
A157: ST | B157: =COUNTIF($J$4:$J$153,"BST") -> 8 | C157: =COUNTIF($J$4:$J$153,"GST") -> 0 | D157: =SUM(B157:C157) -> 8 | F157: MINORITY
A158: BC | B158: =COUNTIF($J$4:$J$153,"BBC") -> 29 | C158: =COUNTIF($J$4:$J$153,"GBC") -> 33 | D158: =SUM(B158:C158) -> 62 | F158: BOYS | G158: GIRLS
A159: OC | B159: =COUNTIF($J$4:$J$153,"BOC") -> 0 | C159: =COUNTIF($J$4:$J$153,"GOC") -> 0 | D159: =SUM(B159:C159) -> 0 | F159: =COUNTIF(K4:K47,"BY") -> 2 | G159: =COUNTIF(K4:K47,"GY") -> 3
A160: TOTAL | B160: =SUM(B156:B159) -> 43 | C160: =SUM(C156:C159) -> 34 | D160: =SUM(B160:C160) -> 77

Sheet ABSTRACT
A1: STUDENTS ABSTRACT 2019-20
A2: MANDAL: MANCHAL , RANGA REDDY DIST.
A3: Name of the School: | F3: ZPHS ARUTLA | L3: Pin Code No: | P3: 501508 | R3: DISE CODE: | V3: 36231002111
A4: Sl.No | B4: CLASS | C4: Medium | D4: First date on roll in a month | G4: Enrolled in the Month | J4: Struck off(Removed) in the Month | M4: last date on roll in a Month | P4: Total Working Days | Q4: Average Attendance | R4: SC | U4: ST | X4: BC | AA4: OC | AD4: Muslims | AG4: PHC/ CWSN | AJ4: Christian | AM4: Adopted Teacher name | AN4: Class Grade
D5: B | E5: G | F5: =SUM(D5:E5) -> 0 | G5: B | H5: G | I5: T | J5: B | K5: G | L5: T | M5: B | N5: G | O5: T | R5: B | S5: G | T5: T | U5: B | V5: G | W5: T | X5: B | Y5: G | Z5: T | AA5: B | AB5: G | AC5: T | AD5: B | AE5: G | AF5: T | AG5: B | AH5: G | AI5: T | AJ5: B | AK5: G | AL5: T
A6: 1 | B6: VI | C6: TM | R6: =INDIRECT($B6&$C6&"!B$156") -> 5 | S6: =INDIRECT($B6&$C6&"!C$156") -> 0 | T6: =SUM(R6:S6) -> 5 | U6: =INDIRECT($B6&$C6&"!B$157") -> 6 | V6: =INDIRECT($B6&$C6&"!C$157") -> 0 | W6: =SUM(U6:V6) -> 6 | X6: =INDIRECT($B6&$C6&"!B$158") -> 0 | Y6: =INDIRECT($B6&$C6&"!C$158") -> 0 | Z6: =SUM(X6:Y6) -> 0 | AA6: =INDIRECT($B6&$C6&"!B$159") -> 0 | AB6: =INDIRECT($B6&$C6&"!C$159") -> 0 | AC6: =SUM(AA6:AB6) -> 0 | AD6: =INDIRECT($B6&$C6&"!F$159") -> 0 | AE6: =INDIRECT($B6&$C6&"!G$159") -> 0 | AF6: =SUM(AD6:AE6) -> 0 | AG6: 0 | AH6: 0 | AI6: =SUM(AG6:AH6) -> 0 | AJ6: 0 | AK6: 0 | AL6: =SUM(AJ6:AK6) -> 0 | AM6: - | AO6: =T6+W6+Z6+AC6 -> 11
A7: 2 | B7: VII | C7: TM | R7: =INDIRECT($B7&$C7&"!B$156") -> 2 | S7: =INDIRECT($B7&$C7&"!C$156") -> 0 | T7: 2 | U7: =INDIRECT($B7&$C7&"!B$157") -> 12 | V7: =INDIRECT($B7&$C7&"!C$157") -> 0 | W7: 12 | X7: =INDIRECT($B7&$C7&"!B$158") -> 13 | Y7: =INDIRECT($B7&$C7&"!C$158") -> 0 | Z7: 13 | AA7: =INDIRECT($B7&$C7&"!B$159") -> 0 | AB7: =INDIRECT($B7&$C7&"!C$159") -> 0 | AC7: 0 | AD7: =INDIRECT($B7&$C7&"!F$159") -> 0 | AE7: =INDIRECT($B7&$C7&"!G$159") -> 0 | AF7: 0 | AG7: 1 | AH7: 0 | AI7: 1 | AJ7: 0 | AK7: 0 | AL7: 0 | AM7: - | AO7: =T7+W7+Z7+AC7 -> 27
A8: 3 | B8: VIII | C8: TM | R8: 8 | S8: 0 | T8: 8 | U8: 12 | V8: 0 | W8: 12 | X8: 12 | Y8: 0 | Z8: 12 | AA8: 0 | AB8: 0 | AC8: 0 | AD8: 0 | AE8: 0 | AF8: 0 | AG8: 0 | AH8: 0 | AI8: 0 | AJ8: 0 | AK8: 0 | AL8: 0 | AM8: - | AO8: 32
A9: 4 | B9: IX | C9: TM | R9: 5 | S9: 0 | T9: 5 | U9: 11 | V9: 0 | W9: 11 | X9: 8 | Y9: 0 | Z9: 8 | AA9: 0 | AB9: 0 | AC9: 0 | AD9: 0 | AE9: 0 | AF9: 0 | AG9: 0 | AH9: 0 | AI9: 0 | AJ9: 0 | AK9: 0 | AL9: 0 | AM9: - | AO9: 24
A10: 5 | B10: X | C10: TM | R10: 4 | S10: 0 | T10: 4 | U10: 15 | V10: 0 | W10: 15 | X10: 7 | Y10: 0 | Z10: 7 | AA10: 0 | AB10: 0 | AC10: 0 | AD10: 0 | AE10: 0 | AF10: 0 | AG10: 0 | AH10: 0 | AI10: 0 | AJ10: 0 | AK10: 0 | AL10: 0 | AM10: - | AO10: 26
A11: 6 | B11: VI | C11: EM | R11: 4 | S11: 3 | T11: =SUM(R11:S11) -> 7 | U11: 2 | V11: 3 | W11: =SUM(U11:V11) -> 5 | X11: 13 | Y11: 17 | Z11: =SUM(X11:Y11) -> 30 | AA11: 0 | AB11: 2 | AC11: =SUM(AA11:AB11) -> 2 | AD11: 0 | AE11: 0 | AF11: =SUM(AD11:AE11) -> 0 | AG11: 0 | AH11: 1 | AI11: =SUM(AG11:AH11) -> 1 | AJ11: 0 | AK11: 0 | AL11: =SUM(AJ11:AK11) -> 0 | AM11: - | AO11: 44
A12: 7 | B12: VII | C12: EM | R12: 1 | S12: 8 | T12: =SUM(R12:S12) -> 9 | U12: 4 | V12: 0 | W12: =SUM(U12:V12) -> 4 | X12: 20 | Y12: 26 | Z12: =SUM(X12:Y12) -> 46 | AA12: 0 | AB12: 1 | AC12: =SUM(AA12:AB12) -> 1 | AD12: 1 | AE12: 0 | AF12: =SUM(AD12:AE12) -> 1 | AG12: 2 | AH12: 0 | AI12: =SUM(AG12:AH12) -> 2 | AJ12: 0 | AK12: 0 | AL12: =SUM(AJ12:AK12) -> 0 | AM12: - | AO12: 60
A13: 8 | B13: VIII | C13: EM | R13: =INDIRECT($B13&$C13&"!B$154") -> 2 | S13: =INDIRECT($B13&$C13&"!c$154") -> 11 | T13: 13 | U13: =INDIRECT($B13&$C13&"!B$155") -> 4 | V13: =INDIRECT($B13&$C13&"!c$155") -> 5 | W13: 9 | X13: =INDIRECT($B13&$C13&"!B$156") -> 21 | Y13: =INDIRECT($B13&$C13&"!c$156") -> 29 | Z13: 50 | AA13: =INDIRECT($B13&$C13&"!B$157") -> 4 | AB13: =INDIRECT($B13&$C13&"!c$157") -> 0 | AC13: 4 | AD13: =INDIRECT($B13&$C13&"!F$158") -> 0 | AE13: 0 | AF13: 0 | AG13: 0 | AH13: 0 | AI13: 0 | AJ13: 0 | AK13: 0 | AL13: 0 | AM13: - | AO13: 76
A14: 9 | B14: IX | C14: EM | R14: 11 | S14: 11 | T14: 22 | U14: 8 | V14: 5 | W14: 13 | X14: 27 | Y14: 31 | Z14: 58 | AA14: 1 | AB14: 0 | AC14: 1 | AD14: 1 | AE14: 0 | AF14: 1 | AG14: 0 | AH14: 0 | AI14: 0 | AJ14: 0 | AK14: 0 | AL14: 0 | AM14: - | AO14: 94
A15: 11 | B15: X | C15: EM | R15: 6 | S15: 1 | T15: 7 | U15: 8 | V15: 0 | W15: 8 | X15: 29 | Y15: 33 | Z15: 62 | AA15: 0 | AB15: 0 | AC15: 0 | AD15: 2 | AE15: 3 | AF15: 5 | AG15: 0 | AH15: 1 | AI15: 1 | AJ15: 0 | AK15: 0 | AL15: 0 | AM15: - | AO15: =T15+W15+Z15+AC15 -> 77
A16: Grand Total | D16: =SUM(D6:D15) -> 0 | E16: =SUM(E6:E15) -> 0 | F16: =SUM(F6:F15) -> 0 | G16: =SUM(G6:G15) -> 0 | H16: =SUM(H6:H15) -> 0 | I16: =SUM(G16:H16) -> 0 | J16: =SUM(J6:J15) -> 0 | K16: 0 | L16: 0 | M16: 0 | N16: 0 | O16: 0 | Q16: =AVERAGE(Q6:Q15) ->  | R16: =SUM(R6:R15) -> 48 | S16: =SUM(S6:S15) -> 34 | T16: =SUM(T6:T15) -> 82 | U16: =SUM(U6:U15) -> 82 | V16: 13 | W16: =SUM(W6:W15) -> 95 | X16: =SUM(X6:X15) -> 150 | Y16: =SUM(Y6:Y15) -> 136 | Z16: =SUM(Z6:Z15) -> 286 | AA16: =SUM(AA6:AA15) -> 5 | AB16: =SUM(AB6:AB15) -> 3 | AC16: =SUM(AC6:AC15) -> 8 | AD16: =SUM(AD6:AD15) -> 4 | AE16: =SUM(AE6:AE15) -> 3 | AF16: =SUM(AF6:AF15) -> 7 | AG16: =SUM(AG6:AG15) -> 3 | AH16: =SUM(AH6:AH15) -> 2 | AI16: =SUM(AI6:AI15) -> 5 | AJ16: =SUM(AJ6:AJ15) -> 0 | AK16: =SUM(AK6:AK15) -> 0 | AL16: =SUM(AL6:AL15) -> 0 | AM16: - | AO16: =T16+W16+Z16+AC16 -> 471
AO17: =T17+W17+Z17+AC17 -> 0
W18: Utilization of Grants
A19: 3.No of VVs Working : 2 | K19: 11. RADIO Available: Yes | AA19: Opening Balance | AE19: Received | AH19: Expenditure | AK19: Closing Balance
A20: 4.No of Toilets Existing : 2 UNITS | K20: 12. MDM - Concerned Registers | W20: School Grant | AA20: - | AE20: - | AH20: - | AK20: -
A21: 5. Incomplete building if any give particulars: 0 | K21: aintained : Yes | W21: Maintenance Grant | AA21: - | AE21: - | AH21: - | AK21: -
A22: 6. Compound Wall (Yes/No) : YES | K22: 13. 3R Class wise Registers | W22: Uniforms Grant | AA22: - | AE22: - | AH22: - | AK22: -
A23: 7.Name of the Teacher Retired in next two Months : NIL | K23: Maintained : Yes | W23: Civil Works | AA23: - | AE23: - | AH23: - | AK23: -
A24: 8.Date of SMC meeting Conducted : | K24: 14. NRI DONARS Names& Cell No | W24: Interest | AA24: - | AE24: - | AH24: - | AK24: -
A25: No of parents participated : 07 | K25: a. | L25: - | W25: Others | AA25: - | AE25: - | AH25: - | AK25: -
A26: 9. Date of HM & Staff Review meetings: | K26: b. | L26: -
K27: 15. Village DONORS Names & Cell No
A28: 10. School grade / percentage : - | K28: a. | L28: P. Jangaiah - 9848376372 Donated Invertor
A30: 16. On roll I to V : 0 , MDM Taken Total: 0 Bill Amount:0
A31: Rice utilised
A32: 17. On roll VI to VIII: | D32: 248 | F32: MDM Taken Total: | K32: 2549 | M32: Bill Amount: | P32: 15752.82
A33: Rice utilised | H33: 382.35 | K33: KG | AF33: Head master
A34: 18. On roll IX to X: 214 MDM Taken Total: 2405 Bill Amount: 360.750 | AF34: Signature with Stamp
A35: Rice Utilised | H35: 360.75 | K35: KG
